Workbook

Sheet SAPBEXqueriesDefunct (hidden)
A1: 9
A2: 42 | AE2: 408 | CM2: 1806 | DG2: 1400 | EA2: 21222 | EU2: 0 | FY2: 138 | HW2: 1290
A3: 24 | AE3: 59 | CM3: 13 | DG3: 14 | EA3: 13 | EU3: 11 | FY3: 21 | HW3: 2
B4: 0 | C4: DB7KNG7ZEHU4RTWELJ3T28BG9 | D4: TRUE | E4: TRUE | F4: SAPBEXq0016 | G4: 2 | H4: 2 | I4: FALSE | L4: TRUE | M4: FALSE | O4: TRUE | P4: FALSE | Q4: 0 | S4: 5 | T4: TRUE | U4: TRUE | X4: FALSE | Y4: FALSE | Z4: FALSE | AE4: 17 | AF4: ZPERID | AG4: NI Number | AH4: X | AK4: 0001 | AS4: 2 | AT4: 00 | AX4: 00000000 | AY4: K | AZ4: ZPERID | BA4: A | BD4: H | BJ4: 00000000 | BK4: 0000 | BM4: 0 | BR4: 1 | BS4: 1 | BT4: 1 | BU4: 0 | BV4: 0 | BY4: 2 | CA4: 0 | CB4: DBE5O9AE5IYQMYYFGPF1H8OAH | CI4: 0000 | CM4: 17 | CN4: D5ENPW16Z63T56VF4C1ESE4FT | CO4: D5ENPW16Z64KTT76FVH0UTIPL | CP4: Male Temp FT | CQ4: 0001 | CS4: S | CU4: L | CV4: X | CW4: IOBJ | CX4: Z_EMP_HCT | CZ4: Employee Headcount | DG4: 17 | DH4: 0ORGUNIT | DI4: 0BBPPURGRPX | DJ4: Ind.Purchasing Group | DK4: 0000 | DL4: X | DM4: 2 | DN4: 0 | DO4: 0 | DT4: 0000 | EA4: 17 | EB4: D5ENPW16Z64KTT76FVH0UTIPL | EC4: D5B6FGJCS8BFQ1OMS1RP9IDIX | EI4: 00 | EJ4: X | EK4: 0 | EL4: 0 | FY4: 17 | FZ4: ZS_DT_1 | GA4: 1 | GB4: P | GC4: I | GD4: EQ | GE4: 20120331 | GF4: 31/03/2012 | GJ4: 0 | GL4: 0 | GN4: 0 | GO4: Target date 1 | GP4: 60 | GS4: ZEMP_STRT | GT4: 20120331 | HW4: 17 | HX4: 0000000100 | HY4: X
B5: 0 | C5: DB7KNG7ZEHU4RTWELJ3T28BG9 | D5: TRUE | E5: TRUE | F5: SAPBEXq0014 | G5: 2 | H5: 2 | I5: FALSE | L5: TRUE | M5: FALSE | O5: TRUE | P5: FALSE | Q5: 0 | S5: 5 | T5: TRUE | U5: TRUE | X5: FALSE | Y5: FALSE | Z5: FALSE | AE5: 17 | AF5: ZPERSAREA | AG5: ZPersonal Area | AH5: X | AK5: 0002 | AM5: Education | AS5: 5 | AT5: 00 | AX5: 00000000 | AY5: K | AZ5: ZPERSAREA | BA5: A | BD5: H | BJ5: 00000000 | BK5: 0000 | BM5: 0 | BO5: 1 | BR5: 1 | BS5: 1 | BT5: 1 | BU5: 0 | BV5: 0 | BY5: 2 | CA5: 0 | CB5: DBE5O9AE5IZIBLA6S8UNJO2K9 | CI5: 0000 | CM5: 17 | CN5: D5B6FGJCS8AO1FCVGIC372Z95 | CO5: D5B6FGJCS8BFQ1OMS1RP9IDIX | CP5: BS | CQ5: 0001 | CS5: S | CU5: L | DG5: 17 | DH5: 0ORGUNIT | DI5: 0BBPPURORGX | DJ5: Ind. Purchasing Org. | DK5: 0000 | DL5: X | DM5: 2 | DN5: 0 | DO5: 0 | DT5: 0000 | EA5: 17 | EB5: D5ENPW16Z64KTT76FVH0UTIPL | EC5: D5B6FGJCS8C7EO0E3L7BBXRSP | EI5: 00 | EJ5: X | EK5: 0 | EL5: 0 | FY5: 17 | FZ5: ZBUDH | GA5: 1 | GB5: P | GC5: I | GD5: EQ | GE5: 20120331 | GF5: 31/03/2012 | GJ5: 0 | GL5: 0 | GN5: 0 | GO5: Master Data Key Date | GP5: 60 | GS5: 0DATE | GT5: 20120331 | HW5: 17 | HX5: 0000000108
B6: 0 | C6: DB7KNG7ZEHU4RTWELJ3T28BG9 | D6: TRUE | E6: TRUE | F6: SAPBEXq0019 | G6: 2 | H6: 2 | I6: FALSE | L6: TRUE | M6: FALSE | O6: TRUE | P6: FALSE | Q6: 0 | S6: 5 | T6: TRUE | U6: TRUE | X6: FALSE | Y6: FALSE | Z6: FALSE | AE6: 17 | AF6: ZPRIM_ID | AG6: ZPrimary Employee ID | AH6: X | AK6: 0003 | AS6: 2 | AT6: 00 | AX6: 00000000 | AY6: K | AZ6: ZPRIM_ID | BA6: A | BD6: H | BJ6: 00000000 | BK6: 0000 | BM6: 0 | BR6: 1 | BS6: 1 | BT6: 1 | BU6: 0 | BV6: 0 | BY6: 2 | CA6: 0 | CB6: DBE5O9AE5J0A07LY3SA9M3GU1 | CI6: 0000 | CM6: 17 | CN6: D5ENPW16Z63T56VF4C1ESE4FT | CO6: D5ENPW16Z65CIFIXREWMX8WZD | CP6: Male Temp PT | CQ6: 0002 | CS6: S | CU6: L | CV6: X | CW6: IOBJ | CX6: Z_EMP_HCT | CZ6: Employee Headcount | DG6: 17 | DH6: 0ORGUNIT | DI6: 0BBP_BUYID | DJ6: Buyer ID | DK6: 0000 | DL6: X | DM6: 5 | DN6: 0 | DO6: 0 | DT6: 0000 | EA6: 17 | EB6: D5ENPW16Z64KTT76FVH0UTIPL | EC6: D5B6FGJCS8CZ3AC5F4MXED62H | EI6: 00 | EJ6: X | EK6: 0 | EL6: 0 | FY6: 17 | FZ6: ZZPERAR | GA6: 1 | GB6: M | GJ6: 0 | GL6: 0 | GN6: 0 | GO6: ZPersonnel Area | GP6: 60 | GS6: ZPERSAREA | HW6: 17 | HX6: 0000000101
B7: 0 | C7: DB7KNG7ZEHU4RTWELJ3T28BG9 | D7: TRUE | E7: TRUE | F7: SAPBEXq0020 | G7: 2 | H7: 2 | I7: FALSE | L7: TRUE | M7: FALSE | O7: TRUE | P7: FALSE | Q7: 0 | S7: 5 | T7: TRUE | U7: TRUE | X7: FALSE | Y7: FALSE | Z7: FALSE | AE7: 17 | AF7: 0EMPLGROUP | AG7: Employee Group | AH7: X | AK7: 0004 | AS7: 1 | AT7: 00 | AX7: 00000000 | AY7: K | AZ7: 0EMPLGROUP | BA7: A | BD7: H | BJ7: 00000000 | BK7: 0000 | BM7: 0 | BR7: 1 | BS7: 1 | BT7: 1 | BU7: 0 | BV7: 0 | BY7: 2 | CA7: 0 | CB7: DBE5O9AE5J11OTXPFBPVOIV3T | CI7: 0000 | CM7: 17 | CN7: D5B6FGJCS8AO1FCVGIC372Z95 | CO7: D5B6FGJCS8C7EO0E3L7BBXRSP | CP7: CV | CQ7: 0002 | CS7: S | CU7: L | DG7: 17 | DH7: 0ORGUNIT | DI7: 0BBP_ISCOMP | DJ7: Organizational Unit is Company | DK7: 0000 | DL7: X | DM7: 1 | DN7: 0 | DO7: 0 | DT7: 0000 | EA7: 17 | EB7: D5ENPW16Z64KTT76FVH0UTIPL | EC7: D5B6FGJCS8DQRWNWQO2JGSKC9 | EI7: 00 | EJ7: X | EK7: 0 | EL7: 0 | FY7: 18 | FZ7: ZS_DT_1 | GA7: 1 | GB7: P | GC7: I | GD7: EQ | GE7: 20120331 | GF7: 31/03/2012 | GJ7: 0 | GL7: 0 | GN7: 0 | GO7: Target date 1 | GP7: 60 | GS7: ZEMP_STRT | GT7: 20120331 | HW7: 17 | HX7: 0000000104 | HY7: 1
B8: 0 | C8: DB7KNG7ZEHU4RTWELJ3T28BG9 | D8: TRUE | E8: TRUE | F8: SAPBEXq0022 | G8: 2 | H8: 2 | I8: FALSE | L8: TRUE | M8: FALSE | O8: TRUE | P8: FALSE | Q8: 0 | S8: 5 | T8: TRUE | U8: TRUE | X8: FALSE | Y8: FALSE | Z8: FALSE | AE8: 17 | AF8: 0PERS_SAREA | AG8: Personnel Subarea | AH8: X | AK8: 0005 | AS8: 1 | AT8: 00 | AX8: 00000000 | AY8: K | AZ8: 0PERS_SAREA | BA8: A | BD8: H | BJ8: 00000000 | BK8: 0000 | BM8: 0 | BR8: 1 | BS8: 1 | BT8: 1 | BU8: 0 | BV8: 0 | BY8: 2 | CA8: 0 | CB8: DBE5O9AE5J1TDG9GQV5HQY9DL | CI8: 0000 | CM8: 17 | CN8: D5ENPW16Z63T56VF4C1ESE4FT | CO8: D5ENPW16Z66471UP2YC8ZOB95 | CP8: Male Perm FT | CQ8: 0003 | CS8: S | CU8: L | CV8: X | CW8: IOBJ | CX8: Z_EMP_HCT | CZ8: Employee Headcount | DG8: 17 | DH8: 0ORGUNIT | DI8: 0BUS_AREA | DJ8: Business area | DK8: 0000 | DL8: X | DM8: 0 | DN8: 0 | DO8: 0 | DT8: 0000 | EA8: 17 | EB8: D5ENPW16Z64KTT76FVH0UTIPL | EC8: D5B6FGJCS8EIGIZO27I5J7YM1 | EI8: 00 | EJ8: X | EK8: 0 | EL8: 0 | FY8: 18 | FZ8: ZBUDH | GA8: 1 | GB8: P | GC8: I | GD8: EQ | GE8: 20120331 | GF8: 31/03/2012 | GJ8: 0 | GL8: 0 | GN8: 0 | GO8: Master Data Key Date | GP8: 60 | GS8: 0DATE | GT8: 20120331 | HW8: 17 | HX8: 0000000103
B9: 0 | C9: DB7KNG7ZEHU4RTWELJ3T28BG9 | D9: TRUE | E9: TRUE | F9: SAPBEXq0023 | G9: 2 | H9: 2 | I9: FALSE | L9: TRUE | M9: FALSE | O9: TRUE | P9: FALSE | Q9: 0 | S9: 5 | T9: TRUE | U9: TRUE | X9: FALSE | Y9: FALSE | Z9: FALSE | AE9: 17 | AF9: 0ORGUNIT | AG9: Organizational Unit | AH9: X | AK9: 0006 | AR9: U | AS9: 1 | AT9: 02 | AU9: X | AV9: ORGEH | AW9: 000 | AX9: 20120331 | AY9: K | AZ9: 0ORGUNIT | BA9: A | BD9: H | BE9: 0ORGUNIT | BF9: A | BJ9: 00000000 | BK9: 0000 | BM9: 0 | BQ9: 2 | BR9: 1 | BS9: 1 | BT9: 1 | BU9: 0 | BV9: 0 | CA9: 0 | CB9: DBE5O9AE5J2L22L82EL3TDNND | CI9: 0000 | CM9: 17 | CN9: D5B6FGJCS8AO1FCVGIC372Z95 | CO9: D5B6FGJCS8CZ3AC5F4MXED62H | CP9: CA | CQ9: 0003 | CS9: S | CU9: L | DG9: 17 | DH9: 0ORGUNIT | DI9: 0COMP_CODE | DJ9: Company code | DK9: 0000 | DL9: X | DM9: 0 | DN9: 0 | DO9: 0 | DT9: 0000 | EA9: 17 | EB9: D5ENPW16Z64KTT76FVH0UTIPL | EC9: D5B6FGJCS8FA55BFDQXRLNCVT | EI9: 00 | EJ9: X | EK9: 0 | EL9: 0 | FY9: 18 | FZ9: ZZPERAR | GA9: 1 | GB9: M | GJ9: 0 | GL9: 0 | GN9: 0 | GO9: ZPersonnel Area | GP9: 60 | GS9: ZPERSAREA | HW9: 17 | HX9: 0000000102 | HY9: 1
B10: 0 | C10: DB7KNG7ZEHU4RTWELJ3T28BG9 | D10: TRUE | E10: TRUE | F10: SAPBEXq0024 | G10: 2 | H10: 2 | I10: FALSE | L10: TRUE | M10: FALSE | O10: TRUE | P10: FALSE | Q10: 0 | S10: 5 | T10: TRUE | U10: TRUE | X10: FALSE | Y10: FALSE | Z10: FALSE | AE10: 17 | AF10: D5B6FGJCS8AO1FCVGIC372Z95 | AG10: Job Families Incl Teach | AI10: X | AJ10: X | AK10: 0001 | AR10: U | AT10: 00 | AY10: K | AZ10: D5B6FGJCS8AO1FCVGIC372Z95 | BA10: A | BJ10: 00000000 | BK10: 0000 | BM10: 0 | BR10: 0 | BS10: 0 | BT10: 0 | BU10: 0 | BV10: 0 | CB10: D5B6FGJCS8AO1FCVGIC372Z95 | CI10: 0000 | CM10: 17 | CN10: D5ENPW16Z63T56VF4C1ESE4FT | CO10: D5ENPW16Z66VVO6GEHRV23PIX | CP10: Male Perm PT | CQ10: 0004 | CS10: S | CU10: L | CV10: X | CW10: IOBJ | CX10: Z_EMP_HCT | CZ10: Employee Headcount | DG10: 17 | DH10: 0ORGUNIT | DI10: 0CO_MST_AR | DJ10: Controlling Area of Master Cost Center | DK10: 0000 | DL10: X | DM10: 0 | DN10: 0 | DO10: 0 | DT10: 0000 | EA10: 17 | EB10: D5ENPW16Z64KTT76FVH0UTIPL | EC10: D5B6FGJCS8G1TRN6PADDO2R5L | EI10: 00 | EJ10: X | EK10: 0 | EL10: 0 | FY10: 19 | FZ10: ZS_DT_1 | GA10: 1 | GB10: P | GC10: I | GD10: EQ | GE10: 20120331 | GF10: 31/03/2012 | GJ10: 0 | GL10: 0 | GN10: 0 | GO10: Target date 1 | GP10: 60 | GS10: ZEMP_STRT | GT10: 20120331 | HW10: 17 | HX10: 0000009000
B11: 0 | C11: DB7KNG7ZEHU4RTWELJ3T28BG9 | D11: TRUE | E11: TRUE | F11: SAPBEXq0025 | G11: 2 | H11: 2 | I11: FALSE | L11: TRUE | M11: FALSE | O11: TRUE | P11: FALSE | Q11: 0 | S11: 5 | T11: TRUE | U11: TRUE | X11: FALSE | Y11: FALSE | Z11: FALSE | AE11: 17 | AF11: D5ENPW16Z63T56VF4C1ESE4FT | AG11: Breakdown Gender Contract FTPT | AI11: X | AJ11: Y | AK11: 0001 | AR11: U | AT11: 00 | AY11: K | AZ11: D5ENPW16Z63T56VF4C1ESE4FT | BA11: A | BJ11: 00000000 | BK11: 0000 | BL11: X | BM11: 0 | BR11: 0 | BS11: 0 | BT11: 0 | BU11: 0 | BV11: 0 | CB11: D5ENPW16Z63T56VF4C1ESE4FT | CI11: 0000 | CM11: 17 | CN11: D5B6FGJCS8AO1FCVGIC372Z95 | CO11: D5B6FGJCS8DQRWNWQO2JGSKC9 | CP11: CF | CQ11: 0004 | CS11: S | CU11: L | DG11: 17 | DH11: 0ORGUNIT | DI11: 0CRMSALGRPX | DJ11: Sls Group: Indicator | DK11: 0000 | DL11: X | DM11: 2 | DN11: 0 | DO11: 0 | DT11: 0000 | EA11: 17 | EB11: D5ENPW16Z64KTT76FVH0UTIPL | EC11: D5B6FGJCS8GTIDYY0TSZQI5FD | EI11: 00 | EJ11: X | EK11: 0 | EL11: 0 | FY11: 19 | FZ11: ZBUDH | GA11: 1 | GB11: P | GC11: I | GD11: EQ | GE11: 20120331 | GF11: 31/03/2012 | GJ11: 0 | GL11: 0 | GN11: 0 | GO11: Master Data Key Date | GP11: 60 | GS11: 0DATE | GT11: 20120331 | HW11: 17 | HX11: 0000000107 | HY11: DBE5O9AE5IU4J8ZVJGTD2OANT
B12: 0 | C12: DB7L0YCWBK71PGE0BPAJH45IX | D12: TRUE | E12: TRUE | F12: SAPBEXq0027 | G12: 2 | H12: 2 | I12: FALSE | L12: TRUE | M12: FALSE | O12: TRUE | P12: FALSE | Q12: 0 | S12: 5 | T12: TRUE | U12: TRUE | X12: FALSE | Y12: FALSE | Z12: FALSE | AE12: 18 | AF12: ZPERID | AG12: NI Number | AH12: X | AK12: 0001 | AS12: 2 | AT12: 00 | AX12: 00000000 | AY12: K | AZ12: ZPERID | BA12: A | BD12: H | BJ12: 00000000 | BK12: 0000 | BM12: 0 | BR12: 1 | BS12: 1 | BT12: 1 | BU12: 0 | BV12: 0 | BY12: 2 | CA12: 0 | CB12: DBE5O9AE5IYQMYYFGPF1H8OAH | CI12: 0000 | CM12: 17 | CN12: D5B6FGJCS8AO1FCVGIC372Z95 | CO12: D5B6FGJCS8EIGIZO27I5J7YM1 | CP12: CU | CQ12: 0005 | CS12: S | CU12: L | DG12: 17 | DH12: 0ORGUNIT | DI12: 0CRMSALOFFX | DJ12: Sls Office:Indicator | DK12: 0000 | DL12: X | DM12: 2 | DN12: 0 | DO12: 0 | DT12: 0000 | EA12: 17 | EB12: D5ENPW16Z64KTT76FVH0UTIPL | EC12: D5B6FGJCS8HL70APCD8LSXJP5 | EI12: 00 | EJ12: X | EK12: 0 | EL12: 0 | FY12: 19 | FZ12: ZZPERAR | GA12: 1 | GB12: M | GJ12: 0 | GL12: 0 | GN12: 0 | GO12: ZPersonnel Area | GP12: 60 | GS12: ZPERSAREA | HW12: 17 | HX12: 0000010001 | HY12: DBE5O9AE5J44FB8QPHGBY8G6X
B13: 0 | C13: DB8BHD5B47XQHOF5UNABGWLQ1 | D13: TRUE | E13: TRUE | F13: SAPBEXq0001 | G13: 2 | H13: 2 | I13: FALSE | L13: TRUE | M13: FALSE | O13: TRUE | P13: FALSE | Q13: 0 | S13: 5 | T13: TRUE | U13: TRUE | X13: FALSE | Y13: FALSE | Z13: FALSE | AE13: 18 | AF13: ZPERSAREA | AG13: ZPersonal Area | AH13: X | AK13: 0002 | AM13: Financial | AS13: 5 | AT13: 00 | AX13: 00000000 | AY13: K | AZ13: ZPERSAREA | BA13: A | BD13: H | BJ13: 00000000 | BK13: 0000 | BM13: 0 | BO13: 1 | BR13: 1 | BS13: 1 | BT13: 1 | BU13: 0 | BV13: 0 | BY13: 2 | CA13: 0 | CB13: DBE5O9AE5IZIBLA6S8UNJO2K9 | CI13: 0000 | CM13: 17 | CN13: D5ENPW16Z63T56VF4C1ESE4FT | CO13: D5ENPW16Z67NKAI7Q17H4J3SP | CP13: Female Temp FT | CQ13: 0005 | CS13: S | CU13: L | CV13: X | CW13: IOBJ | CX13: Z_EMP_HCT | CZ13: Employee Headcount | DG13: 17 | DH13: 0ORGUNIT | DI13: 0CRMSALORGX | DJ13: Sales Org. Indicator | DK13: 0000 | DL13: X | DM13: 2 | DN13: 0 | DO13: 0 | DT13: 0000 | EA13: 17 | EB13: D5ENPW16Z64KTT76FVH0UTIPL | EC13: D5B6FGJCS8ICVMMGNWO7VCXYX | EI13: 00 | EJ13: X | EK13: 0 | EL13: 0 | FY13: 20 | FZ13: ZS_DT_1 | GA13: 1 | GB13: P | GC13: I | GD13: EQ | GE13: 20120331 | GF13: 31/03/2012 | GJ13: 0 | GL13: 0 | GN13: 0 | GO13: Target date 1 | GP13: 60 | GS13: ZEMP_STRT | GT13: 20120331 | HW13: 17 | HX13: 0000010003 | HY13: ZPA_O07
B14: 0 | C14: DB8BI6XESAEDYAJVA6CRTMCJD | D14: TRUE | E14: TRUE | F14: SAPBEXq0008 | G14: 0 | H14: 0 | I14: FALSE | L14: TRUE | M14: FALSE | O14: TRUE | P14: FALSE | Q14: 0 | S14: 5 | T14: TRUE | U14: TRUE | X14: FALSE | Y14: FALSE | Z14: FALSE | AE14: 18 | AF14: ZPRIM_ID | AG14: ZPrimary Employee ID | AH14: X | AK14: 0003 | AS14: 2 | AT14: 00 | AX14: 00000000 | AY14: K | AZ14: ZPRIM_ID | BA14: A | BD14: H | BJ14: 00000000 | BK14: 0000 | BM14: 0 | BR14: 1 | BS14: 1 | BT14: 1 | BU14: 0 | BV14: 0 | BY14: 2 | CA14: 0 | CB14: DBE5O9AE5J0A07LY3SA9M3GU1 | CI14: 0000 | CM14: 17 | CN14: D5ENPW16Z63T56VF4C1ESE4FT | CO14: D5ENPW16Z68F8WTZ1KN36YI2H | CP14: Female Temp PT | CQ14: 0006 | CS14: S | CU14: L | CV14: X | CW14: IOBJ | CX14: Z_EMP_HCT | CZ14: Employee Headcount | DG14: 17 | DH14: 0ORGUNIT | DI14: 0CRMSRVTGRP | DJ14: Ex. CRM Service Org. | DK14: 0000 | DL14: X | DM14: 1 | DN14: 0 | DO14: 0 | DT14: 0000 | EA14: 17 | EB14: D5ENPW16Z64KTT76FVH0UTIPL | EC14: D5B6FGJCS8J4K8Y7ZG3TXSC8P | EI14: 00 | EJ14: X | EK14: 0 | EL14: 0 | FY14: 20 | FZ14: ZBUDH | GA14: 1 | GB14: P | GC14: I | GD14: EQ | GE14: 20120331 | GF14: 31/03/2012 | GJ14: 0 | GL14: 0 | GN14: 0 | GO14: Master Data Key Date | GP14: 60 | GS14: 0DATE | GT14: 20120331 | HW14: 17 | HX14: 0000000010
B15: 0 | C15: DBE5O9AE5J44FB8QPHGBY8G6X | D15: TRUE | E15: TRUE | F15: SAPBEXq0009 | G15: 2 | H15: 2 | I15: FALSE | L15: TRUE | M15: FALSE | O15: TRUE | P15: FALSE | Q15: 0 | S15: 5 | T15: TRUE | U15: FALSE | X15: FALSE | Y15: FALSE | Z15: FALSE | AE15: 18 | AF15: 0EMPLGROUP | AG15: Employee Group | AH15: X | AK15: 0004 | AS15: 1 | AT15: 00 | AX15: 00000000 | AY15: K | AZ15: 0EMPLGROUP | BA15: A | BD15: H | BJ15: 00000000 | BK15: 0000 | BM15: 0 | BR15: 1 | BS15: 1 | BT15: 1 | BU15: 0 | BV15: 0 | BY15: 2 | CA15: 0 | CB15: DBE5O9AE5J11OTXPFBPVOIV3T | CI15: 0000 | CM15: 17 | CN15: D5B6FGJCS8AO1FCVGIC372Z95 | CO15: D5B6FGJCS8FA55BFDQXRLNCVT | CP15: CR | CQ15: 0006 | CS15: S | CU15: L | DG15: 17 | DH15: 0ORGUNIT | DI15: 0CRM_SALGRP | DJ15: CRM Sales Group | DK15: 0000 | DL15: X | DM15: 1 | DN15: 0 | DO15: 0 | DT15: 0000 | EA15: 17 | EB15: D5ENPW16Z64KTT76FVH0UTIPL | EC15: D5B6FGJCS8JW8V9ZAZJG07QIH | EI15: 00 | EJ15: X | EK15: 0 | EL15: 0 | FY15: 20 | FZ15: ZZPERAR | GA15: 1 | GB15: M | GJ15: 0 | GL15: 0 | GN15: 0 | GO15: ZPersonnel Area | GP15: 60 | GS15: ZPERSAREA | HW15: 17 | HX15: 0000000109 | HY15: 0
B16: 0 | C16: DBE5O9AE5J44FB8QPHGBY8G6X | D16: TRUE | E16: TRUE | F16: SAPBEXq0010 | G16: 2 | H16: 2 | I16: FALSE | L16: TRUE | M16: FALSE | O16: TRUE | P16: FALSE | Q16: 0 | S16: 5 | T16: TRUE | U16: FALSE | X16: FALSE | Y16: FALSE | Z16: FALSE | AE16: 18 | AF16: 0PERS_SAREA | AG16: Personnel Subarea | AH16: X | AK16: 0005 | AS16: 1 | AT16: 00 | AX16: 00000000 | AY16: K | AZ16: 0PERS_SAREA | BA16: A | BD16: H | BJ16: 00000000 | BK16: 0000 | BM16: 0 | BR16: 1 | BS16: 1 | BT16: 1 | BU16: 0 | BV16: 0 | BY16: 2 | CA16: 0 | CB16: DBE5O9AE5J1TDG9GQV5HQY9DL | CI16: 0000 | CM16: 17 | CN16: D5ENPW16Z63T56VF4C1ESE4FT | CO16: D5ENPW16Z696XJ5QD42P9DWC9 | CP16: Female Perm FT | CQ16: 0007 | CS16: S | CU16: L | CV16: X | CW16: IOBJ | CX16: Z_EMP_HCT | CZ16: Employee Headcount | DG16: 17 | DH16: 0ORGUNIT | DI16: 0CRM_SALOFF | DJ16: CRM Sales Office | DK16: 0000 | DL16: X | DM16: 1 | DN16: 0 | DO16: 0 | DT16: 0000 | EA16: 17 | EB16: D5ENPW16Z64KTT76FVH0UTIPL | EC16: D5B6FGJCS8KNXHLQMIZ22N4S9 | EI16: 00 | EJ16: X | EK16: 0 | EL16: 0 | FY16: 15 | FZ16: ZS_DT_1 | GA16: 1 | GB16: P | GC16: I | GD16: EQ | GE16: 20120930 | GF16: 30/09/2012 | GJ16: 0 | GL16: 0 | GN16: 0 | GO16: Target date 1 | GP16: 60 | GS16: ZEMP_STRT | GT16: 20120930 | HW16: 17 | HX16: 0000000113
B17: 0 | C17: DBE5O9AE5J44FB8QPHGBY8G6X | D17: TRUE | E17: TRUE | F17: SAPBEXq0011 | G17: 2 | H17: 2 | I17: FALSE | L17: TRUE | M17: FALSE | O17: TRUE | P17: FALSE | Q17: 2 | S17: 5 | T17: TRUE | U17: FALSE | Y17: FALSE | Z17: FALSE | AE17: 18 | AF17: 0ORGUNIT | AG17: Organizational Unit | AH17: X | AK17: 0006 | AR17: U | AS17: 1 | AT17: 02 | AU17: X | AV17: ORGEH | AW17: 000 | AX17: 20120331 | AY17: K | AZ17: 0ORGUNIT | BA17: A | BD17: H | BE17: 0ORGUNIT | BF17: A | BJ17: 00000000 | BK17: 0000 | BM17: 0 | BQ17: 2 | BR17: 1 | BS17: 1 | BT17: 1 | BU17: 0 | BV17: 0 | CA17: 0 | CB17: DBE5O9AE5J2L22L82EL3TDNND | CI17: 0000 | CM17: 17 | CN17: D5B6FGJCS8AO1FCVGIC372Z95 | CO17: D5B6FGJCS8G1TRN6PADDO2R5L | CP17: IP | CQ17: 0007 | CS17: S | CU17: L | DG17: 17 | DH17: 0ORGUNIT | DI17: 0CRM_SALORG | DJ17: CRM Sales Org. | DK17: 0000 | DL17: X | DM17: 1 | DN17: 0 | DO17: 0 | DT17: 0000 | EA17: 17 | EB17: D5ENPW16Z64KTT76FVH0UTIPL | EC17: D5B6FGJCS8LFM3XHY2EO52J21 | EI17: 00 | EJ17: X | EK17: 0 | EL17: 0 | FY17: 15 | FZ17: ZBUDH | GA17: 1 | GB17: P | GC17: I | GD17: EQ | GE17: 20120930 | GF17: 30/09/2012 | GJ17: 0 | GL17: 0 | GN17: 0 | GO17: Master Data Key Date | GP17: 60 | GS17: 0DATE | GT17: 20120930 | HW17: 17 | HX17: 0000000020
B18: 0 | C18: DBE5O9AE5J44FB8QPHGBY8G6X | D18: TRUE | E18: TRUE | F18: SAPBEXq0012 | G18: 2 | H18: 2 | I18: FALSE | L18: TRUE | M18: FALSE | O18: TRUE | P18: FALSE | Q18: 2 | S18: 5 | T18: TRUE | U18: FALSE | Y18: FALSE | Z18: FALSE | AE18: 18 | AF18: D5B6FGJCS8AO1FCVGIC372Z95 | AG18: Job Families Incl Teach | AI18: X | AJ18: X | AK18: 0001 | AR18: U | AT18: 00 | AY18: K | AZ18: D5B6FGJCS8AO1FCVGIC372Z95 | BA18: A | BJ18: 00000000 | BK18: 0000 | BM18: 0 | BR18: 0 | BS18: 0 | BT18: 0 | BU18: 0 | BV18: 0 | CB18: D5B6FGJCS8AO1FCVGIC372Z95 | CI18: 0000 | CM18: 17 | CN18: D5ENPW16Z63T56VF4C1ESE4FT | CO18: D5ENPW16Z69YM5HHONIBBTAM1 | CP18: Female Perm PT | CQ18: 0008 | CS18: S | CU18: L | CV18: X | CW18: IOBJ | CX18: Z_EMP_HCT | CZ18: Employee Headcount | DG18: 17 | DH18: 0ORGUNIT | DI18: 0CRM_SRVORG | DJ18: Service Org. CRM | DK18: 0000 | DL18: X | DM18: 1 | DN18: 0 | DO18: 0 | DT18: 0000 | EA18: 17 | EB18: D5ENPW16Z64KTT76FVH0UTIPL | EC18: D5B6FGJCS8M7AQ999LUA7HXBT | EI18: 00 | EJ18: X | EK18: 0 | EL18: 0 | FY18: 15 | FZ18: ZZPERAR | GA18: 1 | GB18: M | GJ18: 0 | GL18: 0 | GN18: 0 | GO18: ZPersonnel Area | GP18: 60 | GS18: ZPERSAREA | HW18: 17 | HX18: 0000000030
B19: 0 | C19: DBE5O9AE5J44FB8QPHGBY8G6X | D19: TRUE | E19: TRUE | F19: SAPBEXq0013 | G19: 2 | H19: 2 | I19: FALSE | L19: TRUE | M19: FALSE | O19: TRUE | P19: FALSE | Q19: 2 | S19: 5 | T19: TRUE | U19: FALSE | Y19: FALSE | Z19: FALSE | AE19: 18 | AF19: D5ENPW16Z63T56VF4C1ESE4FT | AG19: Breakdown Gender Contract FTPT | AI19: X | AJ19: Y | AK19: 0001 | AR19: U | AT19: 00 | AY19: K | AZ19: D5ENPW16Z63T56VF4C1ESE4FT | BA19: A | BJ19: 00000000 | BK19: 0000 | BL19: X | BM19: 0 | BR19: 0 | BS19: 0 | BT19: 0 | BU19: 0 | BV19: 0 | CB19: D5ENPW16Z63T56VF4C1ESE4FT | CI19: 0000 | CM19: 17 | CN19: D5B6FGJCS8AO1FCVGIC372Z95 | CO19: D5B6FGJCS8GTIDYY0TSZQI5FD | CP19: LS | CQ19: 0008 | CS19: S | CU19: L | DG19: 17 | DH19: 0ORGUNIT | DI19: 0LOGSYS | DJ19: Source System | DK19: 0000 | DL19: X | DM19: 1 | DN19: 0 | DO19: 0 | DT19: 0000 | EA19: 17 | EB19: D5ENPW16Z64KTT76FVH0UTIPL | EC19: D5B6FGJCS8MYZCL0L59W9XBLL | ED19: 0 | EE19: 0 | EI19: 00 | EJ19: X | EK19: 0 | EL19: 0 | FY19: 16 | FZ19: ZS_DT_1 | GA19: 1 | GB19: P | GC19: I | GD19: EQ | GE19: 20120930 | GF19: 30/09/2012 | GJ19: 0 | GL19: 0 | GN19: 0 | GO19: Target date 1 | GP19: 60 | GS19: ZEMP_STRT | GT19: 20120930 | HW19: 17 | HX19: 0000000040
B20: 0 | C20: DBE5O9AE5J44FB8QPHGBY8G6X | D20: TRUE | E20: TRUE | F20: SAPBEXq0015 | G20: 2 | H20: 2 | I20: FALSE | L20: TRUE | M20: FALSE | O20: TRUE | P20: FALSE | Q20: 2 | S20: 5 | T20: TRUE | U20: FALSE | Y20: FALSE | Z20: FALSE | AE20: 19 | AF20: ZPERID | AG20: NI Number | AH20: X | AK20: 0001 | AS20: 2 | AT20: 00 | AX20: 00000000 | AY20: K | AZ20: ZPERID | BA20: A | BD20: H | BJ20: 00000000 | BK20: 0000 | BM20: 0 | BR20: 1 | BS20: 1 | BT20: 1 | BU20: 0 | BV20: 0 | BY20: 2 | CA20: 0 | CB20: DBE5O9AE5IYQMYYFGPF1H8OAH | CI20: 0000 | CM20: 17 | CN20: D5B6FGJCS8AO1FCVGIC372Z95 | CO20: D5B6FGJCS8HL70APCD8LSXJP5 | CP20: PC | CQ20: 0009 | CS20: S | CU20: L | DG20: 17 | DH20: 0ORGUNIT | DI20: 0MAST_CCTR | DJ20: Master Cost Center | DK20: 0000 | DL20: X | DM20: 0 | DN20: 0 | DO20: 0 | DT20: 0000 | EA20: 17 | EB20: D5ENPW16Z64KTT76FVH0UTIPL | EC20: D5B6FGJCS8NQNYWRWOPICCPVD | EI20: 00 | EJ20: X | EK20: 0 | EL20: 0 | FY20: 16 | FZ20: ZBUDH | GA20: 1 | GB20: P | GC20: I | GD20: EQ | GE20: 20120930 | GF20: 30/09/2012 | GJ20: 0 | GL20: 0 | GN20: 0 | GO20: Master Data Key Date | GP20: 60 | GS20: 0DATE | GT20: 20120930 | HW20: 17 | HX20: 0000000041
B21: 0 | C21: DE0LJZ6IGUGTDCE3K7214RMD5 | D21: TRUE | E21: TRUE | F21: SAPBEXq0002 | G21: 2 | H21: 2 | I21: FALSE | L21: TRUE | M21: FALSE | O21: TRUE | P21: FALSE | Q21: 0 | S21: 5 | T21: TRUE | U21: FALSE | X21: FALSE | Y21: FALSE | Z21: FALSE | AE21: 19 | AF21: ZPERSAREA | AG21: ZPersonal Area | AH21: X | AK21: 0002 | AM21: Land and Environmental | AS21: 5 | AT21: 00 | AX21: 00000000 | AY21: K | AZ21: ZPERSAREA | BA21: A | BD21: H | BJ21: 00000000 | BK21: 0000 | BM21: 0 | BO21: 1 | BR21: 1 | BS21: 1 | BT21: 1 | BU21: 0 | BV21: 0 | BY21: 2 | CA21: 0 | CB21: DBE5O9AE5IZIBLA6S8UNJO2K9 | CI21: 0000 | CM21: 17 | CN21: D5B6FGJCS8AO1FCVGIC372Z95 | CO21: D5B6FGJCS8ICVMMGNWO7VCXYX | CP21: PH | CQ21: 0010 | CS21: S | CU21: L | DG21: 17 | DH21: 0ORGUNIT | DI21: 0PERS_AREA | DJ21: Personnel Area | DK21: 0000 | DL21: X | DM21: 1 | DN21: 0 | DO21: 0 | DT21: 0000 | EA21: 17 | EB21: D5ENPW16Z64KTT76FVH0UTIPL | EC21: D5B6FGJCS8OICL8J8854ES455 | ED21: 0 | EE21: 0 | EI21: 00 | EJ21: X | EK21: 0 | EL21: 0 | FY21: 16 | FZ21: ZZPERAR | GA21: 1 | GB21: M | GJ21: 0 | GL21: 0 | GN21: 0 | GO21: ZPersonnel Area | GP21: 60 | GS21: ZPERSAREA | HW21: 17 | HX21: 0000000042 | HY21: 00
B22: 0 | C22: DE0LR9Y5OPGMW2PREJBS9X8FT | D22: TRUE | E22: TRUE | F22: SAPBEXq0003 | G22: 2 | H22: 2 | I22: FALSE | L22: TRUE | M22: FALSE | O22: TRUE | P22: FALSE | Q22: 0 | S22: 5 | T22: TRUE | U22: FALSE | X22: FALSE | Y22: FALSE | Z22: FALSE | AE22: 19 | AF22: ZPRIM_ID | AG22: ZPrimary Employee ID | AH22: X | AK22: 0003 | AS22: 2 | AT22: 00 | AX22: 00000000 | AY22: K | AZ22: ZPRIM_ID | BA22: A | BD22: H | BJ22: 00000000 | BK22: 0000 | BM22: 0 | BR22: 1 | BS22: 1 | BT22: 1 | BU22: 0 | BV22: 0 | BY22: 2 | CA22: 0 | CB22: DBE5O9AE5J0A07LY3SA9M3GU1 | CI22: 0000 | CM22: 17 | CN22: D5B6FGJCS8AO1FCVGIC372Z95 | CO22: D5B6FGJCS8J4K8Y7ZG3TXSC8P | CP22: SE | CQ22: 0011 | CS22: S | CU22: L | DG22: 17 | DH22: 0ORGUNIT | DI22: 0PERS_SAREA | DJ22: Personnel Subarea | DK22: 0000 | DL22: X | DM22: 1 | DN22: 0 | DO22: 0 | DT22: 0000 | EA22: 17 | EB22: D5ENPW16Z65CIFIXREWMX8WZD | EC22: D5B6FGJCS8BFQ1OMS1RP9IDIX | EI22: 00 | EJ22: X | EK22: 0 | EL22: 0 | FY22: 21 | FZ22: ZS_DT_1 | GA22: 1 | GB22: P | GC22: I | GD22: EQ | GE22: 20120930 | GF22: 30/09/2012 | GJ22: 0 | GL22: 0 | GN22: 0 | GO22: Target date 1 | GP22: 60 | GS22: ZEMP_STRT | GT22: 20120930 | HW22: 17 | HX22: 0000000043 | HY22: 00
B23: 0 | C23: DE0LJZ6IGUGTDCE3K7214RMD5 | D23: TRUE | E23: TRUE | F23: SAPBEXq0004 | G23: 2 | H23: 2 | I23: FALSE | L23: TRUE | M23: FALSE | O23: TRUE | P23: FALSE | Q23: 0 | S23: 5 | T23: TRUE | U23: FALSE | X23: FALSE | Y23: FALSE | Z23: FALSE | AE23: 19 | AF23: 0EMPLGROUP | AG23: Employee Group | AH23: X | AK23: 0004 | AS23: 1 | AT23: 00 | AX23: 00000000 | AY23: K | AZ23: 0EMPLGROUP | BA23: A | BD23: H | BJ23: 00000000 | BK23: 0000 | BM23: 0 | BR23: 1 | BS23: 1 | BT23: 1 | BU23: 0 | BV23: 0 | BY23: 2 | CA23: 0 | CB23: DBE5O9AE5J11OTXPFBPVOIV3T | CI23: 0000 | CM23: 17 | CN23: D5B6FGJCS8AO1FCVGIC372Z95 | CO23: D5B6FGJCS8JW8V9ZAZJG07QIH | CP23: SR | CQ23: 0012 | CS23: S | CU23: L | DG23: 17 | DH23: 0ORGUNIT | DI23: 0PLANT | DJ23: Plant | DK23: 0000 | DL23: X | DM23: 0 | DN23: 0 | DO23: 0 | DT23: 0000 | EA23: 17 | EB23: D5ENPW16Z65CIFIXREWMX8WZD | EC23: D5B6FGJCS8C7EO0E3L7BBXRSP | EI23: 00 | EJ23: X | EK23: 0 | EL23: 0 | FY23: 21 | FZ23: ZBUDH | GA23: 1 | GB23: P | GC23: I | GD23: EQ | GE23: 20120930 | GF23: 30/09/2012 | GJ23: 0 | GL23: 0 | GN23: 0 | GO23: Master Data Key Date | GP23: 60 | GS23: 0DATE | GT23: 20120930 | HW23: 17 | HX23: 0000000021
B24: 0 | C24: DE0LJZ6IGUGTDCE3K7214RMD5 | D24: TRUE | E24: TRUE | F24: SAPBEXq0005 | G24: 2 | H24: 2 | I24: FALSE | L24: TRUE | M24: FALSE | O24: TRUE | P24: FALSE | Q24: 0 | S24: 5 | T24: TRUE | U24: FALSE | X24: FALSE | Y24: FALSE | Z24: FALSE | AE24: 19 | AF24: 0PERS_SAREA | AG24: Personnel Subarea | AH24: X | AK24: 0005 | AS24: 1 | AT24: 00 | AX24: 00000000 | AY24: K | AZ24: 0PERS_SAREA | BA24: A | BD24: H | BJ24: 00000000 | BK24: 0000 | BM24: 0 | BR24: 1 | BS24: 1 | BT24: 1 | BU24: 0 | BV24: 0 | BY24: 2 | CA24: 0 | CB24: DBE5O9AE5J1TDG9GQV5HQY9DL | CI24: 0000 | CM24: 17 | CN24: D5B6FGJCS8AO1FCVGIC372Z95 | CO24: D5B6FGJCS8KNXHLQMIZ22N4S9 | CP24: TS | CQ24: 0013 | CS24: S | CU24: L | DG24: 17 | DH24: 0ORGUNIT | DI24: 0PURCH_ORG | DJ24: Purchasing org. | DK24: 0000 | DL24: X | DM24: 0 | DN24: 0 | DO24: 0 | DT24: 0000 | EA24: 17 | EB24: D5ENPW16Z65CIFIXREWMX8WZD | EC24: D5B6FGJCS8CZ3AC5F4MXED62H | EI24: 00 | EJ24: X | EK24: 0 | EL24: 0 | FY24: 21 | FZ24: ZZPERAR | GA24: 1 | GB24: M | GJ24: 0 | GL24: 0 | GN24: 0 | GO24: ZPersonnel Area | GP24: 60 | GS24: ZPERSAREA | HW24: 17 | HX24: 0000000022
B25: 0 | C25: DE0LJZ6IGUGTDCE3K7214RMD5 | D25: TRUE | E25: TRUE | F25: SAPBEXq0006 | G25: 2 | H25: 2 | I25: FALSE | L25: TRUE | M25: FALSE | O25: TRUE | P25: FALSE | Q25: 0 | S25: 5 | T25: TRUE | U25: FALSE | X25: FALSE | Y25: FALSE | Z25: FALSE | AE25: 19 | AF25: 0ORGUNIT | AG25: Organizational Unit | AH25: X | AK25: 0006 | AM25: Land & Environmental Serv Org Struct | AR25: U | AS25: 1 | AT25: 02 | AU25: X | AV25: ORGEH | AW25: 000 | AX25: 20120331 | AY25: K | AZ25: 0ORGUNIT | BA25: A | BD25: H | BE25: 0ORGUNIT | BF25: A | BJ25: 00000000 | BK25: 0000 | BM25: 0 | BO25: 1 | BQ25: 2 | BR25: 1 | BS25: 1 | BT25: 1 | BU25: 0 | BV25: 0 | CA25: 0 | CB25: DBE5O9AE5J2L22L82EL3TDNND | CI25: 0000 | CM25: 17 | CN25: D5B6FGJCS8AO1FCVGIC372Z95 | CO25: D5B6FGJCS8LFM3XHY2EO52J21 | CP25: VE | CQ25: 0014 | CS25: S | CU25: L | DG25: 17 | DH25: 0ORGUNIT | DI25: 0PUR_GROUP | DJ25: Purchasing group | DK25: 0000 | DL25: X | DM25: 0 | DN25: 0 | DO25: 0 | DT25: 0000 | EA25: 17 | EB25: D5ENPW16Z65CIFIXREWMX8WZD | EC25: D5B6FGJCS8DQRWNWQO2JGSKC9 | EI25: 00 | EJ25: X | EK25: 0 | EL25: 0 | FY25: 32 | FZ25: ZS_DT_1 | GA25: 1 | GB25: P | GC25: I | GD25: EQ | GE25: 20121231 | GF25: 31/12/2012 | GJ25: 0 | GL25: 0 | GN25: 0 | GO25: Target date 1 | GP25: 60 | GS25: ZEMP_STRT | GT25: 20121231 | HW25: 17 | HX25: 0000000023
B26: 0 | C26: DE0LJZ6IGUGTDCE3K7214RMD5 | D26: TRUE | E26: TRUE | F26: SAPBEXq0007 | G26: 2 | H26: 2 | I26: FALSE | L26: TRUE | M26: FALSE | O26: TRUE | P26: FALSE | Q26: 0 | S26: 5 | T26: TRUE | U26: FALSE | X26: FALSE | Y26: FALSE | Z26: FALSE | AE26: 19 | AF26: D5B6FGJCS8AO1FCVGIC372Z95 | AG26: Job Families Incl Teach | AI26: X | AJ26: X | AK26: 0001 | AR26: U | AT26: 00 | AY26: K | AZ26: D5B6FGJCS8AO1FCVGIC372Z95 | BA26: A | BJ26: 00000000 | BK26: 0000 | BM26: 0 | BR26: 0 | BS26: 0 | BT26: 0 | BU26: 0 | BV26: 0 | CB26: D5B6FGJCS8AO1FCVGIC372Z95 | CI26: 0000 | CM26: 17 | CN26: D5B6FGJCS8AO1FCVGIC372Z95 | CO26: D5B6FGJCS8M7AQ999LUA7HXBT | CP26: Teachers | CQ26: 0015 | CS26: S | CU26: L | DG26: 17 | DH26: 0ORGUNIT | DI26: 0SALESORG | DJ26: Sales Organization | DK26: 0000 | DL26: X | DM26: 0 | DN26: 0 | DO26: 0 | DT26: 0000 | EA26: 17 | EB26: D5ENPW16Z65CIFIXREWMX8WZD | EC26: D5B6FGJCS8EIGIZO27I5J7YM1 | EI26: 00 | EJ26: X | EK26: 0 | EL26: 0 | FY26: 32 | FZ26: ZBUDH | GA26: 1 | GB26: P | GC26: I | GD26: EQ | GE26: 20121231 | GF26: 31/12/2012 | GJ26: 0 | GL26: 0 | GN26: 0 | GO26: Master Data Key Date | GP26: 60 | GS26: 0DATE | GT26: 20121231 | HW26: 17 | HX26: 0000010002 | HY26: DBE5O9AE5IU4J8ZVJGTD2OANT
B27: 0 | C27: DE0LJZ6IGUGTDCE3K7214RMD5 | D27: TRUE | E27: TRUE | F27: SAPBEXq0017 | G27: 2 | H27: 2 | I27: FALSE | L27: TRUE | M27: FALSE | O27: TRUE | P27: FALSE | Q27: 0 | S27: 5 | T27: TRUE | U27: FALSE | X27: FALSE | Y27: FALSE | Z27: FALSE | AE27: 19 | AF27: D5ENPW16Z63T56VF4C1ESE4FT | AG27: Breakdown Gender Contract FTPT | AI27: X | AJ27: Y | AK27: 0001 | AR27: U | AT27: 00 | AY27: K | AZ27: D5ENPW16Z63T56VF4C1ESE4FT | BA27: A | BJ27: 00000000 | BK27: 0000 | BL27: X | BM27: 0 | BR27: 0 | BS27: 0 | BT27: 0 | BU27: 0 | BV27: 0 | CB27: D5ENPW16Z63T56VF4C1ESE4FT | CI27: 0000 | CM27: 17 | CN27: D5B6FGJCS8AO1FCVGIC372Z95 | CO27: D5B6FGJCS8MYZCL0L59W9XBLL | CP27: Total Employees | CQ27: 0016 | CS27: F | CU27: L | DG27: 17 | DH27: 0ORGUNIT | DI27: 0SALES_GRP | DJ27: Sales group | DK27: 0000 | DL27: X | DM27: 0 | DN27: 0 | DO27: 0 | DT27: 0000 | EA27: 17 | EB27: D5ENPW16Z65CIFIXREWMX8WZD | EC27: D5B6FGJCS8FA55BFDQXRLNCVT | EI27: 00 | EJ27: X | EK27: 0 | EL27: 0 | FY27: 32 | FZ27: ZZPERAR | GA27: 1 | GB27: M | GJ27: 0 | GL27: 0 | GN27: 0 | GO27: ZPersonnel Area | GP27: 60 | GS27: ZPERSAREA | HW27: 17 | HX27: 0000000105
B28: 0 | C28: DE0LJZ6IGUGTDCE3K7214RMD5 | D28: TRUE | E28: TRUE | F28: SAPBEXq0018 | G28: 2 | H28: 2 | I28: FALSE | L28: TRUE | M28: FALSE | O28: TRUE | P28: FALSE | Q28: 0 | S28: 5 | T28: TRUE | U28: FALSE | X28: FALSE | Y28: FALSE | Z28: FALSE | AE28: 20 | AF28: ZPERID | AG28: NI Number | AH28: X | AK28: 0001 | AS28: 2 | AT28: 00 | AX28: 00000000 | AY28: K | AZ28: ZPERID | BA28: A | BD28: H | BJ28: 00000000 | BK28: 0000 | BM28: 0 | BR28: 1 | BS28: 1 | BT28: 1 | BU28: 0 | BV28: 0 | BY28: 2 | CA28: 0 | CB28: DBE5O9AE5IYQMYYFGPF1H8OAH | CI28: 0000 | CM28: 17 | CN28: D5B6FGJCS8AO1FCVGIC372Z95 | CO28: D5B6FGJCS8NQNYWRWOPICCPVD | CP28: All Employees | CQ28: 0017 | CR28: X | CS28: S | CU28: L | DG28: 17 | DH28: 0ORGUNIT | DI28: 0SALES_OFF | DJ28: Sales Office | DK28: 0000 | DL28: X | DM28: 0 | DN28: 0 | DO28: 0 | DT28: 0000 | EA28: 17 | EB28: D5ENPW16Z65CIFIXREWMX8WZD | EC28: D5B6FGJCS8G1TRN6PADDO2R5L | EI28: 00 | EJ28: X | EK28: 0 | EL28: 0 | FY28: 31 | FZ28: ZS_DT_1 | GA28: 1 | GB28: P | GC28: I | GD28: EQ | GE28: 20121231 | GF28: 31/12/2012 | GJ28: 0 | GL28: 0 | GN28: 0 | GO28: Target date 1 | GP28: 60 | GS28: ZEMP_STRT | GT28: 20121231 | HW28: 17 | HX28: 0000000106
B29: 0 | C29: DE0LJZ6IGUGTDCE3K7214RMD5 | D29: TRUE | E29: TRUE | F29: SAPBEXq0021 | G29: 2 | H29: 2 | I29: FALSE | L29: TRUE | M29: FALSE | O29: TRUE | P29: FALSE | Q29: 0 | S29: 5 | T29: TRUE | U29: FALSE | X29: FALSE | Y29: FALSE | Z29: FALSE | AE29: 20 | AF29: ZPERSAREA | AG29: ZPersonal Area | AH29: X | AK29: 0002 | AM29: Social Work | AS29: 5 | AT29: 00 | AX29: 00000000 | AY29: K | AZ29: ZPERSAREA | BA29: A | BD29: H | BJ29: 00000000 | BK29: 0000 | BM29: 0 | BO29: 1 | BR29: 1 | BS29: 1 | BT29: 1 | BU29: 0 | BV29: 0 | BY29: 2 | CA29: 0 | CB29: DBE5O9AE5IZIBLA6S8UNJO2K9 | CI29: 0000 | CM29: 17 | CN29: D5B6FGJCS8AO1FCVGIC372Z95 | CO29: D5B6FGJCS8OICL8J8854ES455 | CP29: Non WPBR | CQ29: 0018 | CS29: F | CU29: L | DG29: 18 | DH29: 0ORGUNIT | DI29: 0BBPPURGRPX | DJ29: Ind.Purchasing Group | DK29: 0000 | DL29: X | DM29: 2 | DN29: 0 | DO29: 0 | DT29: 0000 | EA29: 17 | EB29: D5ENPW16Z65CIFIXREWMX8WZD | EC29: D5B6FGJCS8GTIDYY0TSZQI5FD | EI29: 00 | EJ29: X | EK29: 0 | EL29: 0 | FY29: 31 | FZ29: ZBUDH | GA29: 1 | GB29: P | GC29: I | GD29: EQ | GE29: 20121231 | GF29: 31/12/2012 | GJ29: 0 | GL29: 0 | GN29: 0 | GO29: Master Data Key Date | GP29: 60 | GS29: 0DATE | GT29: 20121231 | HW29: 17 | HX29: 0000000112 | HY29: 0
B30: 0 | C30: DE0LJZ6IGUGTDCE3K7214RMD5 | D30: TRUE | E30: TRUE | F30: SAPBEXq0026 | G30: 2 | H30: 2 | I30: FALSE | L30: TRUE | M30: FALSE | O30: TRUE | P30: FALSE | Q30: 0 | S30: 5 | T30: TRUE | U30: FALSE | X30: FALSE | Y30: FALSE | Z30: FALSE | AE30: 20 | AF30: ZPRIM_ID | AG30: ZPrimary Employee ID | AH30: X | AK30: 0003 | AS30: 2 | AT30: 00 | AX30: 00000000 | AY30: K | AZ30: ZPRIM_ID | BA30: A | BD30: H | BJ30: 00000000 | BK30: 0000 | BM30: 0 | BR30: 1 | BS30: 1 | BT30: 1 | BU30: 0 | BV30: 0 | BY30: 2 | CA30: 0 | CB30: DBE5O9AE5J0A07LY3SA9M3GU1 | CI30: 0000 | CM30: 18 | CN30: D5ENPW16Z63T56VF4C1ESE4FT | CO30: D5ENPW16Z64KTT76FVH0UTIPL | CP30: Male Temp FT | CQ30: 0001 | CS30: S | CU30: L | CV30: X | CW30: IOBJ | CX30: Z_EMP_HCT | CZ30: Employee Headcount | DG30: 18 | DH30: 0ORGUNIT | DI30: 0BBPPURORGX | DJ30: Ind. Purchasing Org. | DK30: 0000 | DL30: X | DM30: 2 | DN30: 0 | DO30: 0 | DT30: 0000 | EA30: 17 | EB30: D5ENPW16Z65CIFIXREWMX8WZD | EC30: D5B6FGJCS8HL70APCD8LSXJP5 | EI30: 00 | EJ30: X | EK30: 0 | EL30: 0 | FY30: 31 | FZ30: ZZPERAR | GA30: 1 | GB30: M | GJ30: 0 | GL30: 0 | GN30: 0 | GO30: ZPersonnel Area | GP30: 60 | GS30: ZPERSAREA | HW30: 17 | HX30: 0000000200 | HY30: X
B31: 0 | C31: DBE5O9AE5J44FB8QPHGBY8G6X | D31: TRUE | E31: TRUE | F31: SAPBEXq0028 | G31: 2 | H31: 2 | I31: FALSE | L31: TRUE | M31: FALSE | O31: TRUE | P31: FALSE | Q31: 0 | S31: 5 | T31: TRUE | U31: FALSE | X31: FALSE | Y31: FALSE | Z31: FALSE | AE31: 20 | AF31: 0EMPLGROUP | AG31: Employee Group | AH31: X | AK31: 0004 | AS31: 1 | AT31: 00 | AX31: 00000000 | AY31: K | AZ31: 0EMPLGROUP | BA31: A | BD31: H | BJ31: 00000000 | BK31: 0000 | BM31: 0 | BR31: 1 | BS31: 1 | BT31: 1 | BU31: 0 | BV31: 0 | BY31: 2 | CA31: 0 | CB31: DBE5O9AE5J11OTXPFBPVOIV3T | CI31: 0000 | CM31: 18 | CN31: D5B6FGJCS8AO1FCVGIC372Z95 | CO31: D5B6FGJCS8BFQ1OMS1RP9IDIX | CP31: BS | CQ31: 0001 | CS31: S | CU31: L | DG31: 18 | DH31: 0ORGUNIT | DI31: 0BBP_BUYID | DJ31: Buyer ID | DK31: 0000 | DL31: X | DM31: 5 | DN31: 0 | DO31: 0 | DT31: 0000 | EA31: 17 | EB31: D5ENPW16Z65CIFIXREWMX8WZD | EC31: D5B6FGJCS8ICVMMGNWO7VCXYX | EI31: 00 | EJ31: X | EK31: 0 | EL31: 0 | FY31: 33 | FZ31: ZS_DT_1 | GA31: 1 | GB31: P | GC31: I | GD31: EQ | GE31: 20121231 | GF31: 31/12/2012 | GJ31: 0 | GL31: 0 | GN31: 0 | GO31: Target date 1 | GP31: 60 | GS31: ZEMP_STRT | GT31: 20121231 | HW31: 17 | HX31: 0000004000 | HY31: X
B32: 0 | C32: DBE5O9AE5J44FB8QPHGBY8G6X | D32: TRUE | E32: TRUE | F32: SAPBEXq0029 | G32: 2 | H32: 2 | I32: FALSE | L32: TRUE | M32: FALSE | O32: TRUE | P32: FALSE | Q32: 0 | S32: 5 | T32: TRUE | U32: FALSE | X32: FALSE | Y32: FALSE | Z32: FALSE | AE32: 20 | AF32: 0PERS_SAREA | AG32: Personnel Subarea | AH32: X | AK32: 0005 | AS32: 1 | AT32: 00 | AX32: 00000000 | AY32: K | AZ32: 0PERS_SAREA | BA32: A | BD32: H | BJ32: 00000000 | BK32: 0000 | BM32: 0 | BR32: 1 | BS32: 1 | BT32: 1 | BU32: 0 | BV32: 0 | BY32: 2 | CA32: 0 | CB32: DBE5O9AE5J1TDG9GQV5HQY9DL | CI32: 0000 | CM32: 18 | CN32: D5ENPW16Z63T56VF4C1ESE4FT | CO32: D5ENPW16Z65CIFIXREWMX8WZD | CP32: Male Temp PT | CQ32: 0002 | CS32: S | CU32: L | CV32: X | CW32: IOBJ | CX32: Z_EMP_HCT | CZ32: Employee Headcount | DG32: 18 | DH32: 0ORGUNIT | DI32: 0BBP_ISCOMP | DJ32: Organizational Unit is Company | DK32: 0000 | DL32: X | DM32: 1 | DN32: 0 | DO32: 0 | DT32: 0000 | EA32: 17 | EB32: D5ENPW16Z65CIFIXREWMX8WZD | EC32: D5B6FGJCS8J4K8Y7ZG3TXSC8P | EI32: 00 | EJ32: X | EK32: 0 | EL32: 0 | FY32: 33 | FZ32: ZBUDH | GA32: 1 | GB32: P | GC32: I | GD32: EQ | GE32: 20121231 | GF32: 31/12/2012 | GJ32: 0 | GL32: 0 | GN32: 0 | GO32: Master Data Key Date | GP32: 60 | GS32: 0DATE | GT32: 20121231 | HW32: 17 | HX32: 0000009001 | HY32: QSW Breakdown By Job Family excl cas sess
B33: 0 | C33: DBE5O9AE5J44FB8QPHGBY8G6X | D33: TRUE | E33: TRUE | F33: SAPBEXq0030 | G33: 2 | H33: 2 | I33: FALSE | L33: TRUE | M33: FALSE | O33: TRUE | P33: FALSE | Q33: 0 | S33: 5 | T33: TRUE | U33: FALSE | X33: FALSE | Y33: FALSE | Z33: FALSE | AE33: 20 | AF33: 0ORGUNIT | AG33: Organizational Unit | AH33: X | AK33: 0006 | AR33: U | AS33: 1 | AT33: 02 | AU33: X | AV33: ORGEH | AW33: 000 | AX33: 20120331 | AY33: K | AZ33: 0ORGUNIT | BA33: A | BD33: H | BE33: 0ORGUNIT | BF33: A | BJ33: 00000000 | BK33: 0000 | BM33: 0 | BQ33: 2 | BR33: 1 | BS33: 1 | BT33: 1 | BU33: 0 | BV33: 0 | CA33: 0 | CB33: DBE5O9AE5J2L22L82EL3TDNND | CI33: 0000 | CM33: 18 | CN33: D5B6FGJCS8AO1FCVGIC372Z95 | CO33: D5B6FGJCS8C7EO0E3L7BBXRSP | CP33: CV | CQ33: 0002 | CS33: S | CU33: L | DG33: 18 | DH33: 0ORGUNIT | DI33: 0BUS_AREA | DJ33: Business area | DK33: 0000 | DL33: X | DM33: 0 | DN33: 0 | DO33: 0 | DT33: 0000 | EA33: 17 | EB33: D5ENPW16Z65CIFIXREWMX8WZD | EC33: D5B6FGJCS8JW8V9ZAZJG07QIH | EI33: 00 | EJ33: X | EK33: 0 | EL33: 0 | FY33: 33 | FZ33: ZZPERAR | GA33: 1 | GB33: M | GJ33: 0 | GL33: 0 | GN33: 0 | GO33: ZPersonnel Area | GP33: 60 | GS33: ZPERSAREA | HW33: 17 | HX33: 0000000114 | HY33: 1
B34: 0 | C34: DBE5O9AE5J44FB8QPHGBY8G6X | D34: TRUE | E34: TRUE | F34: SAPBEXq0031 | G34: 2 | H34: 2 | I34: FALSE | L34: TRUE | M34: FALSE | O34: TRUE | P34: FALSE | Q34: 0 | S34: 5 | T34: TRUE | U34: FALSE | X34: FALSE | Y34: FALSE | Z34: FALSE | AE34: 20 | AF34: D5B6FGJCS8AO1FCVGIC372Z95 | AG34: Job Families Incl Teach | AI34: X | AJ34: X | AK34: 0001 | AR34: U | AT34: 00 | AY34: K | AZ34: D5B6FGJCS8AO1FCVGIC372Z95 | BA34: A | BJ34: 00000000 | BK34: 0000 | BM34: 0 | BR34: 0 | BS34: 0 | BT34: 0 | BU34: 0 | BV34: 0 | CB34: D5B6FGJCS8AO1FCVGIC372Z95 | CI34: 0000 | CM34: 18 | CN34: D5ENPW16Z63T56VF4C1ESE4FT | CO34: D5ENPW16Z66471UP2YC8ZOB95 | CP34: Male Perm FT | CQ34: 0003 | CS34: S | CU34: L | CV34: X | CW34: IOBJ | CX34: Z_EMP_HCT | CZ34: Employee Headcount | DG34: 18 | DH34: 0ORGUNIT | DI34: 0COMP_CODE | DJ34: Company code | DK34: 0000 | DL34: X | DM34: 0 | DN34: 0 | DO34: 0 | DT34: 0000 | EA34: 17 | EB34: D5ENPW16Z65CIFIXREWMX8WZD | EC34: D5B6FGJCS8KNXHLQMIZ22N4S9 | EI34: 00 | EJ34: X | EK34: 0 | EL34: 0 | FY34: 34 | FZ34: ZS_DT_1 | GA34: 1 | GB34: P | GC34: I | GD34: EQ | GE34: 20121231 | GF34: 31/12/2012 | GJ34: 0 | GL34: 0 | GN34: 0 | GO34: Target date 1 | GP34: 60 | GS34: ZEMP_STRT | GT34: 20121231 | HW34: 18 | HX34: 0000000100 | HY34: X
B35: 0 | C35: DBE5O9AE5J44FB8QPHGBY8G6X | D35: TRUE | E35: TRUE | F35: SAPBEXq0032 | G35: 2 | H35: 2 | I35: FALSE | L35: TRUE | M35: FALSE | O35: TRUE | P35: FALSE | Q35: 0 | S35: 5 | T35: TRUE | U35: FALSE | X35: FALSE | Y35: FALSE | Z35: FALSE | AE35: 20 | AF35: D5ENPW16Z63T56VF4C1ESE4FT | AG35: Breakdown Gender Contract FTPT | AI35: X | AJ35: Y | AK35: 0001 | AR35: U | AT35: 00 | AY35: K | AZ35: D5ENPW16Z63T56VF4C1ESE4FT | BA35: A | BJ35: 00000000 | BK35: 0000 | BL35: X | BM35: 0 | BR35: 0 | BS35: 0 | BT35: 0 | BU35: 0 | BV35: 0 | CB35: D5ENPW16Z63T56VF4C1ESE4FT | CI35: 0000 | CM35: 18 | CN35: D5B6FGJCS8AO1FCVGIC372Z95 | CO35: D5B6FGJCS8CZ3AC5F4MXED62H | CP35: CA | CQ35: 0003 | CS35: S | CU35: L | DG35: 18 | DH35: 0ORGUNIT | DI35: 0CO_MST_AR | DJ35: Controlling Area of Master Cost Center | DK35: 0000 | DL35: X | DM35: 0 | DN35: 0 | DO35: 0 | DT35: 0000 | EA35: 17 | EB35: D5ENPW16Z65CIFIXREWMX8WZD | EC35: D5B6FGJCS8LFM3XHY2EO52J21 | EI35: 00 | EJ35: X | EK35: 0 | EL35: 0 | FY35: 34 | FZ35: ZBUDH | GA35: 1 | GB35: P | GC35: I | GD35: EQ | GE35: 20121231 | GF35: 31/12/2012 | GJ35: 0 | GL35: 0 | GN35: 0 | GO35: Master Data Key Date | GP35: 60 | GS35: 0DATE | GT35: 20121231 | HW35: 18 | HX35: 0000000108
B36: 0 | C36: DBE5O9AE5J44FB8QPHGBY8G6X | D36: TRUE | E36: TRUE | F36: SAPBEXq0033 | G36: 2 | H36: 2 | I36: FALSE | L36: TRUE | M36: FALSE | O36: TRUE | P36: FALSE | Q36: 0 | S36: 5 | T36: TRUE | U36: FALSE | X36: FALSE | Y36: FALSE | Z36: FALSE | AE36: 15 | AF36: ZPERID | AG36: NI Number | AH36: X | AK36: 0001 | AS36: 2 | AT36: 00 | AX36: 00000000 | AY36: K | AZ36: ZPERID | BA36: A | BD36: H | BJ36: 00000000 | BK36: 0000 | BM36: 0 | BR36: 1 | BS36: 1 | BT36: 1 | BU36: 0 | BV36: 0 | BY36: 2 | CA36: 0 | CB36: DBE5O9AE5IYQMYYFGPF1H8OAH | CI36: 0000 | CM36: 18 | CN36: D5ENPW16Z63T56VF4C1ESE4FT | CO36: D5ENPW16Z66VVO6GEHRV23PIX | CP36: Male Perm PT | CQ36: 0004 | CS36: S | CU36: L | CV36: X | CW36: IOBJ | CX36: Z_EMP_HCT | CZ36: Employee Headcount | DG36: 18 | DH36: 0ORGUNIT | DI36: 0CRMSALGRPX | DJ36: Sls Group: Indicator | DK36: 0000 | DL36: X | DM36: 2 | DN36: 0 | DO36: 0 | DT36: 0000 | EA36: 17 | EB36: D5ENPW16Z65CIFIXREWMX8WZD | EC36: D5B6FGJCS8M7AQ999LUA7HXBT | EI36: 00 | EJ36: X | EK36: 0 | EL36: 0 | FY36: 34 | FZ36: ZZPERAR | GA36: 1 | GB36: M | GJ36: 0 | GL36: 0 | GN36: 0 | GO36: ZPersonnel Area | GP36: 60 | GS36: ZPERSAREA | HW36: 18 | HX36: 0000000101
B37: 0 | C37: DBE5O9AE5J44FB8QPHGBY8G6X | D37: TRUE | E37: TRUE | F37: SAPBEXq0034 | G37: 2 | H37: 2 | I37: FALSE | L37: TRUE | M37: FALSE | O37: TRUE | P37: FALSE | Q37: 0 | S37: 5 | T37: TRUE | U37: FALSE | X37: FALSE | Y37: FALSE | Z37: FALSE | AE37: 15 | AF37: ZPERSAREA | AG37: ZPersonal Area | AH37: X | AK37: 0002 | AM37: Chief Executive | AS37: 5 | AT37: 00 | AX37: 00000000 | AY37: K | AZ37: ZPERSAREA | BA37: A | BD37: H | BJ37: 00000000 | BK37: 0000 | BM37: 0 | BO37: 1 | BR37: 1 | BS37: 1 | BT37: 1 | BU37: 0 | BV37: 0 | BY37: 2 | CA37: 0 | CB37: DBE5O9AE5IZIBLA6S8UNJO2K9 | CI37: 0000 | CM37: 18 | CN37: D5B6FGJCS8AO1FCVGIC372Z95 | CO37: D5B6FGJCS8DQRWNWQO2JGSKC9 | CP37: CF | CQ37: 0004 | CS37: S | CU37: L | DG37: 18 | DH37: 0ORGUNIT | DI37: 0CRMSALOFFX | DJ37: Sls Office:Indicator | DK37: 0000 | DL37: X | DM37: 2 | DN37: 0 | DO37: 0 | DT37: 0000 | EA37: 17 | EB37: D5ENPW16Z65CIFIXREWMX8WZD | EC37: D5B6FGJCS8MYZCL0L59W9XBLL | ED37: 0 | EE37: 0 | EI37: 00 | EJ37: X | EK37: 0 | EL37: 0 | FY37: 35 | FZ37: ZS_DT_1 | GA37: 1 | GB37: P | GC37: I | GD37: EQ | GE37: 20121231 | GF37: 31/12/2012 | GJ37: 0 | GL37: 0 | GN37: 0 | GO37: Target date 1 | GP37: 60 | GS37: ZEMP_STRT | GT37: 20121231 | HW37: 18 | HX37: 0000000104 | HY37: 1
B38: 0 | C38: DBE5O9AE5J44FB8QPHGBY8G6X | D38: TRUE | E38: TRUE | F38: SAPBEXq0035 | G38: 2 | H38: 2 | I38: FALSE | L38: TRUE | M38: FALSE | O38: TRUE | P38: FALSE | Q38: 0 | S38: 5 | T38: TRUE | U38: FALSE | X38: FALSE | Y38: FALSE | Z38: FALSE | AE38: 15 | AF38: ZPRIM_ID | AG38: ZPrimary Employee ID | AH38: X | AK38: 0003 | AS38: 2 | AT38: 00 | AX38: 00000000 | AY38: K | AZ38: ZPRIM_ID | BA38: A | BD38: H | BJ38: 00000000 | BK38: 0000 | BM38: 0 | BR38: 1 | BS38: 1 | BT38: 1 | BU38: 0 | BV38: 0 | BY38: 2 | CA38: 0 | CB38: DBE5O9AE5J0A07LY3SA9M3GU1 | CI38: 0000 | CM38: 18 | CN38: D5B6FGJCS8AO1FCVGIC372Z95 | CO38: D5B6FGJCS8EIGIZO27I5J7YM1 | CP38: CU | CQ38: 0005 | CS38: S | CU38: L | DG38: 18 | DH38: 0ORGUNIT | DI38: 0CRMSALORGX | DJ38: Sales Org. Indicator | DK38: 0000 | DL38: X | DM38: 2 | DN38: 0 | DO38: 0 | DT38: 0000 | EA38: 17 | EB38: D5ENPW16Z65CIFIXREWMX8WZD | EC38: D5B6FGJCS8NQNYWRWOPICCPVD | EI38: 00 | EJ38: X | EK38: 0 | EL38: 0 | FY38: 35 | FZ38: ZBUDH | GA38: 1 | GB38: P | GC38: I | GD38: EQ | GE38: 20121231 | GF38: 31/12/2012 | GJ38: 0 | GL38: 0 | GN38: 0 | GO38: Master Data Key Date | GP38: 60 | GS38: 0DATE | GT38: 20121231 | HW38: 18 | HX38: 0000000103
B39: 0 | C39: DBE5O9AE5J44FB8QPHGBY8G6X | D39: TRUE | E39: TRUE | F39: SAPBEXq0036 | G39: 2 | H39: 2 | I39: FALSE | L39: TRUE | M39: FALSE | O39: TRUE | P39: FALSE | Q39: 0 | S39: 5 | T39: TRUE | U39: FALSE | X39: FALSE | Y39: FALSE | Z39: FALSE | AE39: 15 | AF39: 0EMPLGROUP | AG39: Employee Group | AH39: X | AK39: 0004 | AS39: 1 | AT39: 00 | AX39: 00000000 | AY39: K | AZ39: 0EMPLGROUP | BA39: A | BD39: H | BJ39: 00000000 | BK39: 0000 | BM39: 0 | BR39: 1 | BS39: 1 | BT39: 1 | BU39: 0 | BV39: 0 | BY39: 2 | CA39: 0 | CB39: DBE5O9AE5J11OTXPFBPVOIV3T | CI39: 0000 | CM39: 18 | CN39: D5ENPW16Z63T56VF4C1ESE4FT | CO39: D5ENPW16Z67NKAI7Q17H4J3SP | CP39: Female Temp FT | CQ39: 0005 | CS39: S | CU39: L | CV39: X | CW39: IOBJ | CX39: Z_EMP_HCT | CZ39: Employee Headcount | DG39: 18 | DH39: 0ORGUNIT | DI39: 0CRMSRVTGRP | DJ39: Ex. CRM Service Org. | DK39: 0000 | DL39: X | DM39: 1 | DN39: 0 | DO39: 0 | DT39: 0000 | EA39: 17 | EB39: D5ENPW16Z65CIFIXREWMX8WZD | EC39: D5B6FGJCS8OICL8J8854ES455 | ED39: 0 | EE39: 0 | EI39: 00 | EJ39: X | EK39: 0 | EL39: 0 | FY39: 35 | FZ39: ZZPERAR | GA39: 1 | GB39: M | GJ39: 0 | GL39: 0 | GN39: 0 | GO39: ZPersonnel Area | GP39: 60 | GS39: ZPERSAREA | HW39: 18 | HX39: 0000000102 | HY39: 1
B40: 0 | C40: DBE5O9AE5J44FB8QPHGBY8G6X | D40: TRUE | E40: TRUE | F40: SAPBEXq0037 | G40: 2 | H40: 2 | I40: FALSE | L40: TRUE | M40: FALSE | O40: TRUE | P40: FALSE | Q40: 0 | S40: 5 | T40: TRUE | U40: FALSE | X40: FALSE | Y40: FALSE | Z40: FALSE | AE40: 15 | AF40: 0PERS_SAREA | AG40: Personnel Subarea | AH40: X | AK40: 0005 | AS40: 1 | AT40: 00 | AX40: 00000000 | AY40: K | AZ40: 0PERS_SAREA | BA40: A | BD40: H | BJ40: 00000000 | BK40: 0000 | BM40: 0 | BR40: 1 | BS40: 1 | BT40: 1 | BU40: 0 | BV40: 0 | BY40: 2 | CA40: 0 | CB40: DBE5O9AE5J1TDG9GQV5HQY9DL | CI40: 0000 | CM40: 18 | CN40: D5ENPW16Z63T56VF4C1ESE4FT | CO40: D5ENPW16Z68F8WTZ1KN36YI2H | CP40: Female Temp PT | CQ40: 0006 | CS40: S | CU40: L | CV40: X | CW40: IOBJ | CX40: Z_EMP_HCT | CZ40: Employee Headcount | DG40: 18 | DH40: 0ORGUNIT | DI40: 0CRM_SALGRP | DJ40: CRM Sales Group | DK40: 0000 | DL40: X | DM40: 1 | DN40: 0 | DO40: 0 | DT40: 0000 | EA40: 17 | EB40: D5ENPW16Z66471UP2YC8ZOB95 | EC40: D5B6FGJCS8BFQ1OMS1RP9IDIX | EI40: 00 | EJ40: X | EK40: 0 | EL40: 0 | FY40: 36 | FZ40: ZS_DT_1 | GA40: 1 | GB40: P | GC40: I | GD40: EQ | GE40: 20121231 | GF40: 31/12/2012 | GJ40: 0 | GL40: 0 | GN40: 0 | GO40: Target date 1 | GP40: 60 | GS40: ZEMP_STRT | GT40: 20121231 | HW40: 18 | HX40: 0000009000
B41: 0 | C41: DBE5O9AE5J44FB8QPHGBY8G6X | D41: TRUE | E41: TRUE | F41: SAPBEXq0038 | G41: 2 | H41: 2 | I41: FALSE | L41: TRUE | M41: FALSE | O41: TRUE | P41: FALSE | Q41: 0 | S41: 5 | T41: TRUE | U41: FALSE | X41: FALSE | Y41: FALSE | Z41: FALSE | AE41: 15 | AF41: 0ORGUNIT | AG41: Organizational Unit | AH41: X | AK41: 0006 | AR41: U | AS41: 1 | AT41: 02 | AU41: X | AV41: ORGEH | AW41: 000 | AX41: 20120930 | AY41: K | AZ41: 0ORGUNIT | BA41: A | BD41: H | BE41: 0ORGUNIT | BF41: A | BJ41: 00000000 | BK41: 0000 | BM41: 0 | BQ41: 2 | BR41: 1 | BS41: 1 | BT41: 1 | BU41: 0 | BV41: 0 | CA41: 0 | CB41: DBE5O9AE5J2L22L82EL3TDNND | CI41: 0000 | CM41: 18 | CN41: D5B6FGJCS8AO1FCVGIC372Z95 | CO41: D5B6FGJCS8FA55BFDQXRLNCVT | CP41: CR | CQ41: 0006 | CS41: S | CU41: L | DG41: 18 | DH41: 0ORGUNIT | DI41: 0CRM_SALOFF | DJ41: CRM Sales Office | DK41: 0000 | DL41: X | DM41: 1 | DN41: 0 | DO41: 0 | DT41: 0000 | EA41: 17 | EB41: D5ENPW16Z66471UP2YC8ZOB95 | EC41: D5B6FGJCS8C7EO0E3L7BBXRSP | EI41: 00 | EJ41: X | EK41: 0 | EL41: 0 | FY41: 36 | FZ41: ZBUDH | GA41: 1 | GB41: P | GC41: I | GD41: EQ | GE41: 20121231 | GF41: 31/12/2012 | GJ41: 0 | GL41: 0 | GN41: 0 | GO41: Master Data Key Date | GP41: 60 | GS41: 0DATE | GT41: 20121231 | HW41: 18 | HX41: 0000000107 | HY41: DBE5O9AE5IU4J8ZVJGTD2OANT
B42: 0 | C42: DBE5O9AE5J44FB8QPHGBY8G6X | D42: TRUE | E42: TRUE | F42: SAPBEXq0039 | G42: 2 | H42: 2 | I42: FALSE | L42: TRUE | M42: FALSE | O42: TRUE | P42: FALSE | Q42: 0 | S42: 5 | T42: TRUE | U42: FALSE | X42: FALSE | Y42: FALSE | Z42: FALSE | AE42: 15 | AF42: D5B6FGJCS8AO1FCVGIC372Z95 | AG42: Job Families Incl Teach | AI42: X | AJ42: X | AK42: 0001 | AR42: U | AT42: 00 | AY42: K | AZ42: D5B6FGJCS8AO1FCVGIC372Z95 | BA42: A | BJ42: 00000000 | BK42: 0000 | BM42: 0 | BR42: 0 | BS42: 0 | BT42: 0 | BU42: 0 | BV42: 0 | CB42: D5B6FGJCS8AO1FCVGIC372Z95 | CI42: 0000 | CM42: 18 | CN42: D5ENPW16Z63T56VF4C1ESE4FT | CO42: D5ENPW16Z696XJ5QD42P9DWC9 | CP42: Female Perm FT | CQ42: 0007 | CS42: S | CU42: L | CV42: X | CW42: IOBJ | CX42: Z_EMP_HCT | CZ42: Employee Headcount | DG42: 18 | DH42: 0ORGUNIT | DI42: 0CRM_SALORG | DJ42: CRM Sales Org. | DK42: 0000 | DL42: X | DM42: 1 | DN42: 0 | DO42: 0 | DT42: 0000 | EA42: 17 | EB42: D5ENPW16Z66471UP2YC8ZOB95 | EC42: D5B6FGJCS8CZ3AC5F4MXED62H | EI42: 00 | EJ42: X | EK42: 0 | EL42: 0 | FY42: 36 | FZ42: ZZPERAR | GA42: 1 | GB42: M | GJ42: 0 | GL42: 0 | GN42: 0 | GO42: ZPersonnel Area | GP42: 60 | GS42: ZPERSAREA | HW42: 18 | HX42: 0000010001 | HY42: DBE5O9AE5J44FB8QPHGBY8G6X
B43: 0 | C43: DE0LR9Y5OPGMW2PREJBS9X8FT | D43: TRUE | E43: TRUE | F43: SAPBEXq0040 | G43: 2 | H43: 2 | I43: FALSE | L43: TRUE | M43: FALSE | O43: TRUE | P43: FALSE | Q43: 0 | S43: 5 | T43: TRUE | U43: FALSE | X43: FALSE | Y43: FALSE | Z43: FALSE | AE43: 15 | AF43: D5ENPW16Z63T56VF4C1ESE4FT | AG43: Breakdown Gender Contract FTPT | AI43: X | AJ43: Y | AK43: 0001 | AR43: U | AT43: 00 | AY43: K | AZ43: D5ENPW16Z63T56VF4C1ESE4FT | BA43: A | BJ43: 00000000 | BK43: 0000 | BL43: X | BM43: 0 | BR43: 0 | BS43: 0 | BT43: 0 | BU43: 0 | BV43: 0 | CB43: D5ENPW16Z63T56VF4C1ESE4FT | CI43: 0000 | CM43: 18 | CN43: D5B6FGJCS8AO1FCVGIC372Z95 | CO43: D5B6FGJCS8G1TRN6PADDO2R5L | CP43: IP | CQ43: 0007 | CS43: S | CU43: L | DG43: 18 | DH43: 0ORGUNIT | DI43: 0CRM_SRVORG | DJ43: Service Org. CRM | DK43: 0000 | DL43: X | DM43: 1 | DN43: 0 | DO43: 0 | DT43: 0000 | EA43: 17 | EB43: D5ENPW16Z66471UP2YC8ZOB95 | EC43: D5B6FGJCS8DQRWNWQO2JGSKC9 | EI43: 00 | EJ43: X | EK43: 0 | EL43: 0 | FY43: 44 | FZ43: ZS_DT_1 | GA43: 1 | GB43: P | GC43: I | GD43: EQ | GE43: 20130401 | GF43: 01/04/2013 | GJ43: 0 | GL43: 0 | GN43: 0 | GO43: Target date 1 | GP43: 60 | GS43: ZEMP_STRT | GT43: 20130401 | HW43: 18 | HX43: 0000010003 | HY43: ZPA_O07
B44: 0 | C44: DE0LR9Y5OPGMW2PREJBS9X8FT | D44: TRUE | E44: FALSE | F44: SAPBEXq0041 | G44: 0 | H44: 0 | I44: FALSE | L44: TRUE | M44: FALSE | O44: TRUE | P44: FALSE | Q44: 2 | S44: 5 | T44: TRUE | U44: FALSE | Y44: FALSE | AE44: 16 | AF44: ZPERID | AG44: NI Number | AH44: X | AK44: 0001 | AS44: 2 | AT44: 00 | AX44: 00000000 | AY44: K | AZ44: ZPERID | BA44: A | BD44: H | BJ44: 00000000 | BK44: 0000 | BM44: 0 | BR44: 1 | BS44: 1 | BT44: 1 | BU44: 0 | BV44: 0 | BY44: 2 | CA44: 0 | CB44: DBE5O9AE5IYQMYYFGPF1H8OAH | CI44: 0000 | CM44: 18 | CN44: D5ENPW16Z63T56VF4C1ESE4FT | CO44: D5ENPW16Z69YM5HHONIBBTAM1 | CP44: Female Perm PT | CQ44: 0008 | CS44: S | CU44: L | CV44: X | CW44: IOBJ | CX44: Z_EMP_HCT | CZ44: Employee Headcount | DG44: 18 | DH44: 0ORGUNIT | DI44: 0LOGSYS | DJ44: Source System | DK44: 0000 | DL44: X | DM44: 1 | DN44: 0 | DO44: 0 | DT44: 0000 | EA44: 17 | EB44: D5ENPW16Z66471UP2YC8ZOB95 | EC44: D5B6FGJCS8EIGIZO27I5J7YM1 | EI44: 00 | EJ44: X | EK44: 0 | EL44: 0 | FY44: 44 | FZ44: ZS_PSAR2 | GA44: 1 | GB44: P | GJ44: 0 | GL44: 0 | GN44: 0 | GO44: Pers. Sub-Area - optional | GP44: 60 | GS44: 0PERS_SAREA | HW44: 18 | HX44: 0000000010
B45: 0 | C45: DB7KNG7ZEHU4RTWELJ3T28BG9 | D45: TRUE | E45: TRUE | F45: SAPBEXq0042 | G45: 2 | H45: 2 | I45: FALSE | L45: TRUE | M45: FALSE | O45: TRUE | P45: FALSE | Q45: 0 | S45: 5 | T45: TRUE | U45: FALSE | X45: FALSE | Y45: FALSE | Z45: FALSE | AE45: 16 | AF45: ZPERSAREA | AG45: ZPersonal Area | AH45: X | AK45: 0002 | AM45: Development and Regeneration | AS45: 5 | AT45: 00 | AX45: 00000000 | AY45: K | AZ45: ZPERSAREA | BA45: A | BD45: H | BJ45: 00000000 | BK45: 0000 | BM45: 0 | BO45: 1 | BR45: 1 | BS45: 1 | BT45: 1 | BU45: 0 | BV45: 0 | BY45: 2 | CA45: 0 | CB45: DBE5O9AE5IZIBLA6S8UNJO2K9 | CI45: 0000 | CM45: 18 | CN45: D5B6FGJCS8AO1FCVGIC372Z95 | CO45: D5B6FGJCS8GTIDYY0TSZQI5FD | CP45: LS | CQ45: 0008 | CS45: S | CU45: L | DG45: 18 | DH45: 0ORGUNIT | DI45: 0MAST_CCTR | DJ45: Master Cost Center | DK45: 0000 | DL45: X | DM45: 0 | DN45: 0 | DO45: 0 | DT45: 0000 | EA45: 17 | EB45: D5ENPW16Z66471UP2YC8ZOB95 | EC45: D5B6FGJCS8FA55BFDQXRLNCVT | EI45: 00 | EJ45: X | EK45: 0 | EL45: 0 | FY45: 44 | FZ45: ZP_ORGUN | GA45: 2 | GB45: M | GJ45: 0 | GL45: 0 | GN45: 0 | GO45: Org Unit Hierarchy (Selection option, optional) | GP45: 60 | GS45: 0ORGUNIT | HW45: 18 | HX45: 0000000109 | HY45: 0
Z46: FALSE | AE46: 16 | AF46: ZPRIM_ID | AG46: ZPrimary Employee ID | AH46: X | AK46: 0003 | AS46: 2 | AT46: 00 | AX46: 00000000 | AY46: K | AZ46: ZPRIM_ID | BA46: A | BD46: H | BJ46: 00000000 | BK46: 0000 | BM46: 0 | BR46: 1 | BS46: 1 | BT46: 1 | BU46: 0 | BV46: 0 | BY46: 2 | CA46: 0 | CB46: DBE5O9AE5J0A07LY3SA9M3GU1 | CI46: 0000 | CM46: 18 | CN46: D5B6FGJCS8AO1FCVGIC372Z95 | CO46: D5B6FGJCS8HL70APCD8LSXJP5 | CP46: PC | CQ46: 0009 | CS46: S | CU46: L | DG46: 18 | DH46: 0ORGUNIT | DI46: 0PERS_AREA | DJ46: Personnel Area | DK46: 0000 | DL46: X | DM46: 1 | DN46: 0 | DO46: 0 | DT46: 0000 | EA46: 17 | EB46: D5ENPW16Z66471UP2YC8ZOB95 | EC46: D5B6FGJCS8G1TRN6PADDO2R5L | EI46: 00 | EJ46: X | EK46: 0 | EL46: 0 | FY46: 44 | FZ46: ZBUDH | GA46: 1 | GB46: P | GC46: I | GD46: EQ | GE46: 20130401 | GF46: 01/04/2013 | GJ46: 0 | GL46: 0 | GN46: 0 | GO46: Master Data Key Date | GP46: 60 | GS46: 0DATE | GT46: 20130401 | HW46: 18 | HX46: 0000000113
AE47: 16 | AF47: 0EMPLGROUP | AG47: Employee Group | AH47: X | AK47: 0004 | AS47: 1 | AT47: 00 | AX47: 00000000 | AY47: K | AZ47: 0EMPLGROUP | BA47: A | BD47: H | BJ47: 00000000 | BK47: 0000 | BM47: 0 | BR47: 1 | BS47: 1 | BT47: 1 | BU47: 0 | BV47: 0 | BY47: 2 | CA47: 0 | CB47: DBE5O9AE5J11OTXPFBPVOIV3T | CI47: 0000 | CM47: 18 | CN47: D5B6FGJCS8AO1FCVGIC372Z95 | CO47: D5B6FGJCS8ICVMMGNWO7VCXYX | CP47: PH | CQ47: 0010 | CS47: S | CU47: L | DG47: 18 | DH47: 0ORGUNIT | DI47: 0PERS_SAREA | DJ47: Personnel Subarea | DK47: 0000 | DL47: X | DM47: 1 | DN47: 0 | DO47: 0 | DT47: 0000 | EA47: 17 | EB47: D5ENPW16Z66471UP2YC8ZOB95 | EC47: D5B6FGJCS8GTIDYY0TSZQI5FD | EI47: 00 | EJ47: X | EK47: 0 | EL47: 0 | FY47: 44 | FZ47: ZZPERAR | GA47: 1 | GB47: M | GJ47: 0 | GL47: 0 | GN47: 0 | GO47: ZPersonnel Area | GP47: 60 | GS47: ZPERSAREA | HW47: 18 | HX47: 0000000020
AE48: 16 | AF48: 0PERS_SAREA | AG48: Personnel Subarea | AH48: X | AK48: 0005 | AS48: 1 | AT48: 00 | AX48: 00000000 | AY48: K | AZ48: 0PERS_SAREA | BA48: A | BD48: H | BJ48: 00000000 | BK48: 0000 | BM48: 0 | BR48: 1 | BS48: 1 | BT48: 1 | BU48: 0 | BV48: 0 | BY48: 2 | CA48: 0 | CB48: DBE5O9AE5J1TDG9GQV5HQY9DL | CI48: 0000 | CM48: 18 | CN48: D5B6FGJCS8AO1FCVGIC372Z95 | CO48: D5B6FGJCS8J4K8Y7ZG3TXSC8P | CP48: SE | CQ48: 0011 | CS48: S | CU48: L | DG48: 18 | DH48: 0ORGUNIT | DI48: 0PLANT | DJ48: Plant | DK48: 0000 | DL48: X | DM48: 0 | DN48: 0 | DO48: 0 | DT48: 0000 | EA48: 17 | EB48: D5ENPW16Z66471UP2YC8ZOB95 | EC48: D5B6FGJCS8HL70APCD8LSXJP5 | EI48: 00 | EJ48: X | EK48: 0 | EL48: 0 | FY48: 22 | FZ48: ZS_DT_1 | GA48: 1 | GB48: P | GC48: I | GD48: EQ | GE48: 20130401 | GF48: 01/04/2013 | GJ48: 0 | GL48: 0 | GN48: 0 | GO48: Target date 1 | GP48: 60 | GS48: ZEMP_STRT | GT48: 20130401 | HW48: 18 | HX48: 0000000030
AE49: 16 | AF49: 0ORGUNIT | AG49: Organizational Unit | AH49: X | AK49: 0006 | AR49: U | AS49: 1 | AT49: 02 | AU49: X | AV49: ORGEH | AW49: 000 | AX49: 20120930 | AY49: K | AZ49: 0ORGUNIT | BA49: A | BD49: H | BE49: 0ORGUNIT | BF49: A | BJ49: 00000000 | BK49: 0000 | BM49: 0 | BQ49: 2 | BR49: 1 | BS49: 1 | BT49: 1 | BU49: 0 | BV49: 0 | CA49: 0 | CB49: DBE5O9AE5J2L22L82EL3TDNND | CI49: 0000 | CM49: 18 | CN49: D5B6FGJCS8AO1FCVGIC372Z95 | CO49: D5B6FGJCS8JW8V9ZAZJG07QIH | CP49: SR | CQ49: 0012 | CS49: S | CU49: L | DG49: 18 | DH49: 0ORGUNIT | DI49: 0PURCH_ORG | DJ49: Purchasing org. | DK49: 0000 | DL49: X | DM49: 0 | DN49: 0 | DO49: 0 | DT49: 0000 | EA49: 17 | EB49: D5ENPW16Z66471UP2YC8ZOB95 | EC49: D5B6FGJCS8ICVMMGNWO7VCXYX | EI49: 00 | EJ49: X | EK49: 0 | EL49: 0 | FY49: 22 | FZ49: ZS_PSAR2 | GA49: 1 | GB49: P | GJ49: 0 | GL49: 0 | GN49: 0 | GO49: Pers. Sub-Area - optional | GP49: 60 | GS49: 0PERS_SAREA | HW49: 18 | HX49: 0000000040
AE50: 16 | AF50: D5B6FGJCS8AO1FCVGIC372Z95 | AG50: Job Families Incl Teach | AI50: X | AJ50: X | AK50: 0001 | AR50: U | AT50: 00 | AY50: K | AZ50: D5B6FGJCS8AO1FCVGIC372Z95 | BA50: A | BJ50: 00000000 | BK50: 0000 | BM50: 0 | BR50: 0 | BS50: 0 | BT50: 0 | BU50: 0 | BV50: 0 | CB50: D5B6FGJCS8AO1FCVGIC372Z95 | CI50: 0000 | CM50: 18 | CN50: D5B6FGJCS8AO1FCVGIC372Z95 | CO50: D5B6FGJCS8KNXHLQMIZ22N4S9 | CP50: TS | CQ50: 0013 | CS50: S | CU50: L | DG50: 18 | DH50: 0ORGUNIT | DI50: 0PUR_GROUP | DJ50: Purchasing group | DK50: 0000 | DL50: X | DM50: 0 | DN50: 0 | DO50: 0 | DT50: 0000 | EA50: 17 | EB50: D5ENPW16Z66471UP2YC8ZOB95 | EC50: D5B6FGJCS8J4K8Y7ZG3TXSC8P | EI50: 00 | EJ50: X | EK50: 0 | EL50: 0 | FY50: 22 | FZ50: ZP_ORGUN | GA50: 2 | GB50: M | GJ50: 0 | GL50: 0 | GN50: 0 | GO50: Org Unit Hierarchy (Selection option, optional) | GP50: 60 | GS50: 0ORGUNIT | HW50: 18 | HX50: 0000000041
AE51: 16 | AF51: D5ENPW16Z63T56VF4C1ESE4FT | AG51: Breakdown Gender Contract FTPT | AI51: X | AJ51: Y | AK51: 0001 | AR51: U | AT51: 00 | AY51: K | AZ51: D5ENPW16Z63T56VF4C1ESE4FT | BA51: A | BJ51: 00000000 | BK51: 0000 | BL51: X | BM51: 0 | BR51: 0 | BS51: 0 | BT51: 0 | BU51: 0 | BV51: 0 | CB51: D5ENPW16Z63T56VF4C1ESE4FT | CI51: 0000 | CM51: 18 | CN51: D5B6FGJCS8AO1FCVGIC372Z95 | CO51: D5B6FGJCS8LFM3XHY2EO52J21 | CP51: VE | CQ51: 0014 | CS51: S | CU51: L | DG51: 18 | DH51: 0ORGUNIT | DI51: 0SALESORG | DJ51: Sales Organization | DK51: 0000 | DL51: X | DM51: 0 | DN51: 0 | DO51: 0 | DT51: 0000 | EA51: 17 | EB51: D5ENPW16Z66471UP2YC8ZOB95 | EC51: D5B6FGJCS8JW8V9ZAZJG07QIH | EI51: 00 | EJ51: X | EK51: 0 | EL51: 0 | FY51: 22 | FZ51: ZBUDH | GA51: 1 | GB51: P | GC51: I | GD51: EQ | GE51: 20130401 | GF51: 01/04/2013 | GJ51: 0 | GL51: 0 | GN51: 0 | GO51: Master Data Key Date | GP51: 60 | GS51: 0DATE | GT51: 20130401 | HW51: 18 | HX51: 0000000042 | HY51: 00
AE52: 21 | AF52: 0PAYRL_AREA | AG52: Payroll Area | AH52: X | AK52: 0001 | AS52: 0 | AT52: 00 | AX52: 00000000 | AY52: K | AZ52: 0PAYRL_AREA | BA52: A | BD52: H | BJ52: 00000000 | BK52: 0000 | BM52: 0 | BR52: 1 | BS52: 1 | BT52: 1 | BU52: 0 | BV52: 0 | BY52: 2 | CA52: 0 | CB52: DE0LJZ6IGUANWDS0ZVL4LCG6X | CI52: 0000 | CM52: 18 | CN52: D5B6FGJCS8AO1FCVGIC372Z95 | CO52: D5B6FGJCS8M7AQ999LUA7HXBT | CP52: Teachers | CQ52: 0015 | CS52: S | CU52: L | DG52: 18 | DH52: 0ORGUNIT | DI52: 0SALES_GRP | DJ52: Sales group | DK52: 0000 | DL52: X | DM52: 0 | DN52: 0 | DO52: 0 | DT52: 0000 | EA52: 17 | EB52: D5ENPW16Z66471UP2YC8ZOB95 | EC52: D5B6FGJCS8KNXHLQMIZ22N4S9 | EI52: 00 | EJ52: X | EK52: 0 | EL52: 0 | FY52: 22 | FZ52: ZZPERAR | GA52: 1 | GB52: M | GJ52: 0 | GL52: 0 | GN52: 0 | GO52: ZPersonnel Area | GP52: 60 | GS52: ZPERSAREA | HW52: 18 | HX52: 0000000043 | HY52: 00
AE53: 21 | AF53: ZPERSAREA | AG53: ZPersonal Area | AH53: X | AK53: 0002 | AM53: Chief Executive, Development and Regeneration, Education,... | AS53: 2 | AT53: 00 | AX53: 00000000 | AY53: K | AZ53: ZPERSAREA | BA53: A | BD53: H | BJ53: 00000000 | BK53: 0000 | BM53: 0 | BO53: X | BR53: 1 | BS53: 1 | BT53: 1 | BU53: 0 | BV53: 0 | BY53: 2 | CA53: 0 | CB53: DE0LJZ6IGUBFL03SBF0QNRUGP | CI53: 0000 | CM53: 18 | CN53: D5B6FGJCS8AO1FCVGIC372Z95 | CO53: D5B6FGJCS8MYZCL0L59W9XBLL | CP53: Total Employees | CQ53: 0016 | CS53: F | CU53: L | DG53: 18 | DH53: 0ORGUNIT | DI53: 0SALES_OFF | DJ53: Sales Office | DK53: 0000 | DL53: X | DM53: 0 | DN53: 0 | DO53: 0 | DT53: 0000 | EA53: 17 | EB53: D5ENPW16Z66471UP2YC8ZOB95 | EC53: D5B6FGJCS8LFM3XHY2EO52J21 | EI53: 00 | EJ53: X | EK53: 0 | EL53: 0 | FY53: 45 | FZ53: ZS_DT_1 | GA53: 1 | GB53: P | GC53: I | GD53: EQ | GE53: 20130401 | GF53: 01/04/2013 | GJ53: 0 | GL53: 0 | GN53: 0 | GO53: Target date 1 | GP53: 60 | GS53: ZEMP_STRT | GT53: 20130401 | HW53: 18 | HX53: 0000000021
AE54: 21 | AF54: 0ORGUNIT | AG54: Organizational Unit | AH54: X | AK54: 0003 | AS54: 1 | AT54: 02 | AU54: X | AV54: ORGEH | AW54: 000 | AX54: 20120930 | AY54: K | AZ54: 0ORGUNIT | BA54: A | BD54: H | BE54: 0ORGUNIT | BF54: A | BJ54: 00000000 | BK54: 0000 | BM54: 0 | BQ54: 2 | BR54: 1 | BS54: 1 | BT54: 1 | BU54: 0 | BV54: 0 | CA54: 0 | CB54: DE0LJZ6IGUC79MFJMYGCQ78QH | CI54: 0000 | CM54: 18 | CN54: D5B6FGJCS8AO1FCVGIC372Z95 | CO54: D5B6FGJCS8NQNYWRWOPICCPVD | CP54: All Employees | CQ54: 0017 | CR54: X | CS54: S | CU54: L | DG54: 19 | DH54: 0ORGUNIT | DI54: 0BBPPURGRPX | DJ54: Ind.Purchasing Group | DK54: 0000 | DL54: X | DM54: 2 | DN54: 0 | DO54: 0 | DT54: 0000 | EA54: 17 | EB54: D5ENPW16Z66471UP2YC8ZOB95 | EC54: D5B6FGJCS8M7AQ999LUA7HXBT | EI54: 00 | EJ54: X | EK54: 0 | EL54: 0 | FY54: 45 | FZ54: ZBUDH | GA54: 1 | GB54: P | GC54: I | GD54: EQ | GE54: 20130401 | GF54: 01/04/2013 | GJ54: 0 | GL54: 0 | GN54: 0 | GO54: Master Data Key Date | GP54: 60 | GS54: 0DATE | GT54: 20130401 | HW54: 18 | HX54: 0000000022
AE55: 21 | AF55: 0PERS_SAREA | AG55: Personnel Subarea | AH55: X | AK55: 0004 | AR55: U | AS55: 1 | AT55: 00 | AX55: 00000000 | AY55: K | AZ55: 0PERS_SAREA | BA55: A | BD55: H | BJ55: 00000000 | BK55: 0000 | BM55: 0 | BR55: 1 | BS55: 1 | BT55: 1 | BU55: 0 | BV55: 0 | BY55: 2 | CA55: 0 | CB55: DE0LJZ6IGUCYY8RAYHVYSMN09 | CI55: 0000 | CM55: 18 | CN55: D5B6FGJCS8AO1FCVGIC372Z95 | CO55: D5B6FGJCS8OICL8J8854ES455 | CP55: Non WPBR | CQ55: 0018 | CS55: F | CU55: L | DG55: 19 | DH55: 0ORGUNIT | DI55: 0BBPPURORGX | DJ55: Ind. Purchasing Org. | DK55: 0000 | DL55: X | DM55: 2 | DN55: 0 | DO55: 0 | DT55: 0000 | EA55: 17 | EB55: D5ENPW16Z66471UP2YC8ZOB95 | EC55: D5B6FGJCS8MYZCL0L59W9XBLL | ED55: 0 | EE55: 0 | EI55: 00 | EJ55: X | EK55: 0 | EL55: 0 | FY55: 45 | FZ55: ZZPERAR | GA55: 1 | GB55: M | GJ55: 0 | GL55: 0 | GN55: 0 | GO55: ZPersonnel Area | GP55: 60 | GS55: ZPERSAREA | HW55: 18 | HX55: 0000000023
AE56: 21 | AF56: ZTEILK | AG56: Checkbox for Part-Ti | AH56: X | AK56: 0005 | AS56: 1 | AT56: 00 | AX56: 00000000 | AY56: K | AZ56: ZTEILK | BA56: A | BD56: H | BJ56: 00000000 | BK56: 0000 | BM56: 0 | BR56: 1 | BS56: 1 | BT56: 1 | BU56: 0 | BV56: 0 | BY56: 2 | CA56: 0 | CB56: DE0LJZ6IGUDQMV32A1BKV21A1 | CI56: 0000 | CM56: 19 | CN56: D5ENPW16Z63T56VF4C1ESE4FT | CO56: D5ENPW16Z64KTT76FVH0UTIPL | CP56: Male Temp FT | CQ56: 0001 | CS56: S | CU56: L | CV56: X | CW56: IOBJ | CX56: Z_EMP_HCT | CZ56: Employee Headcount | DG56: 19 | DH56: 0ORGUNIT | DI56: 0BBP_BUYID | DJ56: Buyer ID | DK56: 0000 | DL56: X | DM56: 5 | DN56: 0 | DO56: 0 | DT56: 0000 | EA56: 17 | EB56: D5ENPW16Z66471UP2YC8ZOB95 | EC56: D5B6FGJCS8NQNYWRWOPICCPVD | EI56: 00 | EJ56: X | EK56: 0 | EL56: 0 | FY56: 14 | FZ56: ZP_STPER | GA56: 1 | GB56: P | GC56: I | GD56: EQ | GE56: 005 | GF56: 5 | GJ56: 0 | GL56: 0 | GN56: 0 | GO56: Fiscal Period Start | GP56: 60 | GS56: 0FISCPER3 | GT56: 005 | HW56: 18 | HX56: 0000010002 | HY56: DBE5O9AE5IU4J8ZVJGTD2OANT
AE57: 21 | AF57: ZPRIM_ID | AG57: ZPrimary Employee ID | AH57: X | AK57: 0006 | AS57: 2 | AT57: 00 | AX57: 00000000 | AY57: K | AZ57: ZPRIM_ID | BA57: A | BD57: H | BJ57: 00000000 | BK57: 0000 | BM57: 0 | BR57: 1 | BS57: 1 | BT57: 1 | BU57: 0 | BV57: 0 | BY57: 2 | CA57: 0 | CB57: DE0LJZ6IGUEIBHETLKR6XHFJT | CI57: 0000 | CM57: 19 | CN57: D5B6FGJCS8AO1FCVGIC372Z95 | CO57: D5B6FGJCS8BFQ1OMS1RP9IDIX | CP57: BS | CQ57: 0001 | CS57: S | CU57: L | DG57: 19 | DH57: 0ORGUNIT | DI57: 0BBP_ISCOMP | DJ57: Organizational Unit is Company | DK57: 0000 | DL57: X | DM57: 1 | DN57: 0 | DO57: 0 | DT57: 0000 | EA57: 17 | EB57: D5ENPW16Z66471UP2YC8ZOB95 | EC57: D5B6FGJCS8OICL8J8854ES455 | ED57: 0 | EE57: 0 | EI57: 00 | EJ57: X | EK57: 0 | EL57: 0 | FY57: 14 | FZ57: ZFYRGE | GA57: 1 | GB57: I | GC57: I | GD57: BT | GE57: 2015 | GF57: 2015 | GG57: 2015 | GH57: 2015 | GJ57: 40 | GL57: 40 | GN57: 0 | GO57: Fiscal Year Range | GP57: 60 | GS57: 0FISCYEAR | HW57: 18 | HX57: 0000000105
AE58: 21 | AF58: 0CNTRCTTYPE | AG58: Contract Type | AH58: X | AK58: 0007 | AS58: 1 | AT58: 00 | AX58: 00000000 | AY58: K | AZ58: 0CNTRCTTYPE | BA58: A | BD58: H | BJ58: 00000000 | BK58: 0000 | BM58: 0 | BR58: 1 | BS58: 1 | BT58: 1 | BU58: 0 | BV58: 0 | BY58: 2 | CA58: 0 | CB58: DE0LJZ6IGUFA03QKX46SZWTTL | CI58: 0000 | CM58: 19 | CN58: D5ENPW16Z63T56VF4C1ESE4FT | CO58: D5ENPW16Z65CIFIXREWMX8WZD | CP58: Male Temp PT | CQ58: 0002 | CS58: S | CU58: L | CV58: X | CW58: IOBJ | CX58: Z_EMP_HCT | CZ58: Employee Headcount | DG58: 19 | DH58: 0ORGUNIT | DI58: 0BUS_AREA | DJ58: Business area | DK58: 0000 | DL58: X | DM58: 0 | DN58: 0 | DO58: 0 | DT58: 0000 | EA58: 17 | EB58: D5ENPW16Z66VVO6GEHRV23PIX | EC58: D5B6FGJCS8BFQ1OMS1RP9IDIX | EI58: 00 | EJ58: X | EK58: 0 | EL58: 0 | FY58: 14 | FZ58: ZPY_AREA | GA58: 1 | GB58: P | GJ58: 0 | GL58: 0 | GN58: 0 | GO58: Payroll Area, Selection Option, OPtional | GP58: 60 | GS58: 0EMPLOYEE__0PAYRL_AREA | HW58: 18 | HX58: 0000000106
AE59: 21 | AF59: DE0LK3585BCRS1EYJA6653Z7D | AG59: WPBR Gender/Ethnicity Bandings FTE | AI59: X | AJ59: X | AK59: 0001 | AR59: U | AT59: 00 | AY59: K | AZ59: DE0LK3585BCRS1EYJA6653Z7D | BA59: A | BJ59: 00000000 | BK59: 0000 | BL59: X | BM59: 0 | BR59: 0 | BS59: 0 | BT59: 0 | BU59: 0 | BV59: 0 | CB59: DE0LK3585BCRS1EYJA6653Z7D | CI59: 0000 | CM59: 19 | CN59: D5B6FGJCS8AO1FCVGIC372Z95 | CO59: D5B6FGJCS8C7EO0E3L7BBXRSP | CP59: CV | CQ59: 0002 | CS59: S | CU59: L | DG59: 19 | DH59: 0ORGUNIT | DI59: 0COMP_CODE | DJ59: Company code | DK59: 0000 | DL59: X | DM59: 0 | DN59: 0 | DO59: 0 | DT59: 0000 | EA59: 17 | EB59: D5ENPW16Z66VVO6GEHRV23PIX | EC59: D5B6FGJCS8C7EO0E3L7BBXRSP | EI59: 00 | EJ59: X | EK59: 0 | EL59: 0 | FY59: 14 | FZ59: ZCIRANGE | GA59: 1 | GB59: I | GC59: I | GD59: BT | GE59: 100000 | GF59: 100000 | GG59: 699999 | GH59: 699999 | GJ59: 20 | GL59: 20 | GN59: 0 | GO59: Commitment Item Range | GP59: 60 | GS59: 0CMMT_ITEM | HW59: 18 | HX59: 0000000112 | HY59: 0
AE60: 21 | AF60: D4O21W1IBUB3HEML1KWP5YGOP | AG60: WP Bandings | AI60: X | AJ60: Y | AK60: 0001 | AR60: U | AT60: 00 | AY60: K | AZ60: D4O21W1IBUB3HEML1KWP5YGOP | BA60: A | BJ60: 00000000 | BK60: 0000 | BM60: 0 | BR60: 0 | BS60: 0 | BT60: 0 | BU60: 0 | BV60: 0 | CB60: D4O21W1IBUB3HEML1KWP5YGOP | CI60: 0000 | CM60: 19 | CN60: D5ENPW16Z63T56VF4C1ESE4FT | CO60: D5ENPW16Z66471UP2YC8ZOB95 | CP60: Male Perm FT | CQ60: 0003 | CS60: S | CU60: L | CV60: X | CW60: IOBJ | CX60: Z_EMP_HCT | CZ60: Employee Headcount | DG60: 19 | DH60: 0ORGUNIT | DI60: 0CO_MST_AR | DJ60: Controlling Area of Master Cost Center | DK60: 0000 | DL60: X | DM60: 0 | DN60: 0 | DO60: 0 | DT60: 0000 | EA60: 17 | EB60: D5ENPW16Z66VVO6GEHRV23PIX | EC60: D5B6FGJCS8CZ3AC5F4MXED62H | EI60: 00 | EJ60: X | EK60: 0 | EL60: 0 | FY60: 14 | FZ60: ZP_EDPER | GA60: 1 | GB60: P | GC60: I | GD60: EQ | GE60: 007 | GF60: 7 | GJ60: 0 | GL60: 0 | GN60: 0 | GO60: Fiscal Period End | GP60: 60 | GS60: 0FISCPER3 | GT60: 007 | HW60: 18 | HX60: 0000000200 | HY60: X
AE61: 32 | AF61: ZPERID | AG61: NI Number | AH61: X | AK61: 0001 | AS61: 2 | AT61: 00 | AX61: 00000000 | AY61: K | AZ61: ZPERID | BA61: A | BD61: H | BJ61: 00000000 | BK61: 0000 | BM61: 0 | BR61: 1 | BS61: 1 | BT61: 1 | BU61: 0 | BV61: 0 | BY61: 2 | CA61: 0 | CB61: DBE5O9AE5IYQMYYFGPF1H8OAH | CI61: 0000 | CM61: 19 | CN61: D5B6FGJCS8AO1FCVGIC372Z95 | CO61: D5B6FGJCS8CZ3AC5F4MXED62H | CP61: CA | CQ61: 0003 | CS61: S | CU61: L | DG61: 19 | DH61: 0ORGUNIT | DI61: 0CRMSALGRPX | DJ61: Sls Group: Indicator | DK61: 0000 | DL61: X | DM61: 2 | DN61: 0 | DO61: 0 | DT61: 0000 | EA61: 17 | EB61: D5ENPW16Z66VVO6GEHRV23PIX | EC61: D5B6FGJCS8DQRWNWQO2JGSKC9 | EI61: 00 | EJ61: X | EK61: 0 | EL61: 0 | FY61: 13 | FZ61: ZP_STPER | GA61: 1 | GB61: P | GC61: I | GD61: EQ | GE61: 005 | GF61: 5 | GJ61: 0 | GL61: 0 | GN61: 0 | GO61: Fiscal Period Start | GP61: 60 | GS61: 0FISCPER3 | GT61: 005 | HW61: 18 | HX61: 0000004000 | HY61: X
AE62: 32 | AF62: ZPERSAREA | AG62: ZPersonal Area | AH62: X | AK62: 0002 | AM62: Development and Regeneration | AS62: 5 | AT62: 00 | AX62: 00000000 | AY62: K | AZ62: ZPERSAREA | BA62: A | BD62: H | BJ62: 00000000 | BK62: 0000 | BM62: 0 | BO62: 1 | BR62: 1 | BS62: 1 | BT62: 1 | BU62: 0 | BV62: 0 | BY62: 2 | CA62: 0 | CB62: DBE5O9AE5IZIBLA6S8UNJO2K9 | CI62: 0000 | CM62: 19 | CN62: D5ENPW16Z63T56VF4C1ESE4FT | CO62: D5ENPW16Z66VVO6GEHRV23PIX | CP62: Male Perm PT | CQ62: 0004 | CS62: S | CU62: L | CV62: X | CW62: IOBJ | CX62: Z_EMP_HCT | CZ62: Employee Headcount | DG62: 19 | DH62: 0ORGUNIT | DI62: 0CRMSALOFFX | DJ62: Sls Office:Indicator | DK62: 0000 | DL62: X | DM62: 2 | DN62: 0 | DO62: 0 | DT62: 0000 | EA62: 17 | EB62: D5ENPW16Z66VVO6GEHRV23PIX | EC62: D5B6FGJCS8EIGIZO27I5J7YM1 | EI62: 00 | EJ62: X | EK62: 0 | EL62: 0 | FY62: 13 | FZ62: ZFYRGE | GA62: 1 | GB62: I | GC62: I | GD62: BT | GE62: 2015 | GF62: 2015 | GG62: 2015 | GH62: 2015 | GJ62: 40 | GL62: 40 | GN62: 0 | GO62: Fiscal Year Range | GP62: 60 | GS62: 0FISCYEAR | HW62: 18 | HX62: 0000009001 | HY62: QSW Breakdown By Job Family excl cas sess
AE63: 32 | AF63: ZPRIM_ID | AG63: ZPrimary Employee ID | AH63: X | AK63: 0003 | AS63: 2 | AT63: 00 | AX63: 00000000 | AY63: K | AZ63: ZPRIM_ID | BA63: A | BD63: H | BJ63: 00000000 | BK63: 0000 | BM63: 0 | BR63: 1 | BS63: 1 | BT63: 1 | BU63: 0 | BV63: 0 | BY63: 2 | CA63: 0 | CB63: DBE5O9AE5J0A07LY3SA9M3GU1 | CI63: 0000 | CM63: 19 | CN63: D5B6FGJCS8AO1FCVGIC372Z95 | CO63: D5B6FGJCS8DQRWNWQO2JGSKC9 | CP63: CF | CQ63: 0004 | CS63: S | CU63: L | DG63: 19 | DH63: 0ORGUNIT | DI63: 0CRMSALORGX | DJ63: Sales Org. Indicator | DK63: 0000 | DL63: X | DM63: 2 | DN63: 0 | DO63: 0 | DT63: 0000 | EA63: 17 | EB63: D5ENPW16Z66VVO6GEHRV23PIX | EC63: D5B6FGJCS8FA55BFDQXRLNCVT | EI63: 00 | EJ63: X | EK63: 0 | EL63: 0 | FY63: 13 | FZ63: ZPY_AREA | GA63: 1 | GB63: P | GJ63: 0 | GL63: 0 | GN63: 0 | GO63: Payroll Area, Selection Option, OPtional | GP63: 60 | GS63: 0EMPLOYEE__0PAYRL_AREA | HW63: 18 | HX63: 0000000114 | HY63: 1
AE64: 32 | AF64: 0EMPLGROUP | AG64: Employee Group | AH64: X | AK64: 0004 | AS64: 1 | AT64: 00 | AX64: 00000000 | AY64: K | AZ64: 0EMPLGROUP | BA64: A | BD64: H | BJ64: 00000000 | BK64: 0000 | BM64: 0 | BR64: 1 | BS64: 1 | BT64: 1 | BU64: 0 | BV64: 0 | BY64: 2 | CA64: 0 | CB64: DBE5O9AE5J11OTXPFBPVOIV3T | CI64: 0000 | CM64: 19 | CN64: D5B6FGJCS8AO1FCVGIC372Z95 | CO64: D5B6FGJCS8EIGIZO27I5J7YM1 | CP64: CU | CQ64: 0005 | CS64: S | CU64: L | DG64: 19 | DH64: 0ORGUNIT | DI64: 0CRMSRVTGRP | DJ64: Ex. CRM Service Org. | DK64: 0000 | DL64: X | DM64: 1 | DN64: 0 | DO64: 0 | DT64: 0000 | EA64: 17 | EB64: D5ENPW16Z66VVO6GEHRV23PIX | EC64: D5B6FGJCS8G1TRN6PADDO2R5L | EI64: 00 | EJ64: X | EK64: 0 | EL64: 0 | FY64: 13 | FZ64: ZCIRANGE | GA64: 1 | GB64: I | GC64: I | GD64: BT | GE64: 100000 | GF64: 100000 | GG64: 699999 | GH64: 699999 | GJ64: 20 | GL64: 20 | GN64: 0 | GO64: Commitment Item Range | GP64: 60 | GS64: 0CMMT_ITEM | HW64: 19 | HX64: 0000000100 | HY64: X
AE65: 32 | AF65: 0PERS_SAREA | AG65: Personnel Subarea | AH65: X | AK65: 0005 | AS65: 1 | AT65: 00 | AX65: 00000000 | AY65: K | AZ65: 0PERS_SAREA | BA65: A | BD65: H | BJ65: 00000000 | BK65: 0000 | BM65: 0 | BR65: 1 | BS65: 1 | BT65: 1 | BU65: 0 | BV65: 0 | BY65: 2 | CA65: 0 | CB65: DBE5O9AE5J1TDG9GQV5HQY9DL | CI65: 0000 | CM65: 19 | CN65: D5ENPW16Z63T56VF4C1ESE4FT | CO65: D5ENPW16Z67NKAI7Q17H4J3SP | CP65: Female Temp FT | CQ65: 0005 | CS65: S | CU65: L | CV65: X | CW65: IOBJ | CX65: Z_EMP_HCT | CZ65: Employee Headcount | DG65: 19 | DH65: 0ORGUNIT | DI65: 0CRM_SALGRP | DJ65: CRM Sales Group | DK65: 0000 | DL65: X | DM65: 1 | DN65: 0 | DO65: 0 | DT65: 0000 | EA65: 17 | EB65: D5ENPW16Z66VVO6GEHRV23PIX | EC65: D5B6FGJCS8GTIDYY0TSZQI5FD | EI65: 00 | EJ65: X | EK65: 0 | EL65: 0 | FY65: 13 | FZ65: ZP_EDPER | GA65: 1 | GB65: P | GC65: I | GD65: EQ | GE65: 007 | GF65: 7 | GJ65: 0 | GL65: 0 | GN65: 0 | GO65: Fiscal Period End | GP65: 60 | GS65: 0FISCPER3 | GT65: 007 | HW65: 19 | HX65: 0000000108
AE66: 32 | AF66: 0ORGUNIT | AG66: Organizational Unit | AH66: X | AK66: 0006 | AR66: U | AS66: 1 | AT66: 02 | AU66: X | AV66: ORGEH | AW66: 000 | AX66: 20121231 | AY66: K | AZ66: 0ORGUNIT | BA66: A | BD66: H | BE66: 0ORGUNIT | BF66: A | BJ66: 00000000 | BK66: 0000 | BM66: 0 | BQ66: 2 | BR66: 1 | BS66: 1 | BT66: 1 | BU66: 0 | BV66: 0 | CA66: 0 | CB66: DBE5O9AE5J2L22L82EL3TDNND | CI66: 0000 | CM66: 19 | CN66: D5ENPW16Z63T56VF4C1ESE4FT | CO66: D5ENPW16Z68F8WTZ1KN36YI2H | CP66: Female Temp PT | CQ66: 0006 | CS66: S | CU66: L | CV66: X | CW66: IOBJ | CX66: Z_EMP_HCT | CZ66: Employee Headcount | DG66: 19 | DH66: 0ORGUNIT | DI66: 0CRM_SALOFF | DJ66: CRM Sales Office | DK66: 0000 | DL66: X | DM66: 1 | DN66: 0 | DO66: 0 | DT66: 0000 | EA66: 17 | EB66: D5ENPW16Z66VVO6GEHRV23PIX | EC66: D5B6FGJCS8HL70APCD8LSXJP5 | EI66: 00 | EJ66: X | EK66: 0 | EL66: 0 | FY66: 12 | FZ66: ZS_DT_1 | GA66: 1 | GB66: P | GC66: I | GD66: EQ | GE66: 20150930 | GF66: 30/09/2015 | GJ66: 0 | GL66: 0 | GN66: 0 | GO66: Target date 1 | GP66: 60 | GS66: ZEMP_STRT | GT66: 20150930 | HW66: 19 | HX66: 0000000101
AE67: 32 | AF67: D5B6FGJCS8AO1FCVGIC372Z95 | AG67: Job Families Incl Teach | AI67: X | AJ67: X | AK67: 0001 | AR67: U | AT67: 00 | AY67: K | AZ67: D5B6FGJCS8AO1FCVGIC372Z95 | BA67: A | BJ67: 00000000 | BK67: 0000 | BM67: 0 | BR67: 0 | BS67: 0 | BT67: 0 | BU67: 0 | BV67: 0 | CB67: D5B6FGJCS8AO1FCVGIC372Z95 | CI67: 0000 | CM67: 19 | CN67: D5B6FGJCS8AO1FCVGIC372Z95 | CO67: D5B6FGJCS8FA55BFDQXRLNCVT | CP67: CR | CQ67: 0006 | CS67: S | CU67: L | DG67: 19 | DH67: 0ORGUNIT | DI67: 0CRM_SALORG | DJ67: CRM Sales Org. | DK67: 0000 | DL67: X | DM67: 1 | DN67: 0 | DO67: 0 | DT67: 0000 | EA67: 17 | EB67: D5ENPW16Z66VVO6GEHRV23PIX | EC67: D5B6FGJCS8ICVMMGNWO7VCXYX | EI67: 00 | EJ67: X | EK67: 0 | EL67: 0 | FY67: 12 | FZ67: ZS_PSAR2 | GA67: 1 | GB67: P | GJ67: 0 | GL67: 0 | GN67: 0 | GO67: Pers. Sub-Area - optional | GP67: 60 | GS67: 0PERS_SAREA | HW67: 19 | HX67: 0000000104 | HY67: 1
AE68: 32 | AF68: D5ENPW16Z63T56VF4C1ESE4FT | AG68: Breakdown Gender Contract FTPT | AI68: X | AJ68: Y | AK68: 0001 | AR68: U | AT68: 00 | AY68: K | AZ68: D5ENPW16Z63T56VF4C1ESE4FT | BA68: A | BJ68: 00000000 | BK68: 0000 | BL68: X | BM68: 0 | BR68: 0 | BS68: 0 | BT68: 0 | BU68: 0 | BV68: 0 | CB68: D5ENPW16Z63T56VF4C1ESE4FT | CI68: 0000 | CM68: 19 | CN68: D5ENPW16Z63T56VF4C1ESE4FT | CO68: D5ENPW16Z696XJ5QD42P9DWC9 | CP68: Female Perm FT | CQ68: 0007 | CS68: S | CU68: L | CV68: X | CW68: IOBJ | CX68: Z_EMP_HCT | CZ68: Employee Headcount | DG68: 19 | DH68: 0ORGUNIT | DI68: 0CRM_SRVORG | DJ68: Service Org. CRM | DK68: 0000 | DL68: X | DM68: 1 | DN68: 0 | DO68: 0 | DT68: 0000 | EA68: 17 | EB68: D5ENPW16Z66VVO6GEHRV23PIX | EC68: D5B6FGJCS8J4K8Y7ZG3TXSC8P | EI68: 00 | EJ68: X | EK68: 0 | EL68: 0 | FY68: 12 | FZ68: ZP_ORGUN | GA68: 2 | GB68: M | GJ68: 0 | GL68: 0 | GN68: 0 | GO68: Org Unit Hierarchy (Selection option, optional) | GP68: 60 | GS68: 0ORGUNIT | HW68: 19 | HX68: 0000000103
AE69: 31 | AF69: ZPERID | AG69: NI Number | AH69: X | AK69: 0001 | AS69: 2 | AT69: 00 | AX69: 00000000 | AY69: K | AZ69: ZPERID | BA69: A | BD69: H | BJ69: 00000000 | BK69: 0000 | BM69: 0 | BR69: 1 | BS69: 1 | BT69: 1 | BU69: 0 | BV69: 0 | BY69: 2 | CA69: 0 | CB69: DBE5O9AE5IYQMYYFGPF1H8OAH | CI69: 0000 | CM69: 19 | CN69: D5B6FGJCS8AO1FCVGIC372Z95 | CO69: D5B6FGJCS8G1TRN6PADDO2R5L | CP69: IP | CQ69: 0007 | CS69: S | CU69: L | DG69: 19 | DH69: 0ORGUNIT | DI69: 0LOGSYS | DJ69: Source System | DK69: 0000 | DL69: X | DM69: 1 | DN69: 0 | DO69: 0 | DT69: 0000 | EA69: 17 | EB69: D5ENPW16Z66VVO6GEHRV23PIX | EC69: D5B6FGJCS8JW8V9ZAZJG07QIH | EI69: 00 | EJ69: X | EK69: 0 | EL69: 0 | FY69: 12 | FZ69: ZBUDH | GA69: 1 | GB69: P | GC69: I | GD69: EQ | GE69: 20150930 | GF69: 30/09/2015 | GJ69: 0 | GL69: 0 | GN69: 0 | GO69: Master Data Key Date | GP69: 60 | GS69: 0DATE | GT69: 20150930 | HW69: 19 | HX69: 0000000102 | HY69: 1
AE70: 31 | AF70: ZPERSAREA | AG70: ZPersonal Area | AH70: X | AK70: 0002 | AM70: Chief Executive | AS70: 5 | AT70: 00 | AX70: 00000000 | AY70: K | AZ70: ZPERSAREA | BA70: A | BD70: H | BJ70: 00000000 | BK70: 0000 | BM70: 0 | BO70: 1 | BR70: 1 | BS70: 1 | BT70: 1 | BU70: 0 | BV70: 0 | BY70: 2 | CA70: 0 | CB70: DBE5O9AE5IZIBLA6S8UNJO2K9 | CI70: 0000 | CM70: 19 | CN70: D5ENPW16Z63T56VF4C1ESE4FT | CO70: D5ENPW16Z69YM5HHONIBBTAM1 | CP70: Female Perm PT | CQ70: 0008 | CS70: S | CU70: L | CV70: X | CW70: IOBJ | CX70: Z_EMP_HCT | CZ70: Employee Headcount | DG70: 19 | DH70: 0ORGUNIT | DI70: 0MAST_CCTR | DJ70: Master Cost Center | DK70: 0000 | DL70: X | DM70: 0 | DN70: 0 | DO70: 0 | DT70: 0000 | EA70: 17 | EB70: D5ENPW16Z66VVO6GEHRV23PIX | EC70: D5B6FGJCS8KNXHLQMIZ22N4S9 | EI70: 00 | EJ70: X | EK70: 0 | EL70: 0 | FY70: 12 | FZ70: ZZPERAR | GA70: 1 | GB70: M | GJ70: 0 | GL70: 0 | GN70: 0 | GO70: ZPersonnel Area | GP70: 60 | GS70: ZPERSAREA | HW70: 19 | HX70: 0000009000
AE71: 31 | AF71: ZPRIM_ID | AG71: ZPrimary Employee ID | AH71: X | AK71: 0003 | AS71: 2 | AT71: 00 | AX71: 00000000 | AY71: K | AZ71: ZPRIM_ID | BA71: A | BD71: H | BJ71: 00000000 | BK71: 0000 | BM71: 0 | BR71: 1 | BS71: 1 | BT71: 1 | BU71: 0 | BV71: 0 | BY71: 2 | CA71: 0 | CB71: DBE5O9AE5J0A07LY3SA9M3GU1 | CI71: 0000 | CM71: 19 | CN71: D5B6FGJCS8AO1FCVGIC372Z95 | CO71: D5B6FGJCS8GTIDYY0TSZQI5FD | CP71: LS | CQ71: 0008 | CS71: S | CU71: L | DG71: 19 | DH71: 0ORGUNIT | DI71: 0PERS_AREA | DJ71: Personnel Area | DK71: 0000 | DL71: X | DM71: 1 | DN71: 0 | DO71: 0 | DT71: 0000 | EA71: 17 | EB71: D5ENPW16Z66VVO6GEHRV23PIX | EC71: D5B6FGJCS8LFM3XHY2EO52J21 | EI71: 00 | EJ71: X | EK71: 0 | EL71: 0 | FY71: 11 | FZ71: ZS_DT_1 | GA71: 1 | GB71: P | GC71: I | GD71: EQ | GE71: 20150930 | GF71: 30/09/2015 | GJ71: 0 | GL71: 0 | GN71: 0 | GO71: Target date 1 | GP71: 60 | GS71: ZEMP_STRT | GT71: 20150930 | HW71: 19 | HX71: 0000000107 | HY71: DBE5O9AE5IU4J8ZVJGTD2OANT
AE72: 31 | AF72: 0EMPLGROUP | AG72: Employee Group | AH72: X | AK72: 0004 | AS72: 1 | AT72: 00 | AX72: 00000000 | AY72: K | AZ72: 0EMPLGROUP | BA72: A | BD72: H | BJ72: 00000000 | BK72: 0000 | BM72: 0 | BR72: 1 | BS72: 1 | BT72: 1 | BU72: 0 | BV72: 0 | BY72: 2 | CA72: 0 | CB72: DBE5O9AE5J11OTXPFBPVOIV3T | CI72: 0000 | CM72: 19 | CN72: D5B6FGJCS8AO1FCVGIC372Z95 | CO72: D5B6FGJCS8HL70APCD8LSXJP5 | CP72: PC | CQ72: 0009 | CS72: S | CU72: L | DG72: 19 | DH72: 0ORGUNIT | DI72: 0PERS_SAREA | DJ72: Personnel Subarea | DK72: 0000 | DL72: X | DM72: 1 | DN72: 0 | DO72: 0 | DT72: 0000 | EA72: 17 | EB72: D5ENPW16Z66VVO6GEHRV23PIX | EC72: D5B6FGJCS8M7AQ999LUA7HXBT | EI72: 00 | EJ72: X | EK72: 0 | EL72: 0 | FY72: 11 | FZ72: ZBUDH | GA72: 1 | GB72: P | GC72: I | GD72: EQ | GE72: 20150930 | GF72: 30/09/2015 | GJ72: 0 | GL72: 0 | GN72: 0 | GO72: Master Data Key Date | GP72: 60 | GS72: 0DATE | GT72: 20150930 | HW72: 19 | HX72: 0000010001 | HY72: DBE5O9AE5J44FB8QPHGBY8G6X
AE73: 31 | AF73: 0PERS_SAREA | AG73: Personnel Subarea | AH73: X | AK73: 0005 | AS73: 1 | AT73: 00 | AX73: 00000000 | AY73: K | AZ73: 0PERS_SAREA | BA73: A | BD73: H | BJ73: 00000000 | BK73: 0000 | BM73: 0 | BR73: 1 | BS73: 1 | BT73: 1 | BU73: 0 | BV73: 0 | BY73: 2 | CA73: 0 | CB73: DBE5O9AE5J1TDG9GQV5HQY9DL | CI73: 0000 | CM73: 19 | CN73: D5B6FGJCS8AO1FCVGIC372Z95 | CO73: D5B6FGJCS8ICVMMGNWO7VCXYX | CP73: PH | CQ73: 0010 | CS73: S | CU73: L | DG73: 19 | DH73: 0ORGUNIT | DI73: 0PLANT | DJ73: Plant | DK73: 0000 | DL73: X | DM73: 0 | DN73: 0 | DO73: 0 | DT73: 0000 | EA73: 17 | EB73: D5ENPW16Z66VVO6GEHRV23PIX | EC73: D5B6FGJCS8MYZCL0L59W9XBLL | ED73: 0 | EE73: 0 | EI73: 00 | EJ73: X | EK73: 0 | EL73: 0 | FY73: 11 | FZ73: ZZPERAR | GA73: 1 | GB73: M | GJ73: 0 | GL73: 0 | GN73: 0 | GO73: ZPersonnel Area | GP73: 60 | GS73: ZPERSAREA | HW73: 19 | HX73: 0000010003 | HY73: ZPA_O07
AE74: 31 | AF74: 0ORGUNIT | AG74: Organizational Unit | AH74: X | AK74: 0006 | AR74: U | AS74: 1 | AT74: 02 | AU74: X | AV74: ORGEH | AW74: 000 | AX74: 20121231 | AY74: K | AZ74: 0ORGUNIT | BA74: A | BD74: H | BE74: 0ORGUNIT | BF74: A | BJ74: 00000000 | BK74: 0000 | BM74: 0 | BQ74: 2 | BR74: 1 | BS74: 1 | BT74: 1 | BU74: 0 | BV74: 0 | CA74: 0 | CB74: DBE5O9AE5J2L22L82EL3TDNND | CI74: 0000 | CM74: 19 | CN74: D5B6FGJCS8AO1FCVGIC372Z95 | CO74: D5B6FGJCS8J4K8Y7ZG3TXSC8P | CP74: SE | CQ74: 0011 | CS74: S | CU74: L | DG74: 19 | DH74: 0ORGUNIT | DI74: 0PURCH_ORG | DJ74: Purchasing org. | DK74: 0000 | DL74: X | DM74: 0 | DN74: 0 | DO74: 0 | DT74: 0000 | EA74: 17 | EB74: D5ENPW16Z66VVO6GEHRV23PIX | EC74: D5B6FGJCS8NQNYWRWOPICCPVD | EI74: 00 | EJ74: X | EK74: 0 | EL74: 0 | FY74: 10 | FZ74: ZS_DT_1 | GA74: 1 | GB74: P | GC74: I | GD74: EQ | GE74: 20150930 | GF74: 30/09/2015 | GJ74: 0 | GL74: 0 | GN74: 0 | GO74: Target date 1 | GP74: 60 | GS74: ZEMP_STRT | GT74: 20150930 | HW74: 19 | HX74: 0000000010
AE75: 31 | AF75: D5B6FGJCS8AO1FCVGIC372Z95 | AG75: Job Families Incl Teach | AI75: X | AJ75: X | AK75: 0001 | AR75: U | AT75: 00 | AY75: K | AZ75: D5B6FGJCS8AO1FCVGIC372Z95 | BA75: A | BJ75: 00000000 | BK75: 0000 | BM75: 0 | BR75: 0 | BS75: 0 | BT75: 0 | BU75: 0 | BV75: 0 | CB75: D5B6FGJCS8AO1FCVGIC372Z95 | CI75: 0000 | CM75: 19 | CN75: D5B6FGJCS8AO1FCVGIC372Z95 | CO75: D5B6FGJCS8JW8V9ZAZJG07QIH | CP75: SR | CQ75: 0012 | CS75: S | CU75: L | DG75: 19 | DH75: 0ORGUNIT | DI75: 0PUR_GROUP | DJ75: Purchasing group | DK75: 0000 | DL75: X | DM75: 0 | DN75: 0 | DO75: 0 | DT75: 0000 | EA75: 17 | EB75: D5ENPW16Z66VVO6GEHRV23PIX | EC75: D5B6FGJCS8OICL8J8854ES455 | ED75: 0 | EE75: 0 | EI75: 00 | EJ75: X | EK75: 0 | EL75: 0 | FY75: 10 | FZ75: ZBUDH | GA75: 1 | GB75: P | GC75: I | GD75: EQ | GE75: 20150930 | GF75: 30/09/2015 | GJ75: 0 | GL75: 0 | GN75: 0 | GO75: Master Data Key Date | GP75: 60 | GS75: 0DATE | GT75: 20150930 | HW75: 19 | HX75: 0000000109 | HY75: 0
AE76: 31 | AF76: D5ENPW16Z63T56VF4C1ESE4FT | AG76: Breakdown Gender Contract FTPT | AI76: X | AJ76: Y | AK76: 0001 | AR76: U | AT76: 00 | AY76: K | AZ76: D5ENPW16Z63T56VF4C1ESE4FT | BA76: A | BJ76: 00000000 | BK76: 0000 | BL76: X | BM76: 0 | BR76: 0 | BS76: 0 | BT76: 0 | BU76: 0 | BV76: 0 | CB76: D5ENPW16Z63T56VF4C1ESE4FT | CI76: 0000 | CM76: 19 | CN76: D5B6FGJCS8AO1FCVGIC372Z95 | CO76: D5B6FGJCS8KNXHLQMIZ22N4S9 | CP76: TS | CQ76: 0013 | CS76: S | CU76: L | DG76: 19 | DH76: 0ORGUNIT | DI76: 0SALESORG | DJ76: Sales Organization | DK76: 0000 | DL76: X | DM76: 0 | DN76: 0 | DO76: 0 | DT76: 0000 | EA76: 17 | EB76: D5ENPW16Z67NKAI7Q17H4J3SP | EC76: D5B6FGJCS8BFQ1OMS1RP9IDIX | EI76: 00 | EJ76: X | EK76: 0 | EL76: 0 | FY76: 10 | FZ76: ZZPERAR | GA76: 1 | GB76: M | GJ76: 0 | GL76: 0 | GN76: 0 | GO76: ZPersonnel Area | GP76: 60 | GS76: ZPERSAREA | HW76: 19 | HX76: 0000000113
AE77: 33 | AF77: ZPERID | AG77: NI Number | AH77: X | AK77: 0001 | AS77: 2 | AT77: 00 | AX77: 00000000 | AY77: K | AZ77: ZPERID | BA77: A | BD77: H | BJ77: 00000000 | BK77: 0000 | BM77: 0 | BR77: 1 | BS77: 1 | BT77: 1 | BU77: 0 | BV77: 0 | BY77: 2 | CA77: 0 | CB77: DBE5O9AE5IYQMYYFGPF1H8OAH | CI77: 0000 | CM77: 19 | CN77: D5B6FGJCS8AO1FCVGIC372Z95 | CO77: D5B6FGJCS8LFM3XHY2EO52J21 | CP77: VE | CQ77: 0014 | CS77: S | CU77: L | DG77: 19 | DH77: 0ORGUNIT | DI77: 0SALES_GRP | DJ77: Sales group | DK77: 0000 | DL77: X | DM77: 0 | DN77: 0 | DO77: 0 | DT77: 0000 | EA77: 17 | EB77: D5ENPW16Z67NKAI7Q17H4J3SP | EC77: D5B6FGJCS8C7EO0E3L7BBXRSP | EI77: 00 | EJ77: X | EK77: 0 | EL77: 0 | FY77: 9 | FZ77: ZS_DT_1 | GA77: 1 | GB77: P | GC77: I | GD77: EQ | GE77: 20150930 | GF77: 30/09/2015 | GJ77: 0 | GL77: 0 | GN77: 0 | GO77: Target date 1 | GP77: 60 | GS77: ZEMP_STRT | GT77: 20150930 | HW77: 19 | HX77: 0000000020
AE78: 33 | AF78: ZPERSAREA | AG78: ZPersonal Area | AH78: X | AK78: 0002 | AM78: Education | AS78: 5 | AT78: 00 | AX78: 00000000 | AY78: K | AZ78: ZPERSAREA | BA78: A | BD78: H | BJ78: 00000000 | BK78: 0000 | BM78: 0 | BO78: 1 | BR78: 1 | BS78: 1 | BT78: 1 | BU78: 0 | BV78: 0 | BY78: 2 | CA78: 0 | CB78: DBE5O9AE5IZIBLA6S8UNJO2K9 | CI78: 0000 | CM78: 19 | CN78: D5B6FGJCS8AO1FCVGIC372Z95 | CO78: D5B6FGJCS8M7AQ999LUA7HXBT | CP78: Teachers | CQ78: 0015 | CS78: S | CU78: L | DG78: 19 | DH78: 0ORGUNIT | DI78: 0SALES_OFF | DJ78: Sales Office | DK78: 0000 | DL78: X | DM78: 0 | DN78: 0 | DO78: 0 | DT78: 0000 | EA78: 17 | EB78: D5ENPW16Z67NKAI7Q17H4J3SP | EC78: D5B6FGJCS8CZ3AC5F4MXED62H | EI78: 00 | EJ78: X | EK78: 0 | EL78: 0 | FY78: 9 | FZ78: ZBUDH | GA78: 1 | GB78: P | GC78: I | GD78: EQ | GE78: 20150930 | GF78: 30/09/2015 | GJ78: 0 | GL78: 0 | GN78: 0 | GO78: Master Data Key Date | GP78: 60 | GS78: 0DATE | GT78: 20150930 | HW78: 19 | HX78: 0000000030
AE79: 33 | AF79: ZPRIM_ID | AG79: ZPrimary Employee ID | AH79: X | AK79: 0003 | AS79: 2 | AT79: 00 | AX79: 00000000 | AY79: K | AZ79: ZPRIM_ID | BA79: A | BD79: H | BJ79: 00000000 | BK79: 0000 | BM79: 0 | BR79: 1 | BS79: 1 | BT79: 1 | BU79: 0 | BV79: 0 | BY79: 2 | CA79: 0 | CB79: DBE5O9AE5J0A07LY3SA9M3GU1 | CI79: 0000 | CM79: 19 | CN79: D5B6FGJCS8AO1FCVGIC372Z95 | CO79: D5B6FGJCS8MYZCL0L59W9XBLL | CP79: Total Employees | CQ79: 0016 | CS79: F | CU79: L | DG79: 20 | DH79: 0ORGUNIT | DI79: 0BBPPURGRPX | DJ79: Ind.Purchasing Group | DK79: 0000 | DL79: X | DM79: 2 | DN79: 0 | DO79: 0 | DT79: 0000 | EA79: 17 | EB79: D5ENPW16Z67NKAI7Q17H4J3SP | EC79: D5B6FGJCS8DQRWNWQO2JGSKC9 | EI79: 00 | EJ79: X | EK79: 0 | EL79: 0 | FY79: 9 | FZ79: ZZPERAR | GA79: 1 | GB79: M | GJ79: 0 | GL79: 0 | GN79: 0 | GO79: ZPersonnel Area | GP79: 60 | GS79: ZPERSAREA | HW79: 19 | HX79: 0000000040
AE80: 33 | AF80: 0EMPLGROUP | AG80: Employee Group | AH80: X | AK80: 0004 | AS80: 1 | AT80: 00 | AX80: 00000000 | AY80: K | AZ80: 0EMPLGROUP | BA80: A | BD80: H | BJ80: 00000000 | BK80: 0000 | BM80: 0 | BR80: 1 | BS80: 1 | BT80: 1 | BU80: 0 | BV80: 0 | BY80: 2 | CA80: 0 | CB80: DBE5O9AE5J11OTXPFBPVOIV3T | CI80: 0000 | CM80: 19 | CN80: D5B6FGJCS8AO1FCVGIC372Z95 | CO80: D5B6FGJCS8NQNYWRWOPICCPVD | CP80: All Employees | CQ80: 0017 | CR80: X | CS80: S | CU80: L | DG80: 20 | DH80: 0ORGUNIT | DI80: 0BBPPURORGX | DJ80: Ind. Purchasing Org. | DK80: 0000 | DL80: X | DM80: 2 | DN80: 0 | DO80: 0 | DT80: 0000 | EA80: 17 | EB80: D5ENPW16Z67NKAI7Q17H4J3SP | EC80: D5B6FGJCS8EIGIZO27I5J7YM1 | EI80: 00 | EJ80: X | EK80: 0 | EL80: 0 | FY80: 8 | FZ80: ZS_DT_1 | GA80: 1 | GB80: P | GC80: I | GD80: EQ | GE80: 20150930 | GF80: 30/09/2015 | GJ80: 0 | GL80: 0 | GN80: 0 | GO80: Target date 1 | GP80: 60 | GS80: ZEMP_STRT | GT80: 20150930 | HW80: 19 | HX80: 0000000041
AE81: 33 | AF81: 0PERS_SAREA | AG81: Personnel Subarea | AH81: X | AK81: 0005 | AS81: 1 | AT81: 00 | AX81: 00000000 | AY81: K | AZ81: 0PERS_SAREA | BA81: A | BD81: H | BJ81: 00000000 | BK81: 0000 | BM81: 0 | BR81: 1 | BS81: 1 | BT81: 1 | BU81: 0 | BV81: 0 | BY81: 2 | CA81: 0 | CB81: DBE5O9AE5J1TDG9GQV5HQY9DL | CI81: 0000 | CM81: 19 | CN81: D5B6FGJCS8AO1FCVGIC372Z95 | CO81: D5B6FGJCS8OICL8J8854ES455 | CP81: Non WPBR | CQ81: 0018 | CS81: F | CU81: L | DG81: 20 | DH81: 0ORGUNIT | DI81: 0BBP_BUYID | DJ81: Buyer ID | DK81: 0000 | DL81: X | DM81: 5 | DN81: 0 | DO81: 0 | DT81: 0000 | EA81: 17 | EB81: D5ENPW16Z67NKAI7Q17H4J3SP | EC81: D5B6FGJCS8FA55BFDQXRLNCVT | EI81: 00 | EJ81: X | EK81: 0 | EL81: 0 | FY81: 8 | FZ81: ZBUDH | GA81: 1 | GB81: P | GC81: I | GD81: EQ | GE81: 20150930 | GF81: 30/09/2015 | GJ81: 0 | GL81: 0 | GN81: 0 | GO81: Master Data Key Date | GP81: 60 | GS81: 0DATE | GT81: 20150930 | HW81: 19 | HX81: 0000000042 | HY81: 00
AE82: 33 | AF82: 0ORGUNIT | AG82: Organizational Unit | AH82: X | AK82: 0006 | AR82: U | AS82: 1 | AT82: 02 | AU82: X | AV82: ORGEH | AW82: 000 | AX82: 20121231 | AY82: K | AZ82: 0ORGUNIT | BA82: A | BD82: H | BE82: 0ORGUNIT | BF82: A | BJ82: 00000000 | BK82: 0000 | BM82: 0 | BQ82: 2 | BR82: 1 | BS82: 1 | BT82: 1 | BU82: 0 | BV82: 0 | CA82: 0 | CB82: DBE5O9AE5J2L22L82EL3TDNND | CI82: 0000 | CM82: 20 | CN82: D5ENPW16Z63T56VF4C1ESE4FT | CO82: D5ENPW16Z64KTT76FVH0UTIPL | CP82: Male Temp FT | CQ82: 0001 | CS82: S | CU82: L | CV82: X | CW82: IOBJ | CX82: Z_EMP_HCT | CZ82: Employee Headcount | DG82: 20 | DH82: 0ORGUNIT | DI82: 0BBP_ISCOMP | DJ82: Organizational Unit is Company | DK82: 0000 | DL82: X | DM82: 1 | DN82: 0 | DO82: 0 | DT82: 0000 | EA82: 17 | EB82: D5ENPW16Z67NKAI7Q17H4J3SP | EC82: D5B6FGJCS8G1TRN6PADDO2R5L | EI82: 00 | EJ82: X | EK82: 0 | EL82: 0 | FY82: 8 | FZ82: ZZPERAR | GA82: 1 | GB82: M | GJ82: 0 | GL82: 0 | GN82: 0 | GO82: ZPersonnel Area | GP82: 60 | GS82: ZPERSAREA | HW82: 19 | HX82: 0000000043 | HY82: 00
AE83: 33 | AF83: D5B6FGJCS8AO1FCVGIC372Z95 | AG83: Job Families Incl Teach | AI83: X | AJ83: X | AK83: 0001 | AR83: U | AT83: 00 | AY83: K | AZ83: D5B6FGJCS8AO1FCVGIC372Z95 | BA83: A | BJ83: 00000000 | BK83: 0000 | BM83: 0 | BR83: 0 | BS83: 0 | BT83: 0 | BU83: 0 | BV83: 0 | CB83: D5B6FGJCS8AO1FCVGIC372Z95 | CI83: 0000 | CM83: 20 | CN83: D5B6FGJCS8AO1FCVGIC372Z95 | CO83: D5B6FGJCS8BFQ1OMS1RP9IDIX | CP83: BS | CQ83: 0001 | CS83: S | CU83: L | DG83: 20 | DH83: 0ORGUNIT | DI83: 0BUS_AREA | DJ83: Business area | DK83: 0000 | DL83: X | DM83: 0 | DN83: 0 | DO83: 0 | DT83: 0000 | EA83: 17 | EB83: D5ENPW16Z67NKAI7Q17H4J3SP | EC83: D5B6FGJCS8GTIDYY0TSZQI5FD | EI83: 00 | EJ83: X | EK83: 0 | EL83: 0 | FY83: 7 | FZ83: ZS_DT_1 | GA83: 1 | GB83: P | GC83: I | GD83: EQ | GE83: 20150930 | GF83: 30/09/2015 | GJ83: 0 | GL83: 0 | GN83: 0 | GO83: Target date 1 | GP83: 60 | GS83: ZEMP_STRT | GT83: 20150930 | HW83: 19 | HX83: 0000000021
AE84: 33 | AF84: D5ENPW16Z63T56VF4C1ESE4FT | AG84: Breakdown Gender Contract FTPT | AI84: X | AJ84: Y | AK84: 0001 | AR84: U | AT84: 00 | AY84: K | AZ84: D5ENPW16Z63T56VF4C1ESE4FT | BA84: A | BJ84: 00000000 | BK84: 0000 | BL84: X | BM84: 0 | BR84: 0 | BS84: 0 | BT84: 0 | BU84: 0 | BV84: 0 | CB84: D5ENPW16Z63T56VF4C1ESE4FT | CI84: 0000 | CM84: 20 | CN84: D5ENPW16Z63T56VF4C1ESE4FT | CO84: D5ENPW16Z65CIFIXREWMX8WZD | CP84: Male Temp PT | CQ84: 0002 | CS84: S | CU84: L | CV84: X | CW84: IOBJ | CX84: Z_EMP_HCT | CZ84: Employee Headcount | DG84: 20 | DH84: 0ORGUNIT | DI84: 0COMP_CODE | DJ84: Company code | DK84: 0000 | DL84: X | DM84: 0 | DN84: 0 | DO84: 0 | DT84: 0000 | EA84: 17 | EB84: D5ENPW16Z67NKAI7Q17H4J3SP | EC84: D5B6FGJCS8HL70APCD8LSXJP5 | EI84: 00 | EJ84: X | EK84: 0 | EL84: 0 | FY84: 7 | FZ84: ZBUDH | GA84: 1 | GB84: P | GC84: I | GD84: EQ | GE84: 20150930 | GF84: 30/09/2015 | GJ84: 0 | GL84: 0 | GN84: 0 | GO84: Master Data Key Date | GP84: 60 | GS84: 0DATE | GT84: 20150930 | HW84: 19 | HX84: 0000000022
AE85: 34 | AF85: ZPERID | AG85: NI Number | AH85: X | AK85: 0001 | AS85: 2 | AT85: 00 | AX85: 00000000 | AY85: K | AZ85: ZPERID | BA85: A | BD85: H | BJ85: 00000000 | BK85: 0000 | BM85: 0 | BR85: 1 | BS85: 1 | BT85: 1 | BU85: 0 | BV85: 0 | BY85: 2 | CA85: 0 | CB85: DBE5O9AE5IYQMYYFGPF1H8OAH | CI85: 0000 | CM85: 20 | CN85: D5B6FGJCS8AO1FCVGIC372Z95 | CO85: D5B6FGJCS8C7EO0E3L7BBXRSP | CP85: CV | CQ85: 0002 | CS85: S | CU85: L | DG85: 20 | DH85: 0ORGUNIT | DI85: 0CO_MST_AR | DJ85: Controlling Area of Master Cost Center | DK85: 0000 | DL85: X | DM85: 0 | DN85: 0 | DO85: 0 | DT85: 0000 | EA85: 17 | EB85: D5ENPW16Z67NKAI7Q17H4J3SP | EC85: D5B6FGJCS8ICVMMGNWO7VCXYX | EI85: 00 | EJ85: X | EK85: 0 | EL85: 0 | FY85: 7 | FZ85: ZZPERAR | GA85: 1 | GB85: M | GJ85: 0 | GL85: 0 | GN85: 0 | GO85: ZPersonnel Area | GP85: 60 | GS85: ZPERSAREA | HW85: 19 | HX85: 0000000023
AE86: 34 | AF86: ZPERSAREA | AG86: ZPersonal Area | AH86: X | AK86: 0002 | AM86: Financial | AS86: 5 | AT86: 00 | AX86: 00000000 | AY86: K | AZ86: ZPERSAREA | BA86: A | BD86: H | BJ86: 00000000 | BK86: 0000 | BM86: 0 | BO86: 1 | BR86: 1 | BS86: 1 | BT86: 1 | BU86: 0 | BV86: 0 | BY86: 2 | CA86: 0 | CB86: DBE5O9AE5IZIBLA6S8UNJO2K9 | CI86: 0000 | CM86: 20 | CN86: D5ENPW16Z63T56VF4C1ESE4FT | CO86: D5ENPW16Z66471UP2YC8ZOB95 | CP86: Male Perm FT | CQ86: 0003 | CS86: S | CU86: L | CV86: X | CW86: IOBJ | CX86: Z_EMP_HCT | CZ86: Employee Headcount | DG86: 20 | DH86: 0ORGUNIT | DI86: 0CRMSALGRPX | DJ86: Sls Group: Indicator | DK86: 0000 | DL86: X | DM86: 2 | DN86: 0 | DO86: 0 | DT86: 0000 | EA86: 17 | EB86: D5ENPW16Z67NKAI7Q17H4J3SP | EC86: D5B6FGJCS8J4K8Y7ZG3TXSC8P | EI86: 00 | EJ86: X | EK86: 0 | EL86: 0 | FY86: 6 | FZ86: ZS_DT_1 | GA86: 1 | GB86: P | GC86: I | GD86: EQ | GE86: 20150930 | GF86: 30/09/2015 | GJ86: 0 | GL86: 0 | GN86: 0 | GO86: Target date 1 | GP86: 60 | GS86: ZEMP_STRT | GT86: 20150930 | HW86: 19 | HX86: 0000010002 | HY86: DBE5O9AE5IU4J8ZVJGTD2OANT
AE87: 34 | AF87: ZPRIM_ID | AG87: ZPrimary Employee ID | AH87: X | AK87: 0003 | AS87: 2 | AT87: 00 | AX87: 00000000 | AY87: K | AZ87: ZPRIM_ID | BA87: A | BD87: H | BJ87: 00000000 | BK87: 0000 | BM87: 0 | BR87: 1 | BS87: 1 | BT87: 1 | BU87: 0 | BV87: 0 | BY87: 2 | CA87: 0 | CB87: DBE5O9AE5J0A07LY3SA9M3GU1 | CI87: 0000 | CM87: 20 | CN87: D5B6FGJCS8AO1FCVGIC372Z95 | CO87: D5B6FGJCS8CZ3AC5F4MXED62H | CP87: CA | CQ87: 0003 | CS87: S | CU87: L | DG87: 20 | DH87: 0ORGUNIT | DI87: 0CRMSALOFFX | DJ87: Sls Office:Indicator | DK87: 0000 | DL87: X | DM87: 2 | DN87: 0 | DO87: 0 | DT87: 0000 | EA87: 17 | EB87: D5ENPW16Z67NKAI7Q17H4J3SP | EC87: D5B6FGJCS8JW8V9ZAZJG07QIH | EI87: 00 | EJ87: X | EK87: 0 | EL87: 0 | FY87: 6 | FZ87: ZBUDH | GA87: 1 | GB87: P | GC87: I | GD87: EQ | GE87: 20150930 | GF87: 30/09/2015 | GJ87: 0 | GL87: 0 | GN87: 0 | GO87: Master Data Key Date | GP87: 60 | GS87: 0DATE | GT87: 20150930 | HW87: 19 | HX87: 0000000105
AE88: 34 | AF88: 0EMPLGROUP | AG88: Employee Group | AH88: X | AK88: 0004 | AS88: 1 | AT88: 00 | AX88: 00000000 | AY88: K | AZ88: 0EMPLGROUP | BA88: A | BD88: H | BJ88: 00000000 | BK88: 0000 | BM88: 0 | BR88: 1 | BS88: 1 | BT88: 1 | BU88: 0 | BV88: 0 | BY88: 2 | CA88: 0 | CB88: DBE5O9AE5J11OTXPFBPVOIV3T | CI88: 0000 | CM88: 20 | CN88: D5ENPW16Z63T56VF4C1ESE4FT | CO88: D5ENPW16Z66VVO6GEHRV23PIX | CP88: Male Perm PT | CQ88: 0004 | CS88: S | CU88: L | CV88: X | CW88: IOBJ | CX88: Z_EMP_HCT | CZ88: Employee Headcount | DG88: 20 | DH88: 0ORGUNIT | DI88: 0CRMSALORGX | DJ88: Sales Org. Indicator | DK88: 0000 | DL88: X | DM88: 2 | DN88: 0 | DO88: 0 | DT88: 0000 | EA88: 17 | EB88: D5ENPW16Z67NKAI7Q17H4J3SP | EC88: D5B6FGJCS8KNXHLQMIZ22N4S9 | EI88: 00 | EJ88: X | EK88: 0 | EL88: 0 | FY88: 6 | FZ88: ZZPERAR | GA88: 1 | GB88: M | GJ88: 0 | GL88: 0 | GN88: 0 | GO88: ZPersonnel Area | GP88: 60 | GS88: ZPERSAREA | HW88: 19 | HX88: 0000000106
AE89: 34 | AF89: 0PERS_SAREA | AG89: Personnel Subarea | AH89: X | AK89: 0005 | AS89: 1 | AT89: 00 | AX89: 00000000 | AY89: K | AZ89: 0PERS_SAREA | BA89: A | BD89: H | BJ89: 00000000 | BK89: 0000 | BM89: 0 | BR89: 1 | BS89: 1 | BT89: 1 | BU89: 0 | BV89: 0 | BY89: 2 | CA89: 0 | CB89: DBE5O9AE5J1TDG9GQV5HQY9DL | CI89: 0000 | CM89: 20 | CN89: D5B6FGJCS8AO1FCVGIC372Z95 | CO89: D5B6FGJCS8DQRWNWQO2JGSKC9 | CP89: CF | CQ89: 0004 | CS89: S | CU89: L | DG89: 20 | DH89: 0ORGUNIT | DI89: 0CRMSRVTGRP | DJ89: Ex. CRM Service Org. | DK89: 0000 | DL89: X | DM89: 1 | DN89: 0 | DO89: 0 | DT89: 0000 | EA89: 17 | EB89: D5ENPW16Z67NKAI7Q17H4J3SP | EC89: D5B6FGJCS8LFM3XHY2EO52J21 | EI89: 00 | EJ89: X | EK89: 0 | EL89: 0 | FY89: 5 | FZ89: ZS_DT_1 | GA89: 1 | GB89: P | GC89: I | GD89: EQ | GE89: 20150930 | GF89: 30/09/2015 | GJ89: 0 | GL89: 0 | GN89: 0 | GO89: Target date 1 | GP89: 60 | GS89: ZEMP_STRT | GT89: 20150930 | HW89: 19 | HX89: 0000000112 | HY89: 0
AE90: 34 | AF90: 0ORGUNIT | AG90: Organizational Unit | AH90: X | AK90: 0006 | AR90: U | AS90: 1 | AT90: 02 | AU90: X | AV90: ORGEH | AW90: 000 | AX90: 20121231 | AY90: K | AZ90: 0ORGUNIT | BA90: A | BD90: H | BE90: 0ORGUNIT | BF90: A | BJ90: 00000000 | BK90: 0000 | BM90: 0 | BQ90: 2 | BR90: 1 | BS90: 1 | BT90: 1 | BU90: 0 | BV90: 0 | CA90: 0 | CB90: DBE5O9AE5J2L22L82EL3TDNND | CI90: 0000 | CM90: 20 | CN90: D5B6FGJCS8AO1FCVGIC372Z95 | CO90: D5B6FGJCS8EIGIZO27I5J7YM1 | CP90: CU | CQ90: 0005 | CS90: S | CU90: L | DG90: 20 | DH90: 0ORGUNIT | DI90: 0CRM_SALGRP | DJ90: CRM Sales Group | DK90: 0000 | DL90: X | DM90: 1 | DN90: 0 | DO90: 0 | DT90: 0000 | EA90: 17 | EB90: D5ENPW16Z67NKAI7Q17H4J3SP | EC90: D5B6FGJCS8M7AQ999LUA7HXBT | EI90: 00 | EJ90: X | EK90: 0 | EL90: 0 | FY90: 5 | FZ90: ZBUDH | GA90: 1 | GB90: P | GC90: I | GD90: EQ | GE90: 20150930 | GF90: 30/09/2015 | GJ90: 0 | GL90: 0 | GN90: 0 | GO90: Master Data Key Date | GP90: 60 | GS90: 0DATE | GT90: 20150930 | HW90: 19 | HX90: 0000000200 | HY90: X
AE91: 34 | AF91: D5B6FGJCS8AO1FCVGIC372Z95 | AG91: Job Families Incl Teach | AI91: X | AJ91: X | AK91: 0001 | AR91: U | AT91: 00 | AY91: K | AZ91: D5B6FGJCS8AO1FCVGIC372Z95 | BA91: A | BJ91: 00000000 | BK91: 0000 | BM91: 0 | BR91: 0 | BS91: 0 | BT91: 0 | BU91: 0 | BV91: 0 | CB91: D5B6FGJCS8AO1FCVGIC372Z95 | CI91: 0000 | CM91: 20 | CN91: D5ENPW16Z63T56VF4C1ESE4FT | CO91: D5ENPW16Z67NKAI7Q17H4J3SP | CP91: Female Temp FT | CQ91: 0005 | CS91: S | CU91: L | CV91: X | CW91: IOBJ | CX91: Z_EMP_HCT | CZ91: Employee Headcount | DG91: 20 | DH91: 0ORGUNIT | DI91: 0CRM_SALOFF | DJ91: CRM Sales Office | DK91: 0000 | DL91: X | DM91: 1 | DN91: 0 | DO91: 0 | DT91: 0000 | EA91: 17 | EB91: D5ENPW16Z67NKAI7Q17H4J3SP | EC91: D5B6FGJCS8MYZCL0L59W9XBLL | ED91: 0 | EE91: 0 | EI91: 00 | EJ91: X | EK91: 0 | EL91: 0 | FY91: 5 | FZ91: ZZPERAR | GA91: 1 | GB91: M | GJ91: 0 | GL91: 0 | GN91: 0 | GO91: ZPersonnel Area | GP91: 60 | GS91: ZPERSAREA | HW91: 19 | HX91: 0000004000 | HY91: X
AE92: 34 | AF92: D5ENPW16Z63T56VF4C1ESE4FT | AG92: Breakdown Gender Contract FTPT | AI92: X | AJ92: Y | AK92: 0001 | AR92: U | AT92: 00 | AY92: K | AZ92: D5ENPW16Z63T56VF4C1ESE4FT | BA92: A | BJ92: 00000000 | BK92: 0000 | BL92: X | BM92: 0 | BR92: 0 | BS92: 0 | BT92: 0 | BU92: 0 | BV92: 0 | CB92: D5ENPW16Z63T56VF4C1ESE4FT | CI92: 0000 | CM92: 20 | CN92: D5ENPW16Z63T56VF4C1ESE4FT | CO92: D5ENPW16Z68F8WTZ1KN36YI2H | CP92: Female Temp PT | CQ92: 0006 | CS92: S | CU92: L | CV92: X | CW92: IOBJ | CX92: Z_EMP_HCT | CZ92: Employee Headcount | DG92: 20 | DH92: 0ORGUNIT | DI92: 0CRM_SALORG | DJ92: CRM Sales Org. | DK92: 0000 | DL92: X | DM92: 1 | DN92: 0 | DO92: 0 | DT92: 0000 | EA92: 17 | EB92: D5ENPW16Z67NKAI7Q17H4J3SP | EC92: D5B6FGJCS8NQNYWRWOPICCPVD | EI92: 00 | EJ92: X | EK92: 0 | EL92: 0 | FY92: 4 | FZ92: ZS_DT_1 | GA92: 1 | GB92: P | GC92: I | GD92: EQ | GE92: 20150930 | GF92: 30/09/2015 | GJ92: 0 | GL92: 0 | GN92: 0 | GO92: Target date 1 | GP92: 60 | GS92: ZEMP_STRT | GT92: 20150930 | HW92: 19 | HX92: 0000009001 | HY92: QSW Breakdown By Job Family excl cas sess
AE93: 35 | AF93: ZPERID | AG93: NI Number | AH93: X | AK93: 0001 | AS93: 2 | AT93: 00 | AX93: 00000000 | AY93: K | AZ93: ZPERID | BA93: A | BD93: H | BJ93: 00000000 | BK93: 0000 | BM93: 0 | BR93: 1 | BS93: 1 | BT93: 1 | BU93: 0 | BV93: 0 | BY93: 2 | CA93: 0 | CB93: DBE5O9AE5IYQMYYFGPF1H8OAH | CI93: 0000 | CM93: 20 | CN93: D5B6FGJCS8AO1FCVGIC372Z95 | CO93: D5B6FGJCS8FA55BFDQXRLNCVT | CP93: CR | CQ93: 0006 | CS93: S | CU93: L | DG93: 20 | DH93: 0ORGUNIT | DI93: 0CRM_SRVORG | DJ93: Service Org. CRM | DK93: 0000 | DL93: X | DM93: 1 | DN93: 0 | DO93: 0 | DT93: 0000 | EA93: 17 | EB93: D5ENPW16Z67NKAI7Q17H4J3SP | EC93: D5B6FGJCS8OICL8J8854ES455 | ED93: 0 | EE93: 0 | EI93: 00 | EJ93: X | EK93: 0 | EL93: 0 | FY93: 4 | FZ93: ZBUDH | GA93: 1 | GB93: P | GC93: I | GD93: EQ | GE93: 20150930 | GF93: 30/09/2015 | GJ93: 0 | GL93: 0 | GN93: 0 | GO93: Master Data Key Date | GP93: 60 | GS93: 0DATE | GT93: 20150930 | HW93: 19 | HX93: 0000000114 | HY93: 1
AE94: 35 | AF94: ZPERSAREA | AG94: ZPersonal Area | AH94: X | AK94: 0002 | AM94: Land and Environmental | AS94: 5 | AT94: 00 | AX94: 00000000 | AY94: K | AZ94: ZPERSAREA | BA94: A | BD94: H | BJ94: 00000000 | BK94: 0000 | BM94: 0 | BO94: 1 | BR94: 1 | BS94: 1 | BT94: 1 | BU94: 0 | BV94: 0 | BY94: 2 | CA94: 0 | CB94: DBE5O9AE5IZIBLA6S8UNJO2K9 | CI94: 0000 | CM94: 20 | CN94: D5ENPW16Z63T56VF4C1ESE4FT | CO94: D5ENPW16Z696XJ5QD42P9DWC9 | CP94: Female Perm FT | CQ94: 0007 | CS94: S | CU94: L | CV94: X | CW94: IOBJ | CX94: Z_EMP_HCT | CZ94: Employee Headcount | DG94: 20 | DH94: 0ORGUNIT | DI94: 0LOGSYS | DJ94: Source System | DK94: 0000 | DL94: X | DM94: 1 | DN94: 0 | DO94: 0 | DT94: 0000 | EA94: 17 | EB94: D5ENPW16Z68F8WTZ1KN36YI2H | EC94: D5B6FGJCS8BFQ1OMS1RP9IDIX | EI94: 00 | EJ94: X | EK94: 0 | EL94: 0 | FY94: 4 | FZ94: ZZPERAR | GA94: 1 | GB94: M | GJ94: 0 | GL94: 0 | GN94: 0 | GO94: ZPersonnel Area | GP94: 60 | GS94: ZPERSAREA | HW94: 20 | HX94: 0000000100 | HY94: X
AE95: 35 | AF95: ZPRIM_ID | AG95: ZPrimary Employee ID | AH95: X | AK95: 0003 | AS95: 2 | AT95: 00 | AX95: 00000000 | AY95: K | AZ95: ZPRIM_ID | BA95: A | BD95: H | BJ95: 00000000 | BK95: 0000 | BM95: 0 | BR95: 1 | BS95: 1 | BT95: 1 | BU95: 0 | BV95: 0 | BY95: 2 | CA95: 0 | CB95: DBE5O9AE5J0A07LY3SA9M3GU1 | CI95: 0000 | CM95: 20 | CN95: D5B6FGJCS8AO1FCVGIC372Z95 | CO95: D5B6FGJCS8G1TRN6PADDO2R5L | CP95: IP | CQ95: 0007 | CS95: S | CU95: L | DG95: 20 | DH95: 0ORGUNIT | DI95: 0MAST_CCTR | DJ95: Master Cost Center | DK95: 0000 | DL95: X | DM95: 0 | DN95: 0 | DO95: 0 | DT95: 0000 | EA95: 17 | EB95: D5ENPW16Z68F8WTZ1KN36YI2H | EC95: D5B6FGJCS8C7EO0E3L7BBXRSP | EI95: 00 | EJ95: X | EK95: 0 | EL95: 0 | FY95: 28 | FZ95: ZS_DT_1 | GA95: 1 | GB95: P | GC95: I | GD95: EQ | GE95: 20150930 | GF95: 30/09/2015 | GJ95: 0 | GL95: 0 | GN95: 0 | GO95: Target date 1 | GP95: 60 | GS95: ZEMP_STRT | GT95: 20150930 | HW95: 20 | HX95: 0000000108
AE96: 35 | AF96: 0EMPLGROUP | AG96: Employee Group | AH96: X | AK96: 0004 | AS96: 1 | AT96: 00 | AX96: 00000000 | AY96: K | AZ96: 0EMPLGROUP | BA96: A | BD96: H | BJ96: 00000000 | BK96: 0000 | BM96: 0 | BR96: 1 | BS96: 1 | BT96: 1 | BU96: 0 | BV96: 0 | BY96: 2 | CA96: 0 | CB96: DBE5O9AE5J11OTXPFBPVOIV3T | CI96: 0000 | CM96: 20 | CN96: D5ENPW16Z63T56VF4C1ESE4FT | CO96: D5ENPW16Z69YM5HHONIBBTAM1 | CP96: Female Perm PT | CQ96: 0008 | CS96: S | CU96: L | CV96: X | CW96: IOBJ | CX96: Z_EMP_HCT | CZ96: Employee Headcount | DG96: 20 | DH96: 0ORGUNIT | DI96: 0PERS_AREA | DJ96: Personnel Area | DK96: 0000 | DL96: X | DM96: 1 | DN96: 0 | DO96: 0 | DT96: 0000 | EA96: 17 | EB96: D5ENPW16Z68F8WTZ1KN36YI2H | EC96: D5B6FGJCS8CZ3AC5F4MXED62H | EI96: 00 | EJ96: X | EK96: 0 | EL96: 0 | FY96: 28 | FZ96: ZBUDH | GA96: 1 | GB96: P | GC96: I | GD96: EQ | GE96: 20150930 | GF96: 30/09/2015 | GJ96: 0 | GL96: 0 | GN96: 0 | GO96: Master Data Key Date | GP96: 60 | GS96: 0DATE | GT96: 20150930 | HW96: 20 | HX96: 0000000101
AE97: 35 | AF97: 0PERS_SAREA | AG97: Personnel Subarea | AH97: X | AK97: 0005 | AS97: 1 | AT97: 00 | AX97: 00000000 | AY97: K | AZ97: 0PERS_SAREA | BA97: A | BD97: H | BJ97: 00000000 | BK97: 0000 | BM97: 0 | BR97: 1 | BS97: 1 | BT97: 1 | BU97: 0 | BV97: 0 | BY97: 2 | CA97: 0 | CB97: DBE5O9AE5J1TDG9GQV5HQY9DL | CI97: 0000 | CM97: 20 | CN97: D5B6FGJCS8AO1FCVGIC372Z95 | CO97: D5B6FGJCS8GTIDYY0TSZQI5FD | CP97: LS | CQ97: 0008 | CS97: S | CU97: L | DG97: 20 | DH97: 0ORGUNIT | DI97: 0PERS_SAREA | DJ97: Personnel Subarea | DK97: 0000 | DL97: X | DM97: 1 | DN97: 0 | DO97: 0 | DT97: 0000 | EA97: 17 | EB97: D5ENPW16Z68F8WTZ1KN36YI2H | EC97: D5B6FGJCS8DQRWNWQO2JGSKC9 | EI97: 00 | EJ97: X | EK97: 0 | EL97: 0 | FY97: 28 | FZ97: ZZPERAR | GA97: 1 | GB97: M | GJ97: 0 | GL97: 0 | GN97: 0 | GO97: ZPersonnel Area | GP97: 60 | GS97: ZPERSAREA | HW97: 20 | HX97: 0000000104 | HY97: 1
AE98: 35 | AF98: 0ORGUNIT | AG98: Organizational Unit | AH98: X | AK98: 0006 | AR98: U | AS98: 1 | AT98: 02 | AU98: X | AV98: ORGEH | AW98: 000 | AX98: 20121231 | AY98: K | AZ98: 0ORGUNIT | BA98: A | BD98: H | BE98: 0ORGUNIT | BF98: A | BJ98: 00000000 | BK98: 0000 | BM98: 0 | BQ98: 2 | BR98: 1 | BS98: 1 | BT98: 1 | BU98: 0 | BV98: 0 | CA98: 0 | CB98: DBE5O9AE5J2L22L82EL3TDNND | CI98: 0000 | CM98: 20 | CN98: D5B6FGJCS8AO1FCVGIC372Z95 | CO98: D5B6FGJCS8HL70APCD8LSXJP5 | CP98: PC | CQ98: 0009 | CS98: S | CU98: L | DG98: 20 | DH98: 0ORGUNIT | DI98: 0PLANT | DJ98: Plant | DK98: 0000 | DL98: X | DM98: 0 | DN98: 0 | DO98: 0 | DT98: 0000 | EA98: 17 | EB98: D5ENPW16Z68F8WTZ1KN36YI2H | EC98: D5B6FGJCS8EIGIZO27I5J7YM1 | EI98: 00 | EJ98: X | EK98: 0 | EL98: 0 | FY98: 29 | FZ98: ZS_DT_1 | GA98: 1 | GB98: P | GC98: I | GD98: EQ | GE98: 20150930 | GF98: 30/09/2015 | GJ98: 0 | GL98: 0 | GN98: 0 | GO98: Target date 1 | GP98: 60 | GS98: ZEMP_STRT | GT98: 20150930 | HW98: 20 | HX98: 0000000103
AE99: 35 | AF99: D5B6FGJCS8AO1FCVGIC372Z95 | AG99: Job Families Incl Teach | AI99: X | AJ99: X | AK99: 0001 | AR99: U | AT99: 00 | AY99: K | AZ99: D5B6FGJCS8AO1FCVGIC372Z95 | BA99: A | BJ99: 00000000 | BK99: 0000 | BM99: 0 | BR99: 0 | BS99: 0 | BT99: 0 | BU99: 0 | BV99: 0 | CB99: D5B6FGJCS8AO1FCVGIC372Z95 | CI99: 0000 | CM99: 20 | CN99: D5B6FGJCS8AO1FCVGIC372Z95 | CO99: D5B6FGJCS8ICVMMGNWO7VCXYX | CP99: PH | CQ99: 0010 | CS99: S | CU99: L | DG99: 20 | DH99: 0ORGUNIT | DI99: 0PURCH_ORG | DJ99: Purchasing org. | DK99: 0000 | DL99: X | DM99: 0 | DN99: 0 | DO99: 0 | DT99: 0000 | EA99: 17 | EB99: D5ENPW16Z68F8WTZ1KN36YI2H | EC99: D5B6FGJCS8FA55BFDQXRLNCVT | EI99: 00 | EJ99: X | EK99: 0 | EL99: 0 | FY99: 29 | FZ99: ZBUDH | GA99: 1 | GB99: P | GC99: I | GD99: EQ | GE99: 20150930 | GF99: 30/09/2015 | GJ99: 0 | GL99: 0 | GN99: 0 | GO99: Master Data Key Date | GP99: 60 | GS99: 0DATE | GT99: 20150930 | HW99: 20 | HX99: 0000000102 | HY99: 1
AE100: 35 | AF100: D5ENPW16Z63T56VF4C1ESE4FT | AG100: Breakdown Gender Contract FTPT | AI100: X | AJ100: Y | AK100: 0001 | AR100: U | AT100: 00 | AY100: K | AZ100: D5ENPW16Z63T56VF4C1ESE4FT | BA100: A | BJ100: 00000000 | BK100: 0000 | BL100: X | BM100: 0 | BR100: 0 | BS100: 0 | BT100: 0 | BU100: 0 | BV100: 0 | CB100: D5ENPW16Z63T56VF4C1ESE4FT | CI100: 0000 | CM100: 20 | CN100: D5B6FGJCS8AO1FCVGIC372Z95 | CO100: D5B6FGJCS8J4K8Y7ZG3TXSC8P | CP100: SE | CQ100: 0011 | CS100: S | CU100: L | DG100: 20 | DH100: 0ORGUNIT | DI100: 0PUR_GROUP | DJ100: Purchasing group | DK100: 0000 | DL100: X | DM100: 0 | DN100: 0 | DO100: 0 | DT100: 0000 | EA100: 17 | EB100: D5ENPW16Z68F8WTZ1KN36YI2H | EC100: D5B6FGJCS8G1TRN6PADDO2R5L | EI100: 00 | EJ100: X | EK100: 0 | EL100: 0 | FY100: 29 | FZ100: ZZPERAR | GA100: 1 | GB100: M | GJ100: 0 | GL100: 0 | GN100: 0 | GO100: ZPersonnel Area | GP100: 60 | GS100: ZPERSAREA | HW100: 20 | HX100: 0000009000
AE101: 36 | AF101: ZPERID | AG101: NI Number | AH101: X | AK101: 0001 | AS101: 2 | AT101: 00 | AX101: 00000000 | AY101: K | AZ101: ZPERID | BA101: A | BD101: H | BJ101: 00000000 | BK101: 0000 | BM101: 0 | BR101: 1 | BS101: 1 | BT101: 1 | BU101: 0 | BV101: 0 | BY101: 2 | CA101: 0 | CB101: DBE5O9AE5IYQMYYFGPF1H8OAH | CI101: 0000 | CM101: 20 | CN101: D5B6FGJCS8AO1FCVGIC372Z95 | CO101: D5B6FGJCS8JW8V9ZAZJG07QIH | CP101: SR | CQ101: 0012 | CS101: S | CU101: L | DG101: 20 | DH101: 0ORGUNIT | DI101: 0SALESORG | DJ101: Sales Organization | DK101: 0000 | DL101: X | DM101: 0 | DN101: 0 | DO101: 0 | DT101: 0000 | EA101: 17 | EB101: D5ENPW16Z68F8WTZ1KN36YI2H | EC101: D5B6FGJCS8GTIDYY0TSZQI5FD | EI101: 00 | EJ101: X | EK101: 0 | EL101: 0 | FY101: 30 | FZ101: ZS_DT_1 | GA101: 1 | GB101: P | GC101: I | GD101: EQ | GE101: 20150930 | GF101: 30/09/2015 | GJ101: 0 | GL101: 0 | GN101: 0 | GO101: Target date 1 | GP101: 60 | GS101: ZEMP_STRT | GT101: 20150930 | HW101: 20 | HX101: 0000000107 | HY101: DBE5O9AE5IU4J8ZVJGTD2OANT
AE102: 36 | AF102: ZPERSAREA | AG102: ZPersonal Area | AH102: X | AK102: 0002 | AM102: Social Work | AS102: 5 | AT102: 00 | AX102: 00000000 | AY102: K | AZ102: ZPERSAREA | BA102: A | BD102: H | BJ102: 00000000 | BK102: 0000 | BM102: 0 | BO102: 1 | BR102: 1 | BS102: 1 | BT102: 1 | BU102: 0 | BV102: 0 | BY102: 2 | CA102: 0 | CB102: DBE5O9AE5IZIBLA6S8UNJO2K9 | CI102: 0000 | CM102: 20 | CN102: D5B6FGJCS8AO1FCVGIC372Z95 | CO102: D5B6FGJCS8KNXHLQMIZ22N4S9 | CP102: TS | CQ102: 0013 | CS102: S | CU102: L | DG102: 20 | DH102: 0ORGUNIT | DI102: 0SALES_GRP | DJ102: Sales group | DK102: 0000 | DL102: X | DM102: 0 | DN102: 0 | DO102: 0 | DT102: 0000 | EA102: 17 | EB102: D5ENPW16Z68F8WTZ1KN36YI2H | EC102: D5B6FGJCS8HL70APCD8LSXJP5 | EI102: 00 | EJ102: X | EK102: 0 | EL102: 0 | FY102: 30 | FZ102: ZBUDH | GA102: 1 | GB102: P | GC102: I | GD102: EQ | GE102: 20150930 | GF102: 30/09/2015 | GJ102: 0 | GL102: 0 | GN102: 0 | GO102: Master Data Key Date | GP102: 60 | GS102: 0DATE | GT102: 20150930 | HW102: 20 | HX102: 0000010001 | HY102: DBE5O9AE5J44FB8QPHGBY8G6X
AE103: 36 | AF103: ZPRIM_ID | AG103: ZPrimary Employee ID | AH103: X | AK103: 0003 | AS103: 2 | AT103: 00 | AX103: 00000000 | AY103: K | AZ103: ZPRIM_ID | BA103: A | BD103: H | BJ103: 00000000 | BK103: 0000 | BM103: 0 | BR103: 1 | BS103: 1 | BT103: 1 | BU103: 0 | BV103: 0 | BY103: 2 | CA103: 0 | CB103: DBE5O9AE5J0A07LY3SA9M3GU1 | CI103: 0000 | CM103: 20 | CN103: D5B6FGJCS8AO1FCVGIC372Z95 | CO103: D5B6FGJCS8LFM3XHY2EO52J21 | CP103: VE | CQ103: 0014 | CS103: S | CU103: L | DG103: 20 | DH103: 0ORGUNIT | DI103: 0SALES_OFF | DJ103: Sales Office | DK103: 0000 | DL103: X | DM103: 0 | DN103: 0 | DO103: 0 | DT103: 0000 | EA103: 17 | EB103: D5ENPW16Z68F8WTZ1KN36YI2H | EC103: D5B6FGJCS8ICVMMGNWO7VCXYX | EI103: 00 | EJ103: X | EK103: 0 | EL103: 0 | FY103: 30 | FZ103: ZZPERAR | GA103: 1 | GB103: M | GJ103: 0 | GL103: 0 | GN103: 0 | GO103: ZPersonnel Area | GP103: 60 | GS103: ZPERSAREA | HW103: 20 | HX103: 0000010003 | HY103: ZPA_O07
AE104: 36 | AF104: 0EMPLGROUP | AG104: Employee Group | AH104: X | AK104: 0004 | AS104: 1 | AT104: 00 | AX104: 00000000 | AY104: K | AZ104: 0EMPLGROUP | BA104: A | BD104: H | BJ104: 00000000 | BK104: 0000 | BM104: 0 | BR104: 1 | BS104: 1 | BT104: 1 | BU104: 0 | BV104: 0 | BY104: 2 | CA104: 0 | CB104: DBE5O9AE5J11OTXPFBPVOIV3T | CI104: 0000 | CM104: 20 | CN104: D5B6FGJCS8AO1FCVGIC372Z95 | CO104: D5B6FGJCS8M7AQ999LUA7HXBT | CP104: Teachers | CQ104: 0015 | CS104: S | CU104: L | DG104: 15 | DH104: 0ORGUNIT | DI104: 0BBPPURGRPX | DJ104: Ind.Purchasing Group | DK104: 0000 | DL104: X | DM104: 2 | DN104: 0 | DO104: 0 | DT104: 0000 | EA104: 17 | EB104: D5ENPW16Z68F8WTZ1KN36YI2H | EC104: D5B6FGJCS8J4K8Y7ZG3TXSC8P | EI104: 00 | EJ104: X | EK104: 0 | EL104: 0 | FY104: 23 | FZ104: ZS_DT_1 | GA104: 1 | GB104: P | GC104: I | GD104: EQ | GE104: 20150930 | GF104: 30/09/2015 | GJ104: 0 | GL104: 0 | GN104: 0 | GO104: Target date 1 | GP104: 60 | GS104: ZEMP_STRT | GT104: 20150930 | HW104: 20 | HX104: 0000000010
AE105: 36 | AF105: 0PERS_SAREA | AG105: Personnel Subarea | AH105: X | AK105: 0005 | AS105: 1 | AT105: 00 | AX105: 00000000 | AY105: K | AZ105: 0PERS_SAREA | BA105: A | BD105: H | BJ105: 00000000 | BK105: 0000 | BM105: 0 | BR105: 1 | BS105: 1 | BT105: 1 | BU105: 0 | BV105: 0 | BY105: 2 | CA105: 0 | CB105: DBE5O9AE5J1TDG9GQV5HQY9DL | CI105: 0000 | CM105: 20 | CN105: D5B6FGJCS8AO1FCVGIC372Z95 | CO105: D5B6FGJCS8MYZCL0L59W9XBLL | CP105: Total Employees | CQ105: 0016 | CS105: F | CU105: L | DG105: 15 | DH105: 0ORGUNIT | DI105: 0BBPPURORGX | DJ105: Ind. Purchasing Org. | DK105: 0000 | DL105: X | DM105: 2 | DN105: 0 | DO105: 0 | DT105: 0000 | EA105: 17 | EB105: D5ENPW16Z68F8WTZ1KN36YI2H | EC105: D5B6FGJCS8JW8V9ZAZJG07QIH | EI105: 00 | EJ105: X | EK105: 0 | EL105: 0 | FY105: 23 | FZ105: ZBUDH | GA105: 1 | GB105: P | GC105: I | GD105: EQ | GE105: 20150930 | GF105: 30/09/2015 | GJ105: 0 | GL105: 0 | GN105: 0 | GO105: Master Data Key Date | GP105: 60 | GS105: 0DATE | GT105: 20150930 | HW105: 20 | HX105: 0000000109 | HY105: 0
AE106: 36 | AF106: 0ORGUNIT | AG106: Organizational Unit | AH106: X | AK106: 0006 | AR106: U | AS106: 1 | AT106: 02 | AU106: X | AV106: ORGEH | AW106: 000 | AX106: 20121231 | AY106: K | AZ106: 0ORGUNIT | BA106: A | BD106: H | BE106: 0ORGUNIT | BF106: A | BJ106: 00000000 | BK106: 0000 | BM106: 0 | BQ106: 2 | BR106: 1 | BS106: 1 | BT106: 1 | BU106: 0 | BV106: 0 | CA106: 0 | CB106: DBE5O9AE5J2L22L82EL3TDNND | CI106: 0000 | CM106: 20 | CN106: D5B6FGJCS8AO1FCVGIC372Z95 | CO106: D5B6FGJCS8NQNYWRWOPICCPVD | CP106: All Employees | CQ106: 0017 | CR106: X | CS106: S | CU106: L | DG106: 15 | DH106: 0ORGUNIT | DI106: 0BBP_BUYID | DJ106: Buyer ID | DK106: 0000 | DL106: X | DM106: 5 | DN106: 0 | DO106: 0 | DT106: 0000 | EA106: 17 | EB106: D5ENPW16Z68F8WTZ1KN36YI2H | EC106: D5B6FGJCS8KNXHLQMIZ22N4S9 | EI106: 00 | EJ106: X | EK106: 0 | EL106: 0 | FY106: 23 | FZ106: ZZPERAR | GA106: 1 | GB106: M | GJ106: 0 | GL106: 0 | GN106: 0 | GO106: ZPersonnel Area | GP106: 60 | GS106: ZPERSAREA | HW106: 20 | HX106: 0000000113
AE107: 36 | AF107: D5B6FGJCS8AO1FCVGIC372Z95 | AG107: Job Families Incl Teach | AI107: X | AJ107: X | AK107: 0001 | AR107: U | AT107: 00 | AY107: K | AZ107: D5B6FGJCS8AO1FCVGIC372Z95 | BA107: A | BJ107: 00000000 | BK107: 0000 | BM107: 0 | BR107: 0 | BS107: 0 | BT107: 0 | BU107: 0 | BV107: 0 | CB107: D5B6FGJCS8AO1FCVGIC372Z95 | CI107: 0000 | CM107: 20 | CN107: D5B6FGJCS8AO1FCVGIC372Z95 | CO107: D5B6FGJCS8OICL8J8854ES455 | CP107: Non WPBR | CQ107: 0018 | CS107: F | CU107: L | DG107: 15 | DH107: 0ORGUNIT | DI107: 0BBP_ISCOMP | DJ107: Organizational Unit is Company | DK107: 0000 | DL107: X | DM107: 1 | DN107: 0 | DO107: 0 | DT107: 0000 | EA107: 17 | EB107: D5ENPW16Z68F8WTZ1KN36YI2H | EC107: D5B6FGJCS8LFM3XHY2EO52J21 | EI107: 00 | EJ107: X | EK107: 0 | EL107: 0 | FY107: 24 | FZ107: ZS_DT_1 | GA107: 1 | GB107: P | GC107: I | GD107: EQ | GE107: 20150930 | GF107: 30/09/2015 | GJ107: 0 | GL107: 0 | GN107: 0 | GO107: Target date 1 | GP107: 60 | GS107: ZEMP_STRT | GT107: 20150930 | HW107: 20 | HX107: 0000000020
AE108: 36 | AF108: D5ENPW16Z63T56VF4C1ESE4FT | AG108: Breakdown Gender Contract FTPT | AI108: X | AJ108: Y | AK108: 0001 | AR108: U | AT108: 00 | AY108: K | AZ108: D5ENPW16Z63T56VF4C1ESE4FT | BA108: A | BJ108: 00000000 | BK108: 0000 | BL108: X | BM108: 0 | BR108: 0 | BS108: 0 | BT108: 0 | BU108: 0 | BV108: 0 | CB108: D5ENPW16Z63T56VF4C1ESE4FT | CI108: 0000 | CM108: 15 | CN108: D5ENPW16Z63T56VF4C1ESE4FT | CO108: D5ENPW16Z64KTT76FVH0UTIPL | CP108: Male Temp FT | CQ108: 0001 | CS108: S | CU108: L | CV108: X | CW108: IOBJ | CX108: Z_EMP_HCT | CZ108: Employee Headcount | DG108: 15 | DH108: 0ORGUNIT | DI108: 0BUS_AREA | DJ108: Business area | DK108: 0000 | DL108: X | DM108: 0 | DN108: 0 | DO108: 0 | DT108: 0000 | EA108: 17 | EB108: D5ENPW16Z68F8WTZ1KN36YI2H | EC108: D5B6FGJCS8M7AQ999LUA7HXBT | EI108: 00 | EJ108: X | EK108: 0 | EL108: 0 | FY108: 24 | FZ108: ZBUDH | GA108: 1 | GB108: P | GC108: I | GD108: EQ | GE108: 20150930 | GF108: 30/09/2015 | GJ108: 0 | GL108: 0 | GN108: 0 | GO108: Master Data Key Date | GP108: 60 | GS108: 0DATE | GT108: 20150930 | HW108: 20 | HX108: 0000000030
AE109: 44 | AF109: 0PAYRL_AREA | AG109: Payroll Area | AH109: X | AK109: 0001 | AS109: 0 | AT109: 00 | AX109: 00000000 | AY109: K | AZ109: 0PAYRL_AREA | BA109: A | BD109: H | BJ109: 00000000 | BK109: 0000 | BM109: 0 | BR109: 1 | BS109: 1 | BT109: 1 | BU109: 0 | BV109: 0 | BY109: 2 | CA109: 0 | CB109: DE0LR9Y5OP9PQHRXIOF9O2NZT | CI109: 0000 | CM109: 15 | CN109: D5B6FGJCS8AO1FCVGIC372Z95 | CO109: D5B6FGJCS8BFQ1OMS1RP9IDIX | CP109: BS | CQ109: 0001 | CS109: S | CU109: L | DG109: 15 | DH109: 0ORGUNIT | DI109: 0COMP_CODE | DJ109: Company code | DK109: 0000 | DL109: X | DM109: 0 | DN109: 0 | DO109: 0 | DT109: 0000 | EA109: 17 | EB109: D5ENPW16Z68F8WTZ1KN36YI2H | EC109: D5B6FGJCS8MYZCL0L59W9XBLL | ED109: 0 | EE109: 0 | EI109: 00 | EJ109: X | EK109: 0 | EL109: 0 | FY109: 24 | FZ109: ZZPERAR | GA109: 1 | GB109: M | GJ109: 0 | GL109: 0 | GN109: 0 | GO109: ZPersonnel Area | GP109: 60 | GS109: ZPERSAREA | HW109: 20 | HX109: 0000000040
AE110: 44 | AF110: ZPERSAREA | AG110: ZPersonal Area | AH110: X | AK110: 0002 | AS110: 2 | AT110: 00 | AX110: 00000000 | AY110: K | AZ110: ZPERSAREA | BA110: A | BD110: H | BJ110: 00000000 | BK110: 0000 | BM110: 0 | BR110: 1 | BS110: 1 | BT110: 1 | BU110: 0 | BV110: 0 | BY110: 2 | CA110: 0 | CB110: DE0LR9Y5OPAHF43OU7UVQI29L | CI110: 0000 | CM110: 15 | CN110: D5ENPW16Z63T56VF4C1ESE4FT | CO110: D5ENPW16Z65CIFIXREWMX8WZD | CP110: Male Temp PT | CQ110: 0002 | CS110: S | CU110: L | CV110: X | CW110: IOBJ | CX110: Z_EMP_HCT | CZ110: Employee Headcount | DG110: 15 | DH110: 0ORGUNIT | DI110: 0CO_MST_AR | DJ110: Controlling Area of Master Cost Center | DK110: 0000 | DL110: X | DM110: 0 | DN110: 0 | DO110: 0 | DT110: 0000 | EA110: 17 | EB110: D5ENPW16Z68F8WTZ1KN36YI2H | EC110: D5B6FGJCS8NQNYWRWOPICCPVD | EI110: 00 | EJ110: X | EK110: 0 | EL110: 0 | FY110: 43 | FZ110: ZS_DT_1 | GA110: 1 | GB110: P | GC110: I | GD110: EQ | GE110: 20150930 | GF110: 30/09/2015 | GJ110: 0 | GL110: 0 | GN110: 0 | GO110: Target date 1 | GP110: 60 | GS110: ZEMP_STRT | GT110: 20150930 | HW110: 20 | HX110: 0000000041
AE111: 44 | AF111: 0ORGUNIT | AG111: Organizational Unit | AH111: X | AK111: 0003 | AS111: 1 | AT111: 02 | AU111: X | AV111: ORGEH | AW111: 000 | AX111: 20130401 | AY111: K | AZ111: 0ORGUNIT | BA111: A | BD111: H | BE111: 0ORGUNIT | BF111: A | BJ111: 00000000 | BK111: 0000 | BM111: 0 | BQ111: 2 | BR111: 1 | BS111: 1 | BT111: 1 | BU111: 0 | BV111: 0 | CA111: 0 | CB111: DE0LR9Y5OPB93QFG5RAHSXGJD | CI111: 0000 | CM111: 15 | CN111: D5B6FGJCS8AO1FCVGIC372Z95 | CO111: D5B6FGJCS8C7EO0E3L7BBXRSP | CP111: CV | CQ111: 0002 | CS111: S | CU111: L | DG111: 15 | DH111: 0ORGUNIT | DI111: 0CRMSALGRPX | DJ111: Sls Group: Indicator | DK111: 0000 | DL111: X | DM111: 2 | DN111: 0 | DO111: 0 | DT111: 0000 | EA111: 17 | EB111: D5ENPW16Z68F8WTZ1KN36YI2H | EC111: D5B6FGJCS8OICL8J8854ES455 | ED111: 0 | EE111: 0 | EI111: 00 | EJ111: X | EK111: 0 | EL111: 0 | FY111: 43 | FZ111: ZS_PSAR2 | GA111: 1 | GB111: P | GJ111: 0 | GL111: 0 | GN111: 0 | GO111: Pers. Sub-Area - optional | GP111: 60 | GS111: 0PERS_SAREA | HW111: 20 | HX111: 0000000042 | HY111: 00
AE112: 44 | AF112: 0PERS_SAREA | AG112: Personnel Subarea | AH112: X | AK112: 0004 | AR112: U | AS112: 1 | AT112: 00 | AX112: 00000000 | AY112: K | AZ112: 0PERS_SAREA | BA112: A | BD112: H | BJ112: 00000000 | BK112: 0000 | BM112: 0 | BR112: 1 | BS112: 1 | BT112: 1 | BU112: 0 | BV112: 0 | BY112: 2 | CA112: 0 | CB112: DE0LR9Y5OPC0SCR7HAQ3VCUT5 | CI112: 0000 | CM112: 15 | CN112: D5ENPW16Z63T56VF4C1ESE4FT | CO112: D5ENPW16Z66471UP2YC8ZOB95 | CP112: Male Perm FT | CQ112: 0003 | CS112: S | CU112: L | CV112: X | CW112: IOBJ | CX112: Z_EMP_HCT | CZ112: Employee Headcount | DG112: 15 | DH112: 0ORGUNIT | DI112: 0CRMSALOFFX | DJ112: Sls Office:Indicator | DK112: 0000 | DL112: X | DM112: 2 | DN112: 0 | DO112: 0 | DT112: 0000 | EA112: 17 | EB112: D5ENPW16Z696XJ5QD42P9DWC9 | EC112: D5B6FGJCS8BFQ1OMS1RP9IDIX | EI112: 00 | EJ112: X | EK112: 0 | EL112: 0 | FY112: 43 | FZ112: ZP_ORGUN | GA112: 2 | GB112: M | GJ112: 0 | GL112: 0 | GN112: 0 | GO112: Org Unit Hierarchy (Selection option, optional) | GP112: 60 | GS112: 0ORGUNIT | HW112: 20 | HX112: 0000000043 | HY112: 00
AE113: 44 | AF113: ZTEILK | AG113: Checkbox for Part-Ti | AH113: X | AK113: 0005 | AS113: 1 | AT113: 00 | AX113: 00000000 | AY113: K | AZ113: ZTEILK | BA113: A | BD113: H | BJ113: 00000000 | BK113: 0000 | BM113: 0 | BR113: 1 | BS113: 1 | BT113: 1 | BU113: 0 | BV113: 0 | BY113: 2 | CA113: 0 | CB113: DE0LR9Y5OPCSGZ2YSU5PXS92X | CI113: 0000 | CM113: 15 | CN113: D5B6FGJCS8AO1FCVGIC372Z95 | CO113: D5B6FGJCS8CZ3AC5F4MXED62H | CP113: CA | CQ113: 0003 | CS113: S | CU113: L | DG113: 15 | DH113: 0ORGUNIT | DI113: 0CRMSALORGX | DJ113: Sales Org. Indicator | DK113: 0000 | DL113: X | DM113: 2 | DN113: 0 | DO113: 0 | DT113: 0000 | EA113: 17 | EB113: D5ENPW16Z696XJ5QD42P9DWC9 | EC113: D5B6FGJCS8C7EO0E3L7BBXRSP | EI113: 00 | EJ113: X | EK113: 0 | EL113: 0 | FY113: 43 | FZ113: ZBUDH | GA113: 1 | GB113: P | GC113: I | GD113: EQ | GE113: 20150930 | GF113: 30/09/2015 | GJ113: 0 | GL113: 0 | GN113: 0 | GO113: Master Data Key Date | GP113: 60 | GS113: 0DATE | GT113: 20150930 | HW113: 20 | HX113: 0000000021
AE114: 44 | AF114: ZPRIM_ID | AG114: ZPrimary Employee ID | AH114: X | AK114: 0006 | AS114: 2 | AT114: 00 | AX114: 00000000 | AY114: K | AZ114: ZPRIM_ID | BA114: A | BD114: H | BJ114: 00000000 | BK114: 0000 | BM114: 0 | BR114: 1 | BS114: 1 | BT114: 1 | BU114: 0 | BV114: 0 | BY114: 2 | CA114: 0 | CB114: DE0LR9Y5OPDK5LEQ4DLC07NCP | CI114: 0000 | CM114: 15 | CN114: D5ENPW16Z63T56VF4C1ESE4FT | CO114: D5ENPW16Z66VVO6GEHRV23PIX | CP114: Male Perm PT | CQ114: 0004 | CS114: S | CU114: L | CV114: X | CW114: IOBJ | CX114: Z_EMP_HCT | CZ114: Employee Headcount | DG114: 15 | DH114: 0ORGUNIT | DI114: 0CRMSRVTGRP | DJ114: Ex. CRM Service Org. | DK114: 0000 | DL114: X | DM114: 1 | DN114: 0 | DO114: 0 | DT114: 0000 | EA114: 17 | EB114: D5ENPW16Z696XJ5QD42P9DWC9 | EC114: D5B6FGJCS8CZ3AC5F4MXED62H | EI114: 00 | EJ114: X | EK114: 0 | EL114: 0 | FY114: 43 | FZ114: ZZPERAR | GA114: 1 | GB114: M | GJ114: 0 | GL114: 0 | GN114: 0 | GO114: ZPersonnel Area | GP114: 60 | GS114: ZPERSAREA | HW114: 20 | HX114: 0000000022
AE115: 44 | AF115: 0CNTRCTTYPE | AG115: Contract Type | AH115: X | AK115: 0007 | AS115: 1 | AT115: 00 | AX115: 00000000 | AY115: K | AZ115: 0CNTRCTTYPE | BA115: A | BD115: H | BJ115: 00000000 | BK115: 0000 | BM115: 0 | BR115: 1 | BS115: 1 | BT115: 1 | BU115: 0 | BV115: 0 | BY115: 2 | CA115: 0 | CB115: DE0LR9Y5OPEBU7QHFX0Y2N1MH | CI115: 0000 | CM115: 15 | CN115: D5B6FGJCS8AO1FCVGIC372Z95 | CO115: D5B6FGJCS8DQRWNWQO2JGSKC9 | CP115: CF | CQ115: 0004 | CS115: S | CU115: L | DG115: 15 | DH115: 0ORGUNIT | DI115: 0CRM_SALGRP | DJ115: CRM Sales Group | DK115: 0000 | DL115: X | DM115: 1 | DN115: 0 | DO115: 0 | DT115: 0000 | EA115: 17 | EB115: D5ENPW16Z696XJ5QD42P9DWC9 | EC115: D5B6FGJCS8DQRWNWQO2JGSKC9 | EI115: 00 | EJ115: X | EK115: 0 | EL115: 0 | FY115: 25 | FZ115: ZS_DT_1 | GA115: 1 | GB115: P | GC115: I | GD115: EQ | GE115: 20150930 | GF115: 30/09/2015 | GJ115: 0 | GL115: 0 | GN115: 0 | GO115: Target date 1 | GP115: 60 | GS115: ZEMP_STRT | GT115: 20150930 | HW115: 20 | HX115: 0000000023
AE116: 44 | AF116: 0EMPLSGROUP | AG116: Employee Subgroup | AH116: X | AK116: 0008 | AS116: 1 | AT116: 00 | AX116: 00000000 | AY116: K | AZ116: 0EMPLSGROUP | BA116: A | BD116: H | BJ116: 00000000 | BK116: 0000 | BM116: 0 | BR116: 1 | BS116: 1 | BT116: 1 | BU116: 0 | BV116: 0 | BY116: 2 | CA116: 0 | CB116: DE0LR9Y5OPF3IU28RGGK52FW9 | CI116: 0000 | CM116: 15 | CN116: D5B6FGJCS8AO1FCVGIC372Z95 | CO116: D5B6FGJCS8EIGIZO27I5J7YM1 | CP116: CU | CQ116: 0005 | CS116: S | CU116: L | DG116: 15 | DH116: 0ORGUNIT | DI116: 0CRM_SALOFF | DJ116: CRM Sales Office | DK116: 0000 | DL116: X | DM116: 1 | DN116: 0 | DO116: 0 | DT116: 0000 | EA116: 17 | EB116: D5ENPW16Z696XJ5QD42P9DWC9 | EC116: D5B6FGJCS8EIGIZO27I5J7YM1 | EI116: 00 | EJ116: X | EK116: 0 | EL116: 0 | FY116: 25 | FZ116: ZBUDH | GA116: 1 | GB116: P | GC116: I | GD116: EQ | GE116: 20150930 | GF116: 30/09/2015 | GJ116: 0 | GL116: 0 | GN116: 0 | GO116: Master Data Key Date | GP116: 60 | GS116: 0DATE | GT116: 20150930 | HW116: 20 | HX116: 0000010002 | HY116: DBE5O9AE5IU4J8ZVJGTD2OANT
AE117: 44 | AF117: DE0LRD9M7EHVH0HG0Z7CIIYNT | AG117: WPBR Gender/Ethnicity Bandings FTE | AI117: X | AJ117: X | AK117: 0001 | AM117: * | AR117: U | AT117: 00 | AY117: K | AZ117: DE0LRD9M7EHVH0HG0Z7CIIYNT | BA117: A | BJ117: 00000000 | BK117: 0000 | BL117: X | BM117: 0 | BO117: X | BR117: 0 | BS117: 0 | BT117: 0 | BU117: 0 | BV117: 0 | CB117: DE0LRD9M7EHVH0HG0Z7CIIYNT | CI117: 0000 | CM117: 15 | CN117: D5ENPW16Z63T56VF4C1ESE4FT | CO117: D5ENPW16Z67NKAI7Q17H4J3SP | CP117: Female Temp FT | CQ117: 0005 | CS117: S | CU117: L | CV117: X | CW117: IOBJ | CX117: Z_EMP_HCT | CZ117: Employee Headcount | DG117: 15 | DH117: 0ORGUNIT | DI117: 0CRM_SALORG | DJ117: CRM Sales Org. | DK117: 0000 | DL117: X | DM117: 1 | DN117: 0 | DO117: 0 | DT117: 0000 | EA117: 17 | EB117: D5ENPW16Z696XJ5QD42P9DWC9 | EC117: D5B6FGJCS8FA55BFDQXRLNCVT | EI117: 00 | EJ117: X | EK117: 0 | EL117: 0 | FY117: 25 | FZ117: ZZPERAR | GA117: 1 | GB117: M | GJ117: 0 | GL117: 0 | GN117: 0 | GO117: ZPersonnel Area | GP117: 60 | GS117: ZPERSAREA | HW117: 20 | HX117: 0000000105
AE118: 44 | AF118: D4O2P4A3SH8H6WZIVSYIIRP4P | AG118: WP Teachers Bandings | AI118: X | AJ118: Y | AK118: 0001 | AR118: U | AT118: 00 | AY118: K | AZ118: D4O2P4A3SH8H6WZIVSYIIRP4P | BA118: A | BJ118: 00000000 | BK118: 0000 | BM118: 0 | BR118: 0 | BS118: 0 | BT118: 0 | BU118: 0 | BV118: 0 | CB118: D4O2P4A3SH8H6WZIVSYIIRP4P | CI118: 0000 | CM118: 15 | CN118: D5ENPW16Z63T56VF4C1ESE4FT | CO118: D5ENPW16Z68F8WTZ1KN36YI2H | CP118: Female Temp PT | CQ118: 0006 | CS118: S | CU118: L | CV118: X | CW118: IOBJ | CX118: Z_EMP_HCT | CZ118: Employee Headcount | DG118: 15 | DH118: 0ORGUNIT | DI118: 0CRM_SRVORG | DJ118: Service Org. CRM | DK118: 0000 | DL118: X | DM118: 1 | DN118: 0 | DO118: 0 | DT118: 0000 | EA118: 17 | EB118: D5ENPW16Z696XJ5QD42P9DWC9 | EC118: D5B6FGJCS8G1TRN6PADDO2R5L | EI118: 00 | EJ118: X | EK118: 0 | EL118: 0 | FY118: 26 | FZ118: ZS_DT_1 | GA118: 1 | GB118: P | GC118: I | GD118: EQ | GE118: 20150930 | GF118: 30/09/2015 | GJ118: 0 | GL118: 0 | GN118: 0 | GO118: Target date 1 | GP118: 60 | GS118: ZEMP_STRT | GT118: 20150930 | HW118: 20 | HX118: 0000000106
AE119: 22 | AF119: 0PAYRL_AREA | AG119: Payroll Area | AH119: X | AK119: 0001 | AS119: 0 | AT119: 03 | AX119: 00000000 | AY119: K | AZ119: 0PAYRL_AREA | BA119: A | BD119: H | BJ119: 00000000 | BK119: 0000 | BM119: 0 | BR119: 1 | BS119: 1 | BT119: 1 | BU119: 0 | BV119: 0 | CB119: DE0LR9Y5OP9PQHRXIOF9O2NZT | CI119: 0000 | CM119: 15 | CN119: D5B6FGJCS8AO1FCVGIC372Z95 | CO119: D5B6FGJCS8FA55BFDQXRLNCVT | CP119: CR | CQ119: 0006 | CS119: S | CU119: L | DG119: 15 | DH119: 0ORGUNIT | DI119: 0LOGSYS | DJ119: Source System | DK119: 0000 | DL119: X | DM119: 1 | DN119: 0 | DO119: 0 | DT119: 0000 | EA119: 17 | EB119: D5ENPW16Z696XJ5QD42P9DWC9 | EC119: D5B6FGJCS8GTIDYY0TSZQI5FD | EI119: 00 | EJ119: X | EK119: 0 | EL119: 0 | FY119: 26 | FZ119: ZBUDH | GA119: 1 | GB119: P | GC119: I | GD119: EQ | GE119: 20150930 | GF119: 30/09/2015 | GJ119: 0 | GL119: 0 | GN119: 0 | GO119: Master Data Key Date | GP119: 60 | GS119: 0DATE | GT119: 20150930 | HW119: 20 | HX119: 0000000112 | HY119: 0
AE120: 22 | AF120: ZPERSAREA | AG120: ZPersonal Area | AH120: X | AK120: 0002 | AS120: 2 | AT120: 03 | AX120: 00000000 | AY120: K | AZ120: ZPERSAREA | BA120: A | BD120: H | BJ120: 00000000 | BK120: 0000 | BM120: 0 | BR120: 1 | BS120: 1 | BT120: 1 | BU120: 0 | BV120: 0 | CB120: DE0LR9Y5OPAHF43OU7UVQI29L | CI120: 0000 | CM120: 15 | CN120: D5ENPW16Z63T56VF4C1ESE4FT | CO120: D5ENPW16Z696XJ5QD42P9DWC9 | CP120: Female Perm FT | CQ120: 0007 | CS120: S | CU120: L | CV120: X | CW120: IOBJ | CX120: Z_EMP_HCT | CZ120: Employee Headcount | DG120: 15 | DH120: 0ORGUNIT | DI120: 0MAST_CCTR | DJ120: Master Cost Center | DK120: 0000 | DL120: X | DM120: 0 | DN120: 0 | DO120: 0 | DT120: 0000 | EA120: 17 | EB120: D5ENPW16Z696XJ5QD42P9DWC9 | EC120: D5B6FGJCS8HL70APCD8LSXJP5 | EI120: 00 | EJ120: X | EK120: 0 | EL120: 0 | FY120: 26 | FZ120: ZZPERAR | GA120: 1 | GB120: M | GJ120: 0 | GL120: 0 | GN120: 0 | GO120: ZPersonnel Area | GP120: 60 | GS120: ZPERSAREA | HW120: 20 | HX120: 0000000200 | HY120: X
AE121: 22 | AF121: 0ORGUNIT | AG121: Organizational Unit | AH121: X | AK121: 0003 | AS121: 1 | AT121: 03 | AU121: X | AV121: ORGEH | AW121: 000 | AX121: 20130401 | AY121: K | AZ121: 0ORGUNIT | BA121: A | BD121: H | BE121: 0ORGUNIT | BF121: A | BJ121: 00000000 | BK121: 0000 | BM121: 0 | BQ121: 2 | BR121: 1 | BS121: 1 | BT121: 1 | BU121: 0 | BV121: 0 | CB121: DE0LR9Y5OPB93QFG5RAHSXGJD | CI121: 0000 | CM121: 15 | CN121: D5B6FGJCS8AO1FCVGIC372Z95 | CO121: D5B6FGJCS8G1TRN6PADDO2R5L | CP121: IP | CQ121: 0007 | CS121: S | CU121: L | DG121: 15 | DH121: 0ORGUNIT | DI121: 0PERS_AREA | DJ121: Personnel Area | DK121: 0000 | DL121: X | DM121: 1 | DN121: 0 | DO121: 0 | DT121: 0000 | EA121: 17 | EB121: D5ENPW16Z696XJ5QD42P9DWC9 | EC121: D5B6FGJCS8ICVMMGNWO7VCXYX | EI121: 00 | EJ121: X | EK121: 0 | EL121: 0 | FY121: 27 | FZ121: ZS_DT_1 | GA121: 1 | GB121: P | GC121: I | GD121: EQ | GE121: 20150930 | GF121: 30/09/2015 | GJ121: 0 | GL121: 0 | GN121: 0 | GO121: Target date 1 | GP121: 60 | GS121: ZEMP_STRT | GT121: 20150930 | HW121: 20 | HX121: 0000004000 | HY121: X
AE122: 22 | AF122: 0PERS_SAREA | AG122: Personnel Subarea | AH122: X | AK122: 0004 | AR122: U | AS122: 1 | AT122: 03 | AX122: 00000000 | AY122: K | AZ122: 0PERS_SAREA | BA122: A | BD122: H | BJ122: 00000000 | BK122: 0000 | BM122: 0 | BR122: 1 | BS122: 1 | BT122: 1 | BU122: 0 | BV122: 0 | CB122: DE0LR9Y5OPC0SCR7HAQ3VCUT5 | CI122: 0000 | CM122: 15 | CN122: D5ENPW16Z63T56VF4C1ESE4FT | CO122: D5ENPW16Z69YM5HHONIBBTAM1 | CP122: Female Perm PT | CQ122: 0008 | CS122: S | CU122: L | CV122: X | CW122: IOBJ | CX122: Z_EMP_HCT | CZ122: Employee Headcount | DG122: 15 | DH122: 0ORGUNIT | DI122: 0PERS_SAREA | DJ122: Personnel Subarea | DK122: 0000 | DL122: X | DM122: 1 | DN122: 0 | DO122: 0 | DT122: 0000 | EA122: 17 | EB122: D5ENPW16Z696XJ5QD42P9DWC9 | EC122: D5B6FGJCS8J4K8Y7ZG3TXSC8P | EI122: 00 | EJ122: X | EK122: 0 | EL122: 0 | FY122: 27 | FZ122: ZBUDH | GA122: 1 | GB122: P | GC122: I | GD122: EQ | GE122: 20150930 | GF122: 30/09/2015 | GJ122: 0 | GL122: 0 | GN122: 0 | GO122: Master Data Key Date | GP122: 60 | GS122: 0DATE | GT122: 20150930 | HW122: 20 | HX122: 0000009001 | HY122: QSW Breakdown By Job Family excl cas sess
AE123: 22 | AF123: ZTEILK | AG123: Checkbox for Part-Ti | AH123: X | AK123: 0005 | AS123: 1 | AT123: 03 | AX123: 00000000 | AY123: K | AZ123: ZTEILK | BA123: A | BD123: H | BJ123: 00000000 | BK123: 0000 | BM123: 0 | BR123: 1 | BS123: 1 | BT123: 1 | BU123: 0 | BV123: 0 | CB123: DE0LR9Y5OPCSGZ2YSU5PXS92X | CI123: 0000 | CM123: 15 | CN123: D5B6FGJCS8AO1FCVGIC372Z95 | CO123: D5B6FGJCS8GTIDYY0TSZQI5FD | CP123: LS | CQ123: 0008 | CS123: S | CU123: L | DG123: 15 | DH123: 0ORGUNIT | DI123: 0PLANT | DJ123: Plant | DK123: 0000 | DL123: X | DM123: 0 | DN123: 0 | DO123: 0 | DT123: 0000 | EA123: 17 | EB123: D5ENPW16Z696XJ5QD42P9DWC9 | EC123: D5B6FGJCS8JW8V9ZAZJG07QIH | EI123: 00 | EJ123: X | EK123: 0 | EL123: 0 | FY123: 27 | FZ123: ZZPERAR | GA123: 1 | GB123: M | GJ123: 0 | GL123: 0 | GN123: 0 | GO123: ZPersonnel Area | GP123: 60 | GS123: ZPERSAREA | HW123: 20 | HX123: 0000000114 | HY123: 1
AE124: 22 | AF124: ZPRIM_ID | AG124: ZPrimary Employee ID | AH124: X | AK124: 0006 | AS124: 2 | AT124: 03 | AX124: 00000000 | AY124: K | AZ124: ZPRIM_ID | BA124: A | BD124: H | BJ124: 00000000 | BK124: 0000 | BM124: 0 | BR124: 1 | BS124: 1 | BT124: 1 | BU124: 0 | BV124: 0 | CB124: DE0LR9Y5OPDK5LEQ4DLC07NCP | CI124: 0000 | CM124: 15 | CN124: D5B6FGJCS8AO1FCVGIC372Z95 | CO124: D5B6FGJCS8HL70APCD8LSXJP5 | CP124: PC | CQ124: 0009 | CS124: S | CU124: L | DG124: 15 | DH124: 0ORGUNIT | DI124: 0PURCH_ORG | DJ124: Purchasing org. | DK124: 0000 | DL124: X | DM124: 0 | DN124: 0 | DO124: 0 | DT124: 0000 | EA124: 17 | EB124: D5ENPW16Z696XJ5QD42P9DWC9 | EC124: D5B6FGJCS8KNXHLQMIZ22N4S9 | EI124: 00 | EJ124: X | EK124: 0 | EL124: 0 | FY124: 37 | FZ124: ZS_DT_1 | GA124: 1 | GB124: P | GC124: I | GD124: EQ | GE124: 20150930 | GF124: 30/09/2015 | GJ124: 0 | GL124: 0 | GN124: 0 | GO124: Target date 1 | GP124: 60 | GS124: ZEMP_STRT | GT124: 20150930 | HW124: 15 | HX124: 0000000100 | HY124: X
AE125: 22 | AF125: 0CNTRCTTYPE | AG125: Contract Type | AH125: X | AK125: 0007 | AS125: 1 | AT125: 03 | AX125: 00000000 | AY125: K | AZ125: 0CNTRCTTYPE | BA125: A | BD125: H | BJ125: 00000000 | BK125: 0000 | BM125: 0 | BR125: 1 | BS125: 1 | BT125: 1 | BU125: 0 | BV125: 0 | CB125: DE0LR9Y5OPEBU7QHFX0Y2N1MH | CI125: 0000 | CM125: 15 | CN125: D5B6FGJCS8AO1FCVGIC372Z95 | CO125: D5B6FGJCS8ICVMMGNWO7VCXYX | CP125: PH | CQ125: 0010 | CS125: S | CU125: L | DG125: 15 | DH125: 0ORGUNIT | DI125: 0PUR_GROUP | DJ125: Purchasing group | DK125: 0000 | DL125: X | DM125: 0 | DN125: 0 | DO125: 0 | DT125: 0000 | EA125: 17 | EB125: D5ENPW16Z696XJ5QD42P9DWC9 | EC125: D5B6FGJCS8LFM3XHY2EO52J21 | EI125: 00 | EJ125: X | EK125: 0 | EL125: 0 | FY125: 37 | FZ125: ZBUDH | GA125: 1 | GB125: P | GC125: I | GD125: EQ | GE125: 20150930 | GF125: 30/09/2015 | GJ125: 0 | GL125: 0 | GN125: 0 | GO125: Master Data Key Date | GP125: 60 | GS125: 0DATE | GT125: 20150930 | HW125: 15 | HX125: 0000000108
... 156 more rows

Sheet SAPBEXfiltersDefunct (hidden)
CW2: 0 | EZ2: 37 | GX2: 60
CW3: 8 | EZ3: 12 | GX3: 31
EZ4: 17 | FA4: DCKU25NTW15RTEULQPU2RWQNT | FC4: X | FD4: 3 | FE4: 0 | FF4: ZPERSAREA | FI4: 0 | GX4: 17 | GY4: DCKU25NTW15RTEULQPU2RWQNT | HB4: 0001 | HC4: 0001 | HD4: 0 | HE4: 0000 | HF4: I | HG4: EQ | HH4: 0051 | HJ4: 0051 | HL4: 1 | HN4: 0 | HP4: Education | HU4: 0 | HX4: 0 | HZ4: 0 | IC4: 00
EZ5: 18 | FA5: DCKU27L5DQ8HXIIVBSYFF0QNT | FC5: X | FD5: 3 | FE5: 0 | FF5: ZPERSAREA | FI5: 0 | GX5: 18 | GY5: DCKU27L5DQ8HXIIVBSYFF0QNT | HB5: 0001 | HC5: 0001 | HD5: 0 | HE5: 0000 | HF5: I | HG5: EQ | HH5: 0071 | HJ5: 0071 | HL5: 1 | HN5: 0 | HP5: Financial | HU5: 0 | HX5: 0 | HZ5: 0 | IC5: 00
EZ6: 19 | FA6: DCKU297UH05P1I6EPRZ9SBRW9 | FC6: X | FD6: 3 | FE6: 0 | FF6: 0ORGUNIT | FI6: 0 | GX6: 19 | GY6: DCKU297UH05P1I6EPRZ9SBRW9 | HB6: 0001 | HC6: 0001 | HD6: 0 | HE6: 0000 | HF6: I | HG6: EQ | HH6: 50184707 | HI6: 0ORGUNIT | HJ6: 50184707 | HL6: 1 | HN6: 4 | HP6: Land & Environmental Serv Org Struct | HT6: ORGEH | HU6: 1 | HW6: 000 | HX6: 1 | HY6: 20120331 | HZ6: 1 | IC6: 00
EZ7: 19 | FA7: DCKU297UH06GQ4I61BEVUR661 | FC7: X | FD7: 3 | FE7: 0 | FF7: ZPERSAREA | FI7: 0 | GX7: 19 | GY7: DCKU297UH06GQ4I61BEVUR661 | HB7: 0001 | HC7: 0001 | HD7: 0 | HE7: 0000 | HF7: I | HG7: EQ | HH7: 0081 | HJ7: 0081 | HL7: 1 | HN7: 0 | HP7: Land and Environmental | HU7: 0 | HX7: 0 | HZ7: 0 | IC7: 00
EZ8: 20 | FA8: DCKU2AHOEBKQN50QWNF8JZ0U1 | FC8: X | FD8: 3 | FE8: 0 | FF8: ZPERSAREA | FI8: 0 | GX8: 20 | GY8: DCKU2AHOEBKQN50QWNF8JZ0U1 | HB8: 0001 | HC8: 0001 | HD8: 0 | HE8: 0000 | HF8: I | HG8: EQ | HH8: 0091 | HJ8: 0091 | HL8: 1 | HN8: 0 | HP8: Social Work | HU8: 0 | HX8: 0 | HZ8: 0 | IC8: 00
EZ9: 15 | FA9: DDS4Q154E53TLI00IZ398XNND | FC9: X | FD9: 3 | FE9: 0 | FF9: ZPERSAREA | FI9: 0 | GX9: 15 | GY9: DDS4Q154E53TLI00IZ398XNND | HB9: 0001 | HC9: 0001 | HD9: 0 | HE9: 0000 | HF9: I | HG9: EQ | HH9: 0001 | HJ9: 0001 | HL9: 1 | HN9: 0 | HP9: Chief Executive | HU9: 0 | HX9: 0 | HZ9: 0 | IC9: 00
EZ10: 16 | FA10: DDS4Q59SCILFA8DSTCWQT14HL | FC10: X | FD10: 3 | FE10: 0 | FF10: ZPERSAREA | FI10: 0 | GX10: 16 | GY10: DDS4Q59SCILFA8DSTCWQT14HL | HB10: 0001 | HC10: 0001 | HD10: 0 | HE10: 0000 | HF10: I | HG10: EQ | HH10: 0031 | HJ10: 0031 | HL10: 1 | HN10: 0 | HP10: Development and Regeneration | HU10: 0 | HX10: 0 | HZ10: 0 | IC10: 00
EZ11: 21 | FA11: DE0LM1DV6WVAAY94SXA1ZPIPL | FC11: X | FD11: 3 | FE11: 0 | FF11: ZPERSAREA | FI11: 0 | GX11: 21 | GY11: DE0LM1DV6WVAAY94SXA1ZPIPL | HB11: 0001 | HC11: 0001 | HD11: 0 | HE11: 0001 | HF11: I | HG11: EQ | HH11: 0001 | HJ11: 0001 | HL11: 1 | HM11: 0 | HN11: 0 | HO11: 0 | HP11: Chief Executive | HU11: 0 | HX11: 0 | HZ11: 0 | IC11: 00
EZ12: 32 | FA12: DEEQE3A7DFMLFDBTFN6936WOP | FC12: X | FD12: 3 | FE12: 0 | FF12: ZPERSAREA | FI12: 0 | GX12: 21 | GY12: DE0LM1DV6WVAAY94SXA1ZPIPL | HB12: 0001 | HC12: 0001 | HD12: 0 | HE12: 0002 | HF12: I | HG12: EQ | HH12: 0031 | HJ12: 0031 | HL12: 1 | HM12: 0 | HN12: 0 | HO12: 0 | HP12: Development and Regeneration | HU12: 0 | HX12: 0 | HZ12: 0 | IC12: 00
EZ13: 31 | FA13: DEEQDY4Q4XX7IUCXXV7VSWD15 | FC13: X | FD13: 3 | FE13: 0 | FF13: ZPERSAREA | FI13: 0 | GX13: 21 | GY13: DE0LM1DV6WVAAY94SXA1ZPIPL | HB13: 0001 | HC13: 0001 | HD13: 0 | HE13: 0003 | HF13: I | HG13: EQ | HH13: 0051 | HJ13: 0051 | HL13: 1 | HM13: 0 | HN13: 0 | HO13: 0 | HP13: Education | HU13: 0 | HX13: 0 | HZ13: 0 | IC13: 00
EZ14: 33 | FA14: DEEQEFBKGYM5L0ZTEE8PJRPQ1 | FC14: X | FD14: 3 | FE14: 0 | FF14: ZPERSAREA | FI14: 0 | GX14: 21 | GY14: DE0LM1DV6WVAAY94SXA1ZPIPL | HB14: 0001 | HC14: 0001 | HD14: 0 | HE14: 0004 | HF14: I | HG14: EQ | HH14: 0071 | HJ14: 0071 | HL14: 1 | HM14: 0 | HN14: 0 | HO14: 0 | HP14: Financial | HU14: 0 | HX14: 0 | HZ14: 0 | IC14: 00
EZ15: 34 | FA15: DEEQEKCU2CEE2C0ZQOC7OSLX5 | FC15: X | FD15: 3 | FE15: 0 | FF15: ZPERSAREA | FI15: 0 | GX15: 21 | GY15: DE0LM1DV6WVAAY94SXA1ZPIPL | HB15: 0001 | HC15: 0001 | HD15: 0 | HE15: 0005 | HF15: I | HG15: EQ | HH15: 0081 | HJ15: 0081 | HL15: 1 | HM15: 0 | HN15: 0 | HO15: 0 | HP15: Land and Environmental | HU15: 0 | HX15: 0 | HZ15: 0 | IC15: 00
EZ16: 35 | FA16: DEEQEPRU5AHENUKU8CSRNZDH5 | FC16: X | FD16: 3 | FE16: 0 | FF16: ZPERSAREA | FI16: 0 | GX16: 21 | GY16: DE0LM1DV6WVAAY94SXA1ZPIPL | HB16: 0001 | HC16: 0001 | HD16: 0 | HE16: 0006 | HF16: I | HG16: EQ | HH16: 0091 | HJ16: 0091 | HL16: 1 | HM16: 0 | HN16: 0 | HO16: 0 | HP16: Social Work | HU16: 0 | HX16: 0 | HZ16: 0 | IC16: 00
EZ17: 36 | FA17: DEEQEUG59UP8AUPDCAARGBJ7D | FC17: X | FD17: 3 | FE17: 0 | FF17: ZPERSAREA | FI17: 0 | GX17: 32 | GY17: DEEQE3A7DFMLFDBTFN6936WOP | HB17: 0001 | HC17: 0001 | HD17: 0 | HE17: 0000 | HF17: I | HG17: EQ | HH17: 0031 | HJ17: 0031 | HL17: 1 | HN17: 0 | HP17: Development and Regeneration | HU17: 0 | HX17: 0 | HZ17: 0 | IC17: 00
EZ18: 45 | FA18: DEYRPPP765AW6KE1M4S6O9UD5 | FC18: X | FD18: 3 | FE18: 0 | FF18: ZPERSAREA | FI18: 0 | GX18: 31 | GY18: DEEQDY4Q4XX7IUCXXV7VSWD15 | HB18: 0001 | HC18: 0001 | HD18: 0 | HE18: 0001 | HF18: I | HG18: EQ | HH18: 0001 | HJ18: 0001 | HL18: 1 | HM18: 0 | HN18: 0 | HO18: 0 | HP18: Chief Executive | HU18: 0 | HX18: 0 | HZ18: 0 | IC18: 00
EZ19: 11 | FA19: DKYHHARYD8IY73WXCU96VZJ09 | FC19: X | FD19: 3 | FE19: 0 | FF19: 0ORGUNIT | FI19: 0 | GX19: 33 | GY19: DEEQEFBKGYM5L0ZTEE8PJRPQ1 | HB19: 0001 | HC19: 0001 | HD19: 0 | HE19: 0001 | HF19: I | HG19: EQ | HH19: 0051 | HJ19: 0051 | HL19: 1 | HM19: 0 | HN19: 0 | HO19: 0 | HP19: Education | HU19: 0 | HX19: 0 | HZ19: 0 | IC19: 00
EZ20: 10 | FA20: DKYHHC2NLYSP51B3BKJ3Z50QH | FC20: X | FD20: 3 | FE20: 0 | FF20: 0ORGUNIT | FI20: 0 | GX20: 34 | GY20: DEEQEKCU2CEE2C0ZQOC7OSLX5 | HB20: 0001 | HC20: 0001 | HD20: 0 | HE20: 0001 | HF20: I | HG20: EQ | HH20: 0071 | HJ20: 0071 | HL20: 1 | HM20: 0 | HN20: 0 | HO20: 0 | HP20: Financial | HU20: 0 | HX20: 0 | HZ20: 0 | IC20: 00
EZ21: 9 | FA21: DKYHHC2NLZ8UI2611WMZE4CFT | FC21: X | FD21: 3 | FE21: 0 | FF21: ZPERSAREA | FI21: 0 | GX21: 35 | GY21: DEEQEPRU5AHENUKU8CSRNZDH5 | HB21: 0001 | HC21: 0001 | HD21: 0 | HE21: 0001 | HF21: I | HG21: EQ | HH21: 0081 | HJ21: 0081 | HL21: 1 | HM21: 0 | HN21: 0 | HO21: 0 | HP21: Land and Environmental | HU21: 0 | HX21: 0 | HZ21: 0 | IC21: 00
EZ22: 8 | FA22: DKYHHDERY6E7WFO4H9LPX1WXL | FC22: X | FD22: 3 | FE22: 0 | FF22: 0ORGUNIT | FI22: 0 | GX22: 36 | GY22: DEEQEUG59UP8AUPDCAARGBJ7D | HB22: 0001 | HC22: 0001 | HD22: 0 | HE22: 0001 | HF22: I | HG22: EQ | HH22: 0091 | HJ22: 0091 | HL22: 1 | HM22: 0 | HN22: 0 | HO22: 0 | HP22: Social Work | HU22: 0 | HX22: 0 | HZ22: 0 | IC22: 00
EZ23: 7 | FA23: DKYHHDERY6YZD6HM4UB9QLM9L | FC23: X | FD23: 3 | FE23: 0 | FF23: ZPERSAREA | FI23: 0 | GX23: 45 | GY23: DEYRPPP765AW6KE1M4S6O9UD5 | HB23: 0001 | HC23: 0001 | HD23: 0 | HE23: 0001 | HF23: I | HG23: EQ | HH23: 0051 | HJ23: 0051 | HL23: 1 | HM23: 0 | HN23: 0 | HO23: 0 | HP23: Education | HU23: 0 | HX23: 0 | HZ23: 0 | IC23: 00
EZ24: 6 | FA24: DKYHHEOVRIN6QVIKAFSEO77JT | FC24: X | FD24: 3 | FE24: 0 | FF24: ZPERSAREA | FI24: 0 | GX24: 11 | GY24: DKYHHARYD8IY73WXCU96VZJ09 | HB24: 0001 | HC24: 0001 | HD24: 0 | HE24: 0000 | HF24: I | HG24: EQ | HH24: 50004880 | HI24: 0ORGUNIT | HJ24: 50004880 | HL24: 1 | HN24: 4 | HP24: Corporate Services | HT24: ORGEH | HU24: 1 | HW24: 000 | HX24: 1 | HY24: 20150930 | HZ24: 1 | IC24: 00
EZ25: 5 | FA25: DKYHHG0JMCFYVLW37V8MO0D15 | FC25: X | FD25: 3 | FE25: 0 | FF25: ZPERSAREA | FI25: 0 | GX25: 10 | GY25: DKYHHC2NLYSP51B3BKJ3Z50QH | HB25: 0001 | HC25: 0001 | HD25: 0 | HE25: 0000 | HF25: I | HG25: EQ | HH25: 50004878 | HJ25: 50004878 | HL25: 1 | HN25: 0 | HP25: Chief Executive Srv | HU25: 0 | HX25: 0 | HZ25: 0 | IC25: 00
EZ26: 4 | FA26: DKYHHG0JMCW48MR0Y7CI2ZOQH | FC26: X | FD26: 3 | FE26: 0 | FF26: ZPERSAREA | FI26: 0 | GX26: 10 | GY26: DKYHHC2NLYSP51B3BKJ3Z50QH | HB26: 0002 | HC26: 0001 | HD26: 0 | HE26: 0000 | HF26: I | HG26: EQ | HH26: 50216527 | HI26: 0ORGUNIT | HJ26: 50216527 | HL26: 1 | HN26: 4 | HP26: Chief Executive's Office | HT26: ORGEH | HU26: 1 | HW26: 000 | HX26: 1 | HY26: 20150930 | HZ26: 1 | IC26: 00
EZ27: 28 | FA27: DKYHIGO9K30TROFHWV99F1NUH | FC27: X | FD27: 3 | FE27: 0 | FF27: 0ORGUNIT | FI27: 0 | GX27: 10 | GY27: DKYHHC2NLYSP51B3BKJ3Z50QH | HB27: 0003 | HC27: 0001 | HD27: 0 | HE27: 0000 | HF27: I | HG27: EQ | HH27: 50004939 | HI27: 0ORGUNIT | HJ27: 50004939 | HL27: 1 | HN27: 4 | HP27: Communication & Organisation Development | HT27: ORGEH | HU27: 1 | HW27: 000 | HX27: 1 | HY27: 20150930 | HZ27: 1 | IC27: 00
EZ28: 29 | FA28: DKYHIJQQUM15YCM8U042H4VLL | FC28: X | FD28: 3 | FE28: 0 | FF28: 0ORGUNIT | FI28: 0 | GX28: 10 | GY28: DKYHHC2NLYSP51B3BKJ3Z50QH | HB28: 0004 | HC28: 0001 | HD28: 0 | HE28: 0000 | HF28: I | HG28: EQ | HH28: 50258124 | HI28: 0ORGUNIT | HJ28: 50258124 | HL28: 1 | HN28: 4 | HP28: CE Corporate Policy | HT28: ORGEH | HU28: 1 | HW28: 000 | HX28: 1 | HY28: 20150930 | HZ28: 1 | IC28: 00
EZ29: 30 | FA29: DKYHIMFMLQU8K6O8OHC8MKP2X | FC29: X | FD29: 3 | FE29: 0 | FF29: 0ORGUNIT | FI29: 0 | GX29: 9 | GY29: DKYHHC2NLZ8UI2611WMZE4CFT | HB29: 0001 | HC29: 0001 | HD29: 0 | HE29: 0000 | HF29: I | HG29: EQ | HH29: 0031 | HJ29: 0031 | HL29: 1 | HN29: 0 | HP29: Development and Regeneration | HU29: 0 | HX29: 0 | HZ29: 0 | IC29: 00
EZ30: 23 | FA30: DKYHINZ2O1WOOEW2YIWNM2A61 | FC30: X | FD30: 3 | FE30: 0 | FF30: ZPERSAREA | FI30: 0 | GX30: 8 | GY30: DKYHHDERY6E7WFO4H9LPX1WXL | HB30: 0001 | HC30: 0001 | HD30: 0 | HE30: 0000 | HF30: I | HG30: EQ | HH30: 50004878 | HJ30: 50004878 | HL30: 1 | HN30: 0 | HP30: Chief Executive Srv | HU30: 0 | HX30: 0 | HZ30: 0 | IC30: 00
EZ31: 24 | FA31: DKYHIP4BRKA62O8QYH7PVHJW9 | FC31: X | FD31: 3 | FE31: 0 | FF31: ZPERSAREA | FI31: 0 | GX31: 8 | GY31: DKYHHDERY6E7WFO4H9LPX1WXL | HB31: 0002 | HC31: 0001 | HD31: 0 | HE31: 0000 | HF31: I | HG31: EQ | HH31: 50004879 | HI31: 0ORGUNIT | HJ31: 50004879 | HL31: 1 | HN31: 4 | HP31: Chief Executive Organisation Structure | HT31: ORGEH | HU31: 1 | HW31: 000 | HX31: 1 | HY31: 20150930 | HZ31: 1 | IC31: 00
EZ32: 25 | FA32: DKYHIUMKSYR8DGXC0XFPN9VCP | FC32: X | FD32: 3 | FE32: 0 | FF32: ZPERSAREA | FI32: 0 | GX32: 8 | GY32: DKYHHDERY6E7WFO4H9LPX1WXL | HB32: 0003 | HC32: 0001 | HD32: 0 | HE32: 0000 | HF32: I | HG32: EQ | HH32: 50004880 | HI32: 0ORGUNIT | HJ32: 50004880 | HL32: 1 | HN32: 4 | HP32: Corporate Services | HT32: ORGEH | HU32: 1 | HW32: 000 | HX32: 1 | HY32: 20150930 | HZ32: 1 | IC32: 00
EZ33: 26 | FA33: DKYHIVX8ED9KUVX81T909ECXL | FC33: X | FD33: 3 | FE33: 0 | FF33: ZPERSAREA | FI33: 0 | GX33: 8 | GY33: DKYHHDERY6E7WFO4H9LPX1WXL | HB33: 0004 | HC33: 0001 | HD33: 0 | HE33: 0000 | HF33: I | HG33: EQ | HH33: 50004939 | HI33: 0ORGUNIT | HJ33: 50004939 | HL33: 1 | HN33: 4 | HP33: Communication & Organisation Development | HT33: ORGEH | HU33: 1 | HW33: 000 | HX33: 1 | HY33: 20150930 | HZ33: 1 | IC33: 00
EZ34: 27 | FA34: DKYHIXL9AGI2528MDN66ZKO3D | FC34: X | FD34: 3 | FE34: 0 | FF34: ZPERSAREA | FI34: 0 | GX34: 8 | GY34: DKYHHDERY6E7WFO4H9LPX1WXL | HB34: 0005 | HC34: 0001 | HD34: 0 | HE34: 0000 | HF34: I | HG34: EQ | HH34: 50258124 | HI34: 0ORGUNIT | HJ34: 50258124 | HL34: 1 | HN34: 4 | HP34: CE Corporate Policy | HT34: ORGEH | HU34: 1 | HW34: 000 | HX34: 1 | HY34: 20150930 | HZ34: 1 | IC34: 00
EZ35: 37 | FA35: DKYHJ4YJENULPKR0QTGA5RY0P | FC35: X | FD35: 3 | FE35: 0 | FF35: 0ORGUNIT | FI35: 0 | GX35: 7 | GY35: DKYHHDERY6YZD6HM4UB9QLM9L | HB35: 0001 | HC35: 0001 | HD35: 0 | HE35: 0000 | HF35: I | HG35: EQ | HH35: 0051 | HJ35: 0051 | HL35: 1 | HN35: 0 | HP35: Education | HU35: 0 | HX35: 0 | HZ35: 0 | IC35: 00
EZ36: 38 | FA36: DKYHJEJT2BNPWGJDVWYC7BWU1 | FC36: X | FD36: 3 | FE36: 0 | FF36: ZPERSAREA | FI36: 0 | GX36: 6 | GY36: DKYHHEOVRIN6QVIKAFSEO77JT | HB36: 0001 | HC36: 0001 | HD36: 0 | HE36: 0000 | HF36: I | HG36: EQ | HH36: 0091 | HJ36: 0091 | HL36: 1 | HN36: 0 | HP36: Social Work | HU36: 0 | HX36: 0 | HZ36: 0 | IC36: 00
EZ37: 39 | FA37: DKYHJITTV9I0J7UCXUDTKO73T | FC37: X | FD37: 3 | FE37: 0 | FF37: ZPERSAREA | FI37: 0 | GX37: 5 | GY37: DKYHHG0JMCFYVLW37V8MO0D15 | HB37: 0001 | HC37: 0001 | HD37: 0 | HE37: 0000 | HF37: I | HG37: EQ | HH37: 0081 | HJ37: 0081 | HL37: 1 | HN37: 0 | HP37: Land and Environmental | HU37: 0 | HX37: 0 | HZ37: 0 | IC37: 00
EZ38: 40 | FA38: DKYHJOFLTPJF95PIY0YWNEWAH | FC38: X | FD38: 3 | FE38: 0 | FF38: ZPERSAREA | FI38: 0 | GX38: 4 | GY38: DKYHHG0JMCW48MR0Y7CI2ZOQH | HB38: 0001 | HC38: 0001 | HD38: 0 | HE38: 0000 | HF38: I | HG38: EQ | HH38: 0071 | HJ38: 0071 | HL38: 1 | HN38: 0 | HP38: Financial | HU38: 0 | HX38: 0 | HZ38: 0 | IC38: 00
EZ39: 41 | FA39: DKYHJSK1JF06NZHO9ERBZZQWP | FC39: X | FD39: 3 | FE39: 0 | FF39: ZPERSAREA | FI39: 0 | GX39: 28 | GY39: DKYHIGO9K30TROFHWV99F1NUH | HB39: 0001 | HC39: 0001 | HD39: 0 | HE39: 0000 | HF39: I | HG39: EQ | HH39: 50004878 | HJ39: 50004878 | HL39: 1 | HN39: 0 | HP39: Chief Executive Srv | HU39: 0 | HX39: 0 | HZ39: 0 | IC39: 00
EZ40: 42 | FA40: DKYHJTZQFZTLVXSROZHLDR1MH | FC40: X | FD40: 3 | FE40: 0 | FF40: ZPERSAREA | FI40: 0 | GX40: 28 | GY40: DKYHIGO9K30TROFHWV99F1NUH | HB40: 0002 | HC40: 0001 | HD40: 0 | HE40: 0000 | HF40: I | HG40: EQ | HH40: 50004879 | HI40: 0ORGUNIT | HJ40: 50004879 | HL40: 1 | HN40: 4 | HP40: Chief Executive Organisation Structure | HT40: ORGEH | HU40: 1 | HW40: 000 | HX40: 1 | HY40: 20150930 | HZ40: 1 | IC40: 00
GX41: 28 | GY41: DKYHIGO9K30TROFHWV99F1NUH | HB41: 0003 | HC41: 0001 | HD41: 0 | HE41: 0000 | HF41: I | HG41: EQ | HH41: 50004939 | HI41: 0ORGUNIT | HJ41: 50004939 | HL41: 1 | HN41: 4 | HP41: Communication & Organisation Development | HT41: ORGEH | HU41: 1 | HW41: 000 | HX41: 1 | HY41: 20150930 | HZ41: 1 | IC41: 00
GX42: 28 | GY42: DKYHIGO9K30TROFHWV99F1NUH | HB42: 0004 | HC42: 0001 | HD42: 0 | HE42: 0000 | HF42: I | HG42: EQ | HH42: 50258124 | HI42: 0ORGUNIT | HJ42: 50258124 | HL42: 1 | HN42: 4 | HP42: CE Corporate Policy | HT42: ORGEH | HU42: 1 | HW42: 000 | HX42: 1 | HY42: 20150930 | HZ42: 1 | IC42: 00
GX43: 28 | GY43: DKYHIGO9K30TROFHWV99F1NUH | HB43: 0005 | HC43: 0001 | HD43: 0 | HE43: 0000 | HF43: I | HG43: EQ | HH43: 50004880 | HI43: 0ORGUNIT | HJ43: 50004880 | HL43: 1 | HN43: 4 | HP43: Corporate Services | HT43: ORGEH | HU43: 1 | HW43: 000 | HX43: 1 | HY43: 20150930 | HZ43: 1 | IC43: 00
GX44: 29 | GY44: DKYHIJQQUM15YCM8U042H4VLL | HB44: 0001 | HC44: 0001 | HD44: 0 | HE44: 0000 | HF44: I | HG44: EQ | HH44: 50004878 | HJ44: 50004878 | HL44: 1 | HN44: 0 | HP44: Chief Executive Srv | HU44: 0 | HX44: 0 | HZ44: 0 | IC44: 00
GX45: 29 | GY45: DKYHIJQQUM15YCM8U042H4VLL | HB45: 0002 | HC45: 0001 | HD45: 0 | HE45: 0000 | HF45: I | HG45: EQ | HH45: 50004879 | HI45: 0ORGUNIT | HJ45: 50004879 | HL45: 1 | HN45: 4 | HP45: Chief Executive Organisation Structure | HT45: ORGEH | HU45: 1 | HW45: 000 | HX45: 1 | HY45: 20150930 | HZ45: 1 | IC45: 00
GX46: 29 | GY46: DKYHIJQQUM15YCM8U042H4VLL | HB46: 0003 | HC46: 0001 | HD46: 0 | HE46: 0000 | HF46: I | HG46: EQ | HH46: 50004939 | HI46: 0ORGUNIT | HJ46: 50004939 | HL46: 1 | HN46: 4 | HP46: Communication & Organisation Development | HT46: ORGEH | HU46: 1 | HW46: 000 | HX46: 1 | HY46: 20150930 | HZ46: 1 | IC46: 00
GX47: 29 | GY47: DKYHIJQQUM15YCM8U042H4VLL | HB47: 0004 | HC47: 0001 | HD47: 0 | HE47: 0000 | HF47: I | HG47: EQ | HH47: 50258124 | HI47: 0ORGUNIT | HJ47: 50258124 | HL47: 1 | HN47: 4 | HP47: CE Corporate Policy | HT47: ORGEH | HU47: 1 | HW47: 000 | HX47: 1 | HY47: 20150930 | HZ47: 1 | IC47: 00
GX48: 30 | GY48: DKYHIMFMLQU8K6O8OHC8MKP2X | HB48: 0001 | HC48: 0001 | HD48: 0 | HE48: 0000 | HF48: I | HG48: EQ | HH48: 50004880 | HI48: 0ORGUNIT | HJ48: 50004880 | HL48: 1 | HN48: 4 | HP48: Corporate Services | HT48: ORGEH | HU48: 1 | HW48: 000 | HX48: 1 | HY48: 20150930 | HZ48: 1 | IC48: 00
GX49: 23 | GY49: DKYHINZ2O1WOOEW2YIWNM2A61 | HB49: 0001 | HC49: 0001 | HD49: 0 | HE49: 0000 | HF49: I | HG49: EQ | HH49: 0031 | HJ49: 0031 | HL49: 1 | HN49: 0 | HP49: Development and Regeneration | HU49: 0 | HX49: 0 | HZ49: 0 | IC49: 00
GX50: 24 | GY50: DKYHIP4BRKA62O8QYH7PVHJW9 | HB50: 0001 | HC50: 0001 | HD50: 0 | HE50: 0000 | HF50: I | HG50: EQ | HH50: 0051 | HJ50: 0051 | HL50: 1 | HN50: 0 | HP50: Education | HU50: 0 | HX50: 0 | HZ50: 0 | IC50: 00
GX51: 25 | GY51: DKYHIUMKSYR8DGXC0XFPN9VCP | HB51: 0001 | HC51: 0001 | HD51: 0 | HE51: 0000 | HF51: I | HG51: EQ | HH51: 0071 | HJ51: 0071 | HL51: 1 | HN51: 0 | HP51: Financial | HU51: 0 | HX51: 0 | HZ51: 0 | IC51: 00
GX52: 26 | GY52: DKYHIVX8ED9KUVX81T909ECXL | HB52: 0001 | HC52: 0001 | HD52: 0 | HE52: 0000 | HF52: I | HG52: EQ | HH52: 0081 | HJ52: 0081 | HL52: 1 | HN52: 0 | HP52: Land and Environmental | HU52: 0 | HX52: 0 | HZ52: 0 | IC52: 00
GX53: 27 | GY53: DKYHIXL9AGI2528MDN66ZKO3D | HB53: 0001 | HC53: 0001 | HD53: 0 | HE53: 0000 | HF53: I | HG53: EQ | HH53: 0091 | HJ53: 0091 | HL53: 1 | HN53: 0 | HP53: Social Work | HU53: 0 | HX53: 0 | HZ53: 0 | IC53: 00
GX54: 37 | GY54: DKYHJ4YJENULPKR0QTGA5RY0P | HB54: 0001 | HC54: 0001 | HD54: 0 | HE54: 0000 | HF54: I | HG54: EQ | HH54: 50004879 | HJ54: 50004879 | HL54: 1 | HN54: 0 | HP54: Chief Executive Organisation Structure | HU54: 0 | HX54: 0 | HZ54: 0 | IC54: 00
GX55: 37 | GY55: DKYHJ4YJENULPKR0QTGA5RY0P | HB55: 0002 | HC55: 0001 | HD55: 0 | HE55: 0000 | HF55: I | HG55: EQ | HH55: 50216527 | HI55: 0ORGUNIT | HJ55: 50216527 | HL55: 1 | HN55: 4 | HP55: Chief Executive's Office | HT55: ORGEH | HU55: 1 | HW55: 000 | HX55: 1 | HY55: 20150930 | HZ55: 1 | IC55: 00
GX56: 37 | GY56: DKYHJ4YJENULPKR0QTGA5RY0P | HB56: 0003 | HC56: 0001 | HD56: 0 | HE56: 0000 | HF56: I | HG56: EQ | HH56: 50004880 | HI56: 0ORGUNIT | HJ56: 50004880 | HL56: 1 | HN56: 4 | HP56: Corporate Services | HT56: ORGEH | HU56: 1 | HW56: 000 | HX56: 1 | HY56: 20150930 | HZ56: 1 | IC56: 00
GX57: 37 | GY57: DKYHJ4YJENULPKR0QTGA5RY0P | HB57: 0004 | HC57: 0001 | HD57: 0 | HE57: 0000 | HF57: I | HG57: EQ | HH57: 50004939 | HI57: 0ORGUNIT | HJ57: 50004939 | HL57: 1 | HN57: 4 | HP57: Communication & Organisation Development | HT57: ORGEH | HU57: 1 | HW57: 000 | HX57: 1 | HY57: 20150930 | HZ57: 1 | IC57: 00
GX58: 37 | GY58: DKYHJ4YJENULPKR0QTGA5RY0P | HB58: 0005 | HC58: 0001 | HD58: 0 | HE58: 0000 | HF58: I | HG58: EQ | HH58: 50258124 | HI58: 0ORGUNIT | HJ58: 50258124 | HL58: 1 | HN58: 4 | HP58: CE Corporate Policy | HT58: ORGEH | HU58: 1 | HW58: 000 | HX58: 1 | HY58: 20150930 | HZ58: 1 | IC58: 00
GX59: 38 | GY59: DKYHJEJT2BNPWGJDVWYC7BWU1 | HB59: 0001 | HC59: 0001 | HD59: 0 | HE59: 0000 | HF59: I | HG59: EQ | HH59: 0031 | HJ59: 0031 | HL59: 1 | HN59: 0 | HP59: Development and Regeneration | HU59: 0 | HX59: 0 | HZ59: 0 | IC59: 00
GX60: 39 | GY60: DKYHJITTV9I0J7UCXUDTKO73T | HB60: 0001 | HC60: 0001 | HD60: 0 | HE60: 0000 | HF60: I | HG60: EQ | HH60: 0051 | HJ60: 0051 | HL60: 1 | HN60: 0 | HP60: Education | HU60: 0 | HX60: 0 | HZ60: 0 | IC60: 00
GX61: 40 | GY61: DKYHJOFLTPJF95PIY0YWNEWAH | HB61: 0001 | HC61: 0001 | HD61: 0 | HE61: 0000 | HF61: I | HG61: EQ | HH61: 0071 | HJ61: 0071 | HL61: 1 | HN61: 0 | HP61: Financial | HU61: 0 | HX61: 0 | HZ61: 0 | IC61: 00
GX62: 41 | GY62: DKYHJSK1JF06NZHO9ERBZZQWP | HB62: 0001 | HC62: 0001 | HD62: 0 | HE62: 0000 | HF62: I | HG62: EQ | HH62: 0081 | HJ62: 0081 | HL62: 1 | HN62: 0 | HP62: Land and Environmental | HU62: 0 | HX62: 0 | HZ62: 0 | IC62: 00
GX63: 42 | GY63: DKYHJTZQFZTLVXSROZHLDR1MH | HB63: 0001 | HC63: 0001 | HD63: 0 | HE63: 0000 | HF63: I | HG63: EQ | HH63: 0091 | HJ63: 0091 | HL63: 1 | HN63: 0 | HP63: Social Work | HU63: 0 | HX63: 0 | HZ63: 0 | IC63: 00

Sheet BExRepositorySheet (hidden)
A1: 7

Sheet Summary
A1: WORKFORCE PROFILE BY GENDER
A2: GLASGOW LIFE
A3: 2017-09-01
C4: The table below has been simplified to provide a summary of the Company's workforce by Gender. The detailed information to support this is provided on Page 2
C10: Male | F10: Female | I10: Total Workforce
A12: GRADE & GENDER | C12: Number | D12: % | F12: Number | G12: % | I12: Number
A14: Grade 1-4 Total | C14: =Template!AJ6 -> 825 | D14: =C14/I14 -> 0.516 | F14: =Template!AK6 -> 775 | G14: =F14/I14 -> 0.484 | I14: =Template!AL6 -> 1600
A16: Grade 5-7 Total | C16: =Template!AJ10 -> 326 | D16: =C16/I16 -> 0.413 | F16: =Template!AK10 -> 463 | G16: =F16/I16 -> 0.587 | I16: =Template!AL10 -> 789
A18: Grade 8 Total | C18: =Template!AJ14 -> 23 | D18: =C18/I18 -> 0.426 | F18: =Template!AK14 -> 31 | G18: =F18/I18 -> 0.574 | I18: =Template!AL14 -> 54
A20: Grade 9-15 Total | C20: =Template!AJ22+Template!AJ26 -> 16 | D20: =C20/I20 -> 0.516 | F20: =Template!AK22+Template!AK26 -> 15 | G20: =F20/I20 -> 0.484 | I20: =Template!AN22+Template!AN26 -> 31
A22: Other Non Pay & Grading Structure Total | C22: =Template!AJ30 -> 23 | D22: =C22/I22 -> 0.28 | F22: =Template!AK30 -> 59 | G22: =F22/I22 -> 0.72 | I22: =Template!AL30 -> 82
A24: Total Workforce F/T | C24: =Template!AJ32 -> 926 | D24: =C24/I24 -> 0.55 | F24: =Template!AK32 -> 758 | G24: =F24/I24 -> 0.45 | I24: =Template!AL32 -> 1684
A26: Total Workforce P/T | C26: =Template!AJ34 -> 287 | D26: =C26/I26 -> 0.329 | F26: =Template!AK34 -> 585 | G26: =F26/I26 -> 0.671 | I26: =Template!AL34 -> 872
A28: Total Workforce | C28: =Template!AJ36 -> 1213 | D28: =C28/I28 -> 0.475 | F28: =Template!AK36 -> 1343 | G28: =F28/I28 -> 0.525 | I28: =Template!AL36 -> 2556

Sheet Template
A2: GLASGOW LIFE OVERALL BY GRADE & GENDER | B2: Total White Males | C2: Total White Females | D2: Total White Employees | F2: Total Mixed Males | G2: Total Mixed Females | H2: Total Mixed Employees | J2: Total Other Ethnic Background Males | K2: Total Other Ethnic Background Females | L2: Total Other Ethnic Background | N2: Total Asian Males | O2: Total Asian Females | P2: Total Asian Employees | R2: Total Black Males | S2: Total Black Females | T2: Total Black Employees | V2: Total Black & Minority Ethnic Males | W2: Total Black & Minority Ethnic Females | X2: Total Black & Minority Ethnic Employees | Z2: Total Non-Disclosed | AB2: Total White Male Employees % | AC2: Total White Female Employees % | AE2: Total BME Male Employees % | AF2: Total BME Female Employees % | AH2: Total Non-Disclosed Employees % | AJ2: Total Male Employees | AK2: Total Female Employees | AL2: Total Head Count of Workforce | AN2: Total FTE of Workforce
A4: Grade 1-4 F/T | B4: =Query!B23 -> 471 | C4: =Query!C23 -> 272 | D4: =SUM(B4:C4) -> 743 | F4: =Query!E23 -> 2 | G4: =Query!F23 -> 0 | H4: =SUM(F4:G4) -> 2 | J4: =Query!H23 -> 1 | K4: =Query!I23 -> 0 | L4: =SUM(J4:K4) -> 1 | N4: =Query!K23 -> 6 | O4: =Query!L23 -> 2 | P4: =SUM(N4:O4) -> 8 | R4: =Query!N23 -> 3 | S4: =Query!O23 -> 0 | T4: =SUM(R4:S4) -> 3 | V4: =Query!Q23 -> 12 | W4: =Query!R23 -> 2 | X4: =SUM(V4:W4) -> 14 | Z4: =Query!T23 -> 128 | AB4: =SUM(B4/AJ4) -> 0.838 | AC4: 0.842 | AE4: =SUM(V4/AJ4) -> 0.021 | AF4: 0.006 | AH4: =SUM(Z4/AL4) -> 0.145 | AJ4: =Query!Z23 -> 562 | AK4: =Query!AA23 -> 323 | AL4: =SUM(AJ4:AK4) -> 885 | AN4: ='FTE Query'!D23 -> 883.44
A5: Grade 1-4 P/T | B5: =Query!B24 -> 191 | C5: =Query!C24 -> 362 | D5: =SUM(B5:C5) -> 553 | F5: =Query!E24 -> 1 | G5: =Query!F24 -> 1 | H5: =SUM(F5:G5) -> 2 | J5: =Query!H24 -> 0 | K5: =Query!I24 -> 3 | L5: =SUM(J5:K5) -> 3 | N5: =Query!K24 -> 8 | O5: =Query!L24 -> 6 | P5: =SUM(N5:O5) -> 14 | R5: =Query!N24 -> 2 | S5: =Query!O24 -> 2 | T5: =SUM(R5:S5) -> 4 | V5: =Query!Q24 -> 11 | W5: =Query!R24 -> 12 | X5: =SUM(V5:W5) -> 23 | Z5: =Query!T24 -> 139 | AB5: 0.726 | AC5: 0.801 | AE5: 0.042 | AF5: 0.027 | AH5: =SUM(Z5/AL5) -> 0.194 | AJ5: =Query!Z24 -> 263 | AK5: =Query!AA24 -> 452 | AL5: =SUM(AJ5:AK5) -> 715 | AN5: ='FTE Query'!D24 -> 349.81
A6: Grade 1-4 Total | B6: =SUM(B4:B5) -> 662 | C6: =SUM(C4:C5) -> 634 | D6: =SUM(D4:D5) -> 1296 | F6: =SUM(F4:F5) -> 3 | G6: =SUM(G4:G5) -> 1 | H6: =SUM(H4:H5) -> 4 | J6: =SUM(J4:J5) -> 1 | K6: =SUM(K4:K5) -> 3 | L6: =SUM(L4:L5) -> 4 | N6: =SUM(N4:N5) -> 14 | O6: =SUM(O4:O5) -> 8 | P6: =SUM(P4:P5) -> 22 | R6: =SUM(R4:R5) -> 5 | S6: =SUM(S4:S5) -> 2 | T6: =SUM(T4:T5) -> 7 | V6: =SUM(V4:V5) -> 23 | W6: =SUM(W4:W5) -> 14 | X6: =SUM(X4:X5) -> 37 | Z6: =SUM(Z4:Z5) -> 267 | AB6: 0.802 | AC6: 0.818 | AE6: 0.028 | AF6: 0.018 | AH6: =SUM(Z6/AL6) -> 0.167 | AJ6: =SUM(AJ4:AJ5) -> 825 | AK6: =SUM(AK4:AK5) -> 775 | AL6: =SUM(AL4:AL5) -> 1600 | AN6: =SUM(AN4:AN5) -> 1233.25
A8: Grade 5-7 F/T | B8: =Query!B26 -> 244 | C8: =Query!C26 -> 295 | D8: =SUM(B8:C8) -> 539 | F8: =Query!E26 -> 2 | G8: =Query!F26 -> 1 | H8: =SUM(F8:G8) -> 3 | J8: =Query!H26 -> 0 | K8: =Query!I26 -> 2 | L8: =SUM(J8:K8) -> 2 | N8: =Query!K26 -> 5 | O8: =Query!L26 -> 4 | P8: =SUM(N8:O8) -> 9 | R8: =Query!N26 -> 0 | S8: =Query!O26 -> 0 | T8: =SUM(R8:S8) -> 0 | V8: =Query!Q26 -> 7 | W8: =Query!R26 -> 7 | X8: =SUM(V8:W8) -> 14 | Z8: =Query!T26 -> 95 | AB8: =SUM(B8/AJ8) -> 0.808 | AC8: 0.853 | AE8: =SUM(V8/AJ8) -> 0.023 | AF8: 0.02 | AH8: =SUM(Z8/AL8) -> 0.147 | AJ8: =Query!Z26 -> 302 | AK8: =Query!AA26 -> 346 | AL8: =SUM(AJ8:AK8) -> 648 | AN8: ='FTE Query'!D26 -> 648
A9: Grade 5-7 P/T | B9: =Query!B27 -> 19 | C9: =Query!C27 -> 94 | D9: =SUM(B9:C9) -> 113 | F9: =Query!E27 -> 0 | G9: =Query!F27 -> 3 | H9: =SUM(F9:G9) -> 3 | J9: =Query!H27 -> 0 | K9: =Query!I27 -> 0 | L9: =SUM(J9:K9) -> 0 | N9: =Query!K27 -> 0 | O9: =Query!L27 -> 1 | P9: =SUM(N9:O9) -> 1 | R9: =Query!N27 -> 0 | S9: =Query!O27 -> 0 | T9: =SUM(R9:S9) -> 0 | V9: =Query!Q27 -> 0 | W9: =Query!R27 -> 4 | X9: =SUM(V9:W9) -> 4 | Z9: =Query!T27 -> 24 | AB9: 0.792 | AC9: 0.803 | AE9: 0 | AF9: 0.034 | AH9: =SUM(Z9/AL9) -> 0.17 | AJ9: =Query!Z27 -> 24 | AK9: =Query!AA27 -> 117 | AL9: =SUM(AJ9:AK9) -> 141 | AN9: ='FTE Query'!D27 -> 76.96
A10: Grade 5-7 Total | B10: =SUM(B8:B9) -> 263 | C10: =SUM(C8:C9) -> 389 | D10: =SUM(D8:D9) -> 652 | F10: =SUM(F8:F9) -> 2 | G10: =SUM(G8:G9) -> 4 | H10: =SUM(H8:H9) -> 6 | J10: =SUM(J8:J9) -> 0 | K10: =SUM(K8:K9) -> 2 | L10: =SUM(L8:L9) -> 2 | N10: =SUM(N8:N9) -> 5 | O10: =SUM(O8:O9) -> 5 | P10: =SUM(P8:P9) -> 10 | R10: =SUM(R8:R9) -> 0 | S10: =SUM(S8:S9) -> 0 | T10: =SUM(T8:T9) -> 0 | V10: =SUM(V8:V9) -> 7 | W10: =SUM(W8:W9) -> 11 | X10: =SUM(X8:X9) -> 18 | Z10: =SUM(Z8:Z9) -> 119 | AB10: 0.807 | AC10: 0.84 | AE10: 0.021 | AF10: 0.024 | AH10: =SUM(Z10/AL10) -> 0.151 | AJ10: =SUM(AJ8:AJ9) -> 326 | AK10: =SUM(AK8:AK9) -> 463 | AL10: =SUM(AL8:AL9) -> 789 | AN10: =SUM(AN8:AN9) -> 724.96
A12: Grade 8 F/T | B12: =Query!B29 -> 20 | C12: =Query!C29 -> 23 | D12: =SUM(B12:C12) -> 43 | F12: =Query!E29 -> 0 | G12: =Query!F29 -> 0 | H12: =SUM(F12:G12) -> 0 | J12: =Query!H29 -> 0 | K12: =Query!I29 -> 0 | L12: =SUM(J12:K12) -> 0 | N12: =Query!K29 -> 0 | O12: =Query!L29 -> 0 | P12: =SUM(N12:O12) -> 0 | R12: =Query!N29 -> 0 | S12: =Query!O29 -> 0 | T12: =SUM(R12:S12) -> 0 | V12: =Query!Q29 -> 0 | W12: =Query!R29 -> 0 | X12: =SUM(V12:W12) -> 0 | Z12: =Query!T29 -> 6 | AB12: =SUM(B12/AJ12) -> 0.87 | AC12: 0.885 | AE12: =SUM(V12/AJ12) -> 0 | AF12: 0 | AH12: =SUM(Z12/AL12) -> 0.122 | AJ12: =Query!Z29 -> 23 | AK12: =Query!AA29 -> 26 | AL12: =SUM(AJ12:AK12) -> 49 | AN12: ='FTE Query'!D29 -> 49
A13: Grade 8 P/T | B13: =Query!B30 -> 0 | C13: =Query!C30 -> 4 | D13: =SUM(B13:C13) -> 4 | F13: =Query!E30 -> 0 | G13: =Query!F30 -> 0 | H13: =SUM(F13:G13) -> 0 | J13: =Query!H30 -> 0 | K13: =Query!I30 -> 0 | L13: =SUM(J13:K13) -> 0 | N13: =Query!K30 -> 0 | O13: =Query!L30 -> 0 | P13: =SUM(N13:O13) -> 0 | R13: =Query!N30 -> 0 | S13: =Query!O30 -> 0 | T13: =SUM(R13:S13) -> 0 | V13: =Query!Q30 -> 0 | W13: =Query!R30 -> 0 | X13: =SUM(V13:W13) -> 0 | Z13: =Query!T30 -> 1 | AB13: =IFERROR(B13/AJ13,0) -> 0 | AC13: 0.8 | AE13: =IFERROR(V13/AJ13,0) -> 0 | AF13: 0 | AH13: =SUM(Z13/AL13) -> 0.2 | AJ13: =Query!Z30 -> 0 | AK13: =Query!AA30 -> 5 | AL13: =SUM(AJ13:AK13) -> 5 | AN13: ='FTE Query'!D30 -> 4.23
A14: Grade 8 Total | B14: =SUM(B12:B13) -> 20 | C14: =SUM(C12:C13) -> 27 | D14: =SUM(D12:D13) -> 47 | F14: =SUM(F12:F13) -> 0 | G14: =SUM(G12:G13) -> 0 | H14: =SUM(H12:H13) -> 0 | J14: =SUM(J12:J13) -> 0 | K14: =SUM(K12:K13) -> 0 | L14: =SUM(L12:L13) -> 0 | N14: =SUM(N12:N13) -> 0 | O14: =SUM(O12:O13) -> 0 | P14: =SUM(P12:P13) -> 0 | R14: =SUM(R12:R13) -> 0 | S14: =SUM(S12:S13) -> 0 | T14: =SUM(T12:T13) -> 0 | V14: =SUM(V12:V13) -> 0 | W14: =SUM(W12:W13) -> 0 | X14: =SUM(X12:X13) -> 0 | Z14: =SUM(Z12:Z13) -> 7 | AB14: 0.87 | AC14: 0.871 | AE14: 0 | AF14: 0 | AH14: =SUM(Z14/AL14) -> 0.13 | AJ14: =SUM(AJ12:AJ13) -> 23 | AK14: =SUM(AK12:AK13) -> 31 | AL14: =SUM(AL12:AL13) -> 54 | AN14: =SUM(AN12:AN13) -> 53.23
A16: Grade ACZ 8 F/T | B16: =Query!B32 -> 0 | C16: =Query!C32 -> 0 | D16: =SUM(B16:C16) -> 0 | F16: =Query!E32 -> 0 | G16: =Query!F32 -> 0 | H16: =SUM(F16:G16) -> 0 | J16: =Query!H32 -> 0 | K16: =Query!I32 -> 0 | L16: =SUM(J16:K16) -> 0 | N16: =Query!K32 -> 0 | O16: =Query!L32 -> 0 | P16: =SUM(N16:O16) -> 0 | R16: =Query!N32 -> 0 | S16: =Query!O32 -> 0 | T16: =SUM(R16:S16) -> 0 | V16: =Query!Q32 -> 0 | W16: =Query!R32 -> 0 | X16: =SUM(V16:W16) -> 0 | Z16: =Query!T32 -> 0 | AB16: =IFERROR(B16/AJ16,0) -> 0 | AC16: 0 | AE16: =IFERROR(V16/AJ16,0) -> 0 | AF16: 0 | AH16: =IFERROR(Z16/AL16,0) -> 0 | AJ16: =Query!Z32 -> 0 | AK16: =Query!AA32 -> 0 | AL16: =SUM(AJ16:AK16) -> 0 | AN16: ='FTE Query'!D32 -> 0
A17: Grade ACZ 8 P/T | B17: =Query!B33 -> 0 | C17: =Query!C33 -> 0 | D17: =SUM(B17:C17) -> 0 | F17: =Query!E33 -> 0 | G17: =Query!F33 -> 0 | H17: =SUM(F17:G17) -> 0 | J17: =Query!H33 -> 0 | K17: =Query!I33 -> 0 | L17: =SUM(J17:K17) -> 0 | N17: =Query!K33 -> 0 | O17: =Query!L33 -> 0 | P17: =SUM(N17:O17) -> 0 | R17: =Query!N33 -> 0 | S17: =Query!O33 -> 0 | T17: =SUM(R17:S17) -> 0 | V17: =Query!Q33 -> 0 | W17: =Query!R33 -> 0 | X17: =SUM(V17:W17) -> 0 | Z17: =Query!T33 -> 0 | AB17: 0 | AC17: 0 | AE17: 0 | AF17: 0 | AH17: =IFERROR(Z17/AL17,0) -> 0 | AJ17: =Query!Z33 -> 0 | AK17: =Query!AA33 -> 0 | AL17: =SUM(AJ17:AK17) -> 0 | AN17: ='FTE Query'!D33 -> 0
A18: Grade ACZ 8 Total | B18: =SUM(B16:B17) -> 0 | C18: =SUM(C16:C17) -> 0 | D18: =SUM(D16:D17) -> 0 | F18: =SUM(F16:F17) -> 0 | G18: =SUM(G16:G17) -> 0 | H18: =SUM(H16:H17) -> 0 | J18: =SUM(J16:J17) -> 0 | K18: =SUM(K16:K17) -> 0 | L18: =SUM(L16:L17) -> 0 | N18: =SUM(N16:N17) -> 0 | O18: =SUM(O16:O17) -> 0 | P18: =SUM(P16:P17) -> 0 | R18: =SUM(R16:R17) -> 0 | S18: =SUM(S16:S17) -> 0 | T18: =SUM(T16:T17) -> 0 | V18: =SUM(V16:V17) -> 0 | W18: =SUM(W16:W17) -> 0 | X18: =SUM(X16:X17) -> 0 | Z18: =SUM(Z16:Z17) -> 0 | AB18: 0 | AC18: 0 | AE18: 0 | AF18: 0 | AH18: =IFERROR(Z18/AL18,0) -> 0 | AJ18: =SUM(AJ16:AJ17) -> 0 | AK18: =SUM(AK16:AK17) -> 0 | AL18: =SUM(AL16:AL17) -> 0 | AN18: =SUM(AN16:AN17) -> 0
A20: Grade 9-15 F/T | B20: =Query!B35 -> 14 | C20: =Query!C35 -> 12 | D20: =SUM(B20:C20) -> 26 | F20: =Query!E35 -> 0 | G20: =Query!F35 -> 0 | H20: =SUM(F20:G20) -> 0 | J20: =Query!H35 -> 0 | K20: =Query!I35 -> 0 | L20: =SUM(J20:K20) -> 0 | N20: =Query!K35 -> 0 | O20: =Query!L35 -> 0 | P20: =SUM(N20:O20) -> 0 | R20: =Query!N35 -> 0 | S20: =Query!O35 -> 0 | T20: =SUM(R20:S20) -> 0 | V20: =Query!Q35 -> 0 | W20: =Query!R35 -> 0 | X20: =SUM(V20:W20) -> 0 | Z20: =Query!T35 -> 4 | AB20: =SUM(B20/AJ20) -> 0.933 | AC20: 0.8 | AE20: =SUM(V20/AJ20) -> 0 | AF20: 0 | AH20: =SUM(Z20/AL20) -> 0.133 | AJ20: =Query!Z35 -> 15 | AK20: =Query!AA35 -> 15 | AL20: =SUM(AJ20:AK20) -> 30 | AN20: ='FTE Query'!D35 -> 30
A21: Grade 9-15 P/T | B21: =Query!B36 -> 0 | C21: =Query!C36 -> 0 | D21: =SUM(B21:C21) -> 0 | F21: =Query!E36 -> 0 | G21: =Query!F36 -> 0 | H21: =SUM(F21:G21) -> 0 | J21: =Query!H36 -> 0 | K21: =Query!I36 -> 0 | L21: =SUM(J21:K21) -> 0 | N21: =Query!K36 -> 0 | O21: =Query!L36 -> 0 | P21: =SUM(N21:O21) -> 0 | R21: =Query!N36 -> 0 | S21: =Query!O36 -> 0 | T21: =SUM(R21:S21) -> 0 | V21: =Query!Q36 -> 0 | W21: =Query!R36 -> 0 | X21: =SUM(V21:W21) -> 0 | Z21: =Query!T36 -> 0 | AB21: =IFERROR(B21/AJ21,0) -> 0 | AC21: =IFERROR(C21/AK21,0) -> 0 | AE21: =IFERROR(V21/AJ21,0) -> 0 | AF21: =IFERROR(W21/AK21,0) -> 0 | AH21: =SUM(Z21/AL21) ->  | AJ21: =Query!Z36 -> 0 | AK21: =Query!AA36 -> 0 | AL21: =SUM(AJ21:AK21) -> 0 | AN21: ='FTE Query'!D36 -> 0
A22: Grade 9-15 Total | B22: =SUM(B20:B21) -> 14 | C22: =SUM(C20:C21) -> 12 | D22: =SUM(D20:D21) -> 26 | F22: =SUM(F20:F21) -> 0 | G22: =SUM(G20:G21) -> 0 | H22: =SUM(H20:H21) -> 0 | J22: =SUM(J20:J21) -> 0 | K22: =SUM(K20:K21) -> 0 | L22: =SUM(L20:L21) -> 0 | N22: =SUM(N20:N21) -> 0 | O22: =SUM(O20:O21) -> 0 | P22: =SUM(P20:P21) -> 0 | R22: =SUM(R20:R21) -> 0 | S22: =SUM(S20:S21) -> 0 | T22: =SUM(T20:T21) -> 0 | V22: =SUM(V20:V21) -> 0 | W22: =SUM(W20:W21) -> 0 | X22: =SUM(X20:X21) -> 0 | Z22: =SUM(Z20:Z21) -> 4 | AB22: 0.933 | AC22: 0.8 | AE22: 0 | AF22: 0 | AH22: =SUM(Z22/AL22) -> 0.133 | AJ22: =SUM(AJ20:AJ21) -> 15 | AK22: =SUM(AK20:AK21) -> 15 | AL22: =SUM(AL20:AL21) -> 30 | AN22: =SUM(AN20:AN21) -> 30
A24: Grade ACZ 9-15 F/T | B24: =Query!B38 -> 0 | C24: =Query!C38 -> 0 | D24: =SUM(B24:C24) -> 0 | F24: =Query!E38 -> 0 | G24: =Query!F38 -> 0 | H24: =SUM(F24:G24) -> 0 | J24: =Query!H38 -> 0 | K24: =Query!I38 -> 0 | L24: =SUM(J24:K24) -> 0 | N24: =Query!K38 -> 0 | O24: =Query!L38 -> 0 | P24: =SUM(N24:O24) -> 0 | R24: =Query!N38 -> 0 | S24: =Query!O38 -> 0 | T24: =SUM(R24:S24) -> 0 | V24: =Query!Q38 -> 0 | W24: =Query!R38 -> 0 | X24: =SUM(V24:W24) -> 0 | Z24: =Query!T38 -> 1 | AB24: =SUM(B24/AJ24) -> 0 | AC24: =IFERROR(C24/AK24,0) -> 0 | AE24: =SUM(V24/AJ24) -> 0 | AF24: =IFERROR(W24/AK24,0) -> 0 | AH24: =SUM(Z24/AL24) -> 1 | AJ24: =Query!Z38 -> 1 | AK24: =Query!AA38 -> 0 | AL24: =SUM(AJ24:AK24) -> 1 | AN24: ='FTE Query'!D38 -> 1
A25: Grade ACZ 9-15 P/T | B25: =Query!B39 -> 0 | C25: =Query!C39 -> 0 | D25: =SUM(B25:C25) -> 0 | F25: =Query!E39 -> 0 | G25: =Query!F39 -> 0 | H25: =SUM(F25:G25) -> 0 | J25: =Query!H39 -> 0 | K25: =Query!I39 -> 0 | L25: =SUM(J25:K25) -> 0 | N25: =Query!K39 -> 0 | O25: =Query!L39 -> 0 | P25: =SUM(N25:O25) -> 0 | R25: =Query!N39 -> 0 | S25: =Query!O39 -> 0 | T25: =SUM(R25:S25) -> 0 | V25: =Query!Q39 -> 0 | W25: =Query!R39 -> 0 | X25: =SUM(V25:W25) -> 0 | Z25: =Query!T39 -> 0 | AB25: =IFERROR(B25/AJ25,0) -> 0 | AC25: =IFERROR(C25/AK25,0) -> 0 | AE25: =IFERROR(V25/AJ25,0) -> 0 | AF25: =IFERROR(W25/AK25,0) -> 0 | AH25: =IFERROR(Z25/AL25,0) -> 0 | AJ25: =Query!Z39 -> 0 | AK25: =Query!AA39 -> 0 | AL25: =SUM(AJ25:AK25) -> 0 | AN25: ='FTE Query'!D39 -> 0
A26: Grade ACZ 9-15 Total | B26: =SUM(B24:B25) -> 0 | C26: =SUM(C24:C25) -> 0 | D26: =SUM(D24:D25) -> 0 | F26: =SUM(F24:F25) -> 0 | G26: =SUM(G24:G25) -> 0 | H26: =SUM(H24:H25) -> 0 | J26: =SUM(J24:J25) -> 0 | K26: =SUM(K24:K25) -> 0 | L26: =SUM(L24:L25) -> 0 | N26: =SUM(N24:N25) -> 0 | O26: =SUM(O24:O25) -> 0 | P26: =SUM(P24:P25) -> 0 | R26: =SUM(R24:R25) -> 0 | S26: =SUM(S24:S25) -> 0 | T26: =SUM(T24:T25) -> 0 | V26: =SUM(V24:V25) -> 0 | W26: =SUM(W24:W25) -> 0 | X26: =SUM(X24:X25) -> 0 | Z26: =SUM(Z24:Z25) -> 1 | AB26: 0 | AC26: =IFERROR(C26/AK26,0) -> 0 | AE26: 0 | AF26: =IFERROR(W26/AK26,0) -> 0 | AH26: =SUM(Z26/AL26) -> 1 | AJ26: =SUM(AJ24:AJ25) -> 1 | AK26: =SUM(AK24:AK25) -> 0 | AL26: =SUM(AL24:AL25) -> 1 | AN26: =SUM(AN24:AN25) -> 1
A28: Other Non Pay & Grading Structure F/T | B28: =Query!B41 -> 14 | C28: =Query!C41 -> 18 | D28: =SUM(B28:C28) -> 32 | F28: =Query!E41 -> 0 | G28: =Query!F41 -> 0 | H28: =SUM(F28:G28) -> 0 | J28: =Query!H41 -> 0 | K28: =Query!I41 -> 0 | L28: =SUM(J28:K28) -> 0 | N28: =Query!K41 -> 1 | O28: =Query!L41 -> 0 | P28: =SUM(N28:O28) -> 1 | R28: =Query!N41 -> 0 | S28: =Query!O41 -> 0 | T28: =SUM(R28:S28) -> 0 | V28: =Query!Q41 -> 1 | W28: =Query!R41 -> 0 | X28: =SUM(V28:W28) -> 1 | Z28: =Query!T41 -> 38 | AB28: =SUM(B28/AJ28) -> 0.609 | AC28: 0.375 | AE28: =SUM(V28/AJ28) -> 0.043 | AF28: =SUM(W28/AK28) -> 0 | AH28: =SUM(Z28/AL28) -> 0.535 | AJ28: =Query!Z41 -> 23 | AK28: =Query!AA41 -> 48 | AL28: =SUM(AJ28:AK28) -> 71 | AN28: ='FTE Query'!D41 -> 71
A29: Other Non Pay & Grading Structure P/T | B29: =Query!B42 -> 0 | C29: =Query!C42 -> 3 | D29: =SUM(B29:C29) -> 3 | F29: =Query!E42 -> 0 | G29: =Query!F42 -> 0 | H29: =SUM(F29:G29) -> 0 | J29: =Query!H42 -> 0 | K29: =Query!I42 -> 0 | L29: =SUM(J29:K29) -> 0 | N29: =Query!K42 -> 0 | O29: =Query!L42 -> 0 | P29: =SUM(N29:O29) -> 0 | R29: =Query!N42 -> 0 | S29: =Query!O42 -> 0 | T29: =SUM(R29:S29) -> 0 | V29: =Query!Q42 -> 0 | W29: =Query!R42 -> 0 | X29: =SUM(V29:W29) -> 0 | Z29: =Query!T42 -> 8 | AB29: =IFERROR(B29/AJ29,0) -> 0 | AC29: 0.273 | AE29: =IFERROR(V29/AJ29,0) -> 0 | AF29: =SUM(W29/AK29) -> 0 | AH29: =SUM(Z29/AL29) -> 0.727 | AJ29: =Query!Z42 -> 0 | AK29: =Query!AA42 -> 11 | AL29: =SUM(AJ29:AK29) -> 11 | AN29: ='FTE Query'!D42 -> 8
A30: Other Non P&G Structure Total | B30: =SUM(B28:B29) -> 14 | C30: =SUM(C28:C29) -> 21 | D30: =SUM(D28:D29) -> 35 | F30: =SUM(F28:F29) -> 0 | G30: =SUM(G28:G29) -> 0 | H30: =SUM(H28:H29) -> 0 | J30: =SUM(J28:J29) -> 0 | K30: =SUM(K28:K29) -> 0 | L30: =SUM(L28:L29) -> 0 | N30: =SUM(N28:N29) -> 1 | O30: =SUM(O28:O29) -> 0 | P30: =SUM(P28:P29) -> 1 | R30: =SUM(R28:R29) -> 0 | S30: =SUM(S28:S29) -> 0 | T30: =SUM(T28:T29) -> 0 | V30: =SUM(V28:V29) -> 1 | W30: =SUM(W28:W29) -> 0 | X30: =SUM(X28:X29) -> 1 | Z30: =SUM(Z28:Z29) -> 46 | AB30: 0.609 | AC30: 0.356 | AE30: 0.043 | AF30: 0 | AH30: 0.561 | AJ30: =SUM(AJ28:AJ29) -> 23 | AK30: =SUM(AK28:AK29) -> 59 | AL30: =SUM(AL28:AL29) -> 82 | AN30: =SUM(AN28:AN29) -> 79
A32: Total Workforce F/T | B32: =SUM(B4,B8,B12,B16,B20,B24,B28) -> 763 | C32: =SUM(C4,C8,C12,C16,C20,C24,C28) -> 620 | D32: =SUM(B32:C32) -> 1383 | F32: =SUM(F4,F8,F12,F16,F20,F24,F28) -> 4 | G32: =SUM(G4,G8,G12,G16,G20,G24,G28) -> 1 | H32: =SUM(F32:G32) -> 5 | J32: =SUM(J4,J8,J12,J16,J20,J24,J28) -> 1 | K32: =SUM(K4,K8,K12,K16,K20,K24,K28) -> 2 | L32: =SUM(J32:K32) -> 3 | N32: =SUM(N4,N8,N12,N16,N20,N24,N28) -> 12 | O32: =SUM(O4,O8,O12,O16,O20,O24,O28) -> 6 | P32: =SUM(N32:O32) -> 18 | R32: =SUM(R4,R8,R12,R16,R20,R24,R28) -> 3 | S32: =SUM(S4,S8,S12,S16,S20,S24,S28) -> 0 | T32: =SUM(R32:S32) -> 3 | V32: =SUM(V4,V8,V12,V16,V20,V24,V28) -> 20 | W32: =SUM(W4,W8,W12,W16,W20,W24,W28) -> 9 | X32: =SUM(V32:W32) -> 29 | Z32: =SUM(Z4,Z8,Z12,Z16,Z20,Z24,Z28) -> 272 | AB32: =SUM(B32/AJ32) -> 0.824 | AC32: =SUM(C32/AK32) -> 0.818 | AE32: 0.022 | AF32: 0.012 | AH32: 0.162 | AJ32: =SUM(AJ4,AJ8,AJ12,AJ16,AJ20,AJ24,AJ28) -> 926 | AK32: =SUM(AK4,AK8,AK12,AK16,AK20,AK24,AK28) -> 758 | AL32: =SUM(AJ32:AK32) -> 1684 | AN32: =SUM(AN4,AN8,AN12,AN16,AN20,AN24,AN28) -> 1682.44
A34: Total Workforce P/T | B34: =SUM(B5,B9,B13,B17,B21,B25,B29) -> 210 | C34: =SUM(C5,C9,C13,C17,C21,C25,C29) -> 463 | D34: =SUM(B34:C34) -> 673 | F34: =SUM(F5,F9,F13,F17,F21,F25,F29) -> 1 | G34: =SUM(G5,G9,G13,G17,G21,G25,G29) -> 4 | H34: =SUM(F34:G34) -> 5 | J34: =SUM(J5,J9,J13,J17,J21,J25,J29) -> 0 | K34: =SUM(K5,K9,K13,K17,K21,K25,K29) -> 3 | L34: =SUM(J34:K34) -> 3 | N34: =SUM(N5,N9,N13,N17,N21,N25,N29) -> 8 | O34: =SUM(O5,O9,O13,O17,O21,O25,O29) -> 7 | P34: =SUM(N34:O34) -> 15 | R34: =SUM(R5,R9,R13,R17,R21,R25,R29) -> 2 | S34: =SUM(S5,S9,S13,S17,S21,S25,S29) -> 2 | T34: =SUM(R34:S34) -> 4 | V34: =SUM(V5,V9,V13,V17,V21,V25,V29) -> 11 | W34: =SUM(W5,W9,W13,W17,W21,W25,W29) -> 16 | X34: =SUM(V34:W34) -> 27 | Z34: =SUM(Z5,Z9,Z13,Z17,Z21,Z25,Z29) -> 172 | AB34: =SUM(B34/AJ34) -> 0.732 | AC34: =SUM(C34/AK34) -> 0.791 | AE34: 0.038 | AF34: 0.027 | AH34: 0.197 | AJ34: =SUM(AJ5,AJ9,AJ13,AJ17,AJ21,AJ25,AJ29) -> 287 | AK34: =SUM(AK5,AK9,AK13,AK17,AK21,AK25,AK29) -> 585 | AL34: =SUM(AJ34:AK34) -> 872 | AN34: =SUM(AN5,AN9,AN13,AN17,AN21,AN25,AN29) -> 439
A36: Total Workforce | B36: =SUM(B32,B34) -> 973 | C36: =SUM(C32,C34) -> 1083 | D36: =SUM(B36:C36) -> 2056 | F36: =SUM(F32,F34) -> 5 | G36: =SUM(G32,G34) -> 5 | H36: =SUM(F36:G36) -> 10 | J36: =SUM(J32,J34) -> 1 | K36: =SUM(K32,K34) -> 5 | L36: =SUM(J36:K36) -> 6 | N36: =SUM(N32,N34) -> 20 | O36: =SUM(O32,O34) -> 13 | P36: =SUM(N36:O36) -> 33 | R36: =SUM(R32,R34) -> 5 | S36: =SUM(S32,S34) -> 2 | T36: =SUM(R36:S36) -> 7 | V36: =SUM(V32,V34) -> 31 | W36: =SUM(W32,W34) -> 25 | X36: =SUM(V36:W36) -> 56 | Z36: =SUM(Z32,Z34) -> 444 | AB36: =SUM(B36/AJ36) -> 0.802 | AC36: =SUM(C36/AK36) -> 0.806 | AE36: 0.026 | AF36: 0.019 | AH36: 0.174 | AJ36: =SUM(AJ32,AJ34) -> 1213 | AK36: =SUM(AK32,AK34) -> 1343 | AL36: =SUM(AJ36:AK36) -> 2556 | AN36: =SUM(AN32,AN34) -> 2121.44
B37: =B36/$AL$36 -> 0.3807 | C37: =C36/$AL$36 -> 0.4237 | D37: 0.8044 | E37: 0 | F37: 0.002 | G37: 0.002 | H37: 0.0039 | I37: 0 | J37: 0.0004 | K37: 0.002 | L37: 0.0023 | M37: 0 | N37: 0.0078 | O37: 0.0051 | P37: 0.0129 | Q37: 0 | R37: 0.002 | S37: 0.0008 | T37: 0.0027 | U37: 0 | V37: 0.0121 | W37: 0.0098 | X37: 0.0219 | Y37: 0 | Z37: 0.1737 | AA37: 0 | AB37: 0.0003 | AC37: 0.0003 | AD37: 0 | AE37: 0 | AF37: 0 | AG37: 0 | AH37: 0.0001 | AI37: 0 | AJ37: 0.4746 | AK37: 0.5254 | AL37: 1 | AM37: =AM36/$AN$36 -> 0 | AN37: 1

Sheet Query (hidden)
A1: Workforce Profile By Gender & Grade (2011)
A3: Payroll Area
A4: ZPersonal Area
A5: Organizational Unit | B5: Culture & Sport Glasgow
A6: Personnel Subarea | B6: ]GL Bank[
A7: Checkbox for Part-Ti
A8: ZPrimary Employee ID
A9: Contract Type
A10: WPBR Gender/Ethnicity Bandings (2011)
A11: WP Bandings
A13: Contract Type | B13: ]Casual Work[, ]External[, ]Sessional Work[, ]Agency Staff[, ]Election Worker[, ]Casual Contract[, ]Agency[, ]Ext Chief Position[...
A14: Employee Subgroup | B14: ]Teachers 35.00 M1[, ]Teachers 35.00 M2[, ]Skillseekers[, ]External Non Payroll[, ]Traineeship Program[
A15: Employment Status | B15: Active
A16: Organizational Unit | B16: ]DR00000029[, ]DR00000035[, ]EP10000000[, ]LS00000500[, ]GL00000001[, ]DR00000145[, ]L000000A00[, ]DR00000029[, ]DR00000035[...
A17: Personnel Subarea | B17: ]ZZZZ[
A18: Employment End | B18: >= 30/09/2017
A19: Employment Start | B19: <= 30/09/2017
A20: ZPersonal Area | B20: ]9980..9991[, ]0021[, 0161
B22: Total White Males | C22: Total White Females | D22: Total White Employees | E22: Total Mixed Males | F22: Total Mixed Females | G22: Total Mixed Employees | H22: Total Other Ethnic Background Males | I22: Total Other Ethnic Background Females | J22: Total Other Ethnic Background | K22: Total Asian Males | L22: Total Asian Females | M22: Total Asian Employees | N22: Total Black Males | O22: Total Black Females | P22: Total Black Employees | Q22: Total Black & Ethnic Males | R22: Total Black & Ethnic Females | S22: Total Black & Ethnic Employees | T22: Total Non-Declared | U22: Total White Male Employees % | V22: Total White Female Employees % | W22: Total BEM Male Employees % | X22: Total BEM Female Employees % | Y22: Total Non-Declared Employees % | Z22: Total Male Employees | AA22: Total Female Employees | AB22: Total Workforce
A23: Grade 1 - 4 F/T | B23: 471 | C23: 272 | D23: 743 | E23: 2 | G23: 2 | H23: 1 | J23: 1 | K23: 6 | L23: 2 | M23: 8 | N23: 3 | P23: 3 | Q23: 12 | R23: 2 | S23: 14 | T23: 128 | U23: 1 | V23: 1 | W23: 0 | X23: 0 | Y23: 0 | Z23: 562 | AA23: 323 | AB23: 885
A24: Grade 1 - 4 P/T | B24: 191 | C24: 362 | D24: 553 | E24: 1 | F24: 1 | G24: 2 | I24: 3 | J24: 3 | K24: 8 | L24: 6 | M24: 14 | N24: 2 | O24: 2 | P24: 4 | Q24: 11 | R24: 12 | S24: 23 | T24: 139 | U24: 1 | V24: 1 | W24: 0 | X24: 0 | Y24: 0 | Z24: 263 | AA24: 452 | AB24: 715
A25: Grade 1 - 4 Total | B25: 662 | C25: 634 | D25: 1296 | E25: 3 | F25: 1 | G25: 4 | H25: 1 | I25: 3 | J25: 4 | K25: 14 | L25: 8 | M25: 22 | N25: 5 | O25: 2 | P25: 7 | Q25: 23 | R25: 14 | S25: 37 | T25: 267 | U25: 1 | V25: 1 | W25: 0 | X25: 0 | Y25: 0 | Z25: 825 | AA25: 775 | AB25: 1600
A26: Grade 5 - 7 F/T | B26: 244 | C26: 295 | D26: 539 | E26: 2 | F26: 1 | G26: 3 | I26: 2 | J26: 2 | K26: 5 | L26: 4 | M26: 9 | Q26: 7 | R26: 7 | S26: 14 | T26: 95 | U26: 1 | V26: 1 | W26: 0 | X26: 0 | Y26: 0 | Z26: 302 | AA26: 346 | AB26: 648
A27: Grade 5 - 7 P/T | B27: 19 | C27: 94 | D27: 113 | F27: 3 | G27: 3 | L27: 1 | M27: 1 | R27: 4 | S27: 4 | T27: 24 | U27: 1 | V27: 1 | X27: 0 | Y27: 0 | Z27: 24 | AA27: 117 | AB27: 141
A28: Grade 5 - 7 Total | B28: 263 | C28: 389 | D28: 652 | E28: 2 | F28: 4 | G28: 6 | I28: 2 | J28: 2 | K28: 5 | L28: 5 | M28: 10 | Q28: 7 | R28: 11 | S28: 18 | T28: 119 | U28: 1 | V28: 1 | W28: 0 | X28: 0 | Y28: 0 | Z28: 326 | AA28: 463 | AB28: 789
A29: Grade 8 F/T | B29: 20 | C29: 23 | D29: 43 | T29: 6 | U29: 1 | V29: 1 | Y29: 0 | Z29: 23 | AA29: 26 | AB29: 49
A30: Grade 8 P/T | C30: 4 | D30: 4 | T30: 1 | V30: 1 | Y30: 0 | AA30: 5 | AB30: 5
A31: Grade 8 Total | B31: 20 | C31: 27 | D31: 47 | T31: 7 | U31: 1 | V31: 1 | Y31: 0 | Z31: 23 | AA31: 31 | AB31: 54
A32: ACZ Grade 8 F/T
A33: ACZ Grade 8 P/T
A34: ACZ Grade 8 Total
A35: Grade 9 - 15 F/T | B35: 14 | C35: 12 | D35: 26 | T35: 4 | U35: 1 | V35: 1 | Y35: 0 | Z35: 15 | AA35: 15 | AB35: 30
A36: Grade 9 - 15 P/T
A37: Grade 9 - 15 Total | B37: 14 | C37: 12 | D37: 26 | T37: 4 | U37: 1 | V37: 1 | Y37: 0 | Z37: 15 | AA37: 15 | AB37: 30
A38: ACZ Grade 9 - 15 F/T | T38: 1 | Y38: 1 | Z38: 1 | AB38: 1
A39: ACZ Grade 9 - 15 P/T
A40: ACZ Grade 9 - 15 Total | T40: 1 | Y40: 1 | Z40: 1 | AB40: 1
A41: Other (Not Migrated) F/T | B41: 14 | C41: 18 | D41: 32 | E41: 0 | F41: 0 | G41: 0 | H41: 0 | I41: 0 | J41: 0 | K41: 1 | L41: 0 | M41: 1 | N41: 0 | P41: 0 | Q41: 1 | R41: 0 | S41: 1 | T41: 38 | U41: 1 | V41: 0 | W41: 0 | X41: 0 | Y41: 1 | Z41: 23 | AA41: 48 | AB41: 71
A42: Other (Not Migrated) P/T | B42: 0 | C42: 3 | D42: 3 | E42: 0 | F42: 0 | G42: 0 | I42: 0 | J42: 0 | K42: 0 | L42: 0 | M42: 0 | N42: 0 | O42: 0 | P42: 0 | Q42: 0 | R42: 0 | S42: 0 | T42: 8 | U42: X | V42: 0 | W42: X | X42: 0 | Y42: 1 | Z42: 0 | AA42: 11 | AB42: 11
A43: Other (Not Migrated) Total | B43: 14 | C43: 21 | D43: 35 | E43: 0 | F43: 0 | G43: 0 | H43: 0 | I43: 0 | J43: 0 | K43: 1 | L43: 0 | M43: 1 | N43: 0 | O43: 0 | P43: 0 | Q43: 1 | R43: 0 | S43: 1 | T43: 46 | U43: 1 | V43: 0 | W43: 0 | X43: 0 | Y43: 1 | Z43: 23 | AA43: 59 | AB43: 82
A44: Total Teaching Staff F/T
A45: Total Teaching Staff P/T
A46: Total Teaching Staff
A47: Total Non-Teaching Staff F/T | B47: 763 | C47: 620 | D47: 1383 | E47: 4 | F47: 1 | G47: 5 | H47: 1 | I47: 2 | J47: 3 | K47: 12 | L47: 6 | M47: 18 | N47: 3 | P47: 3 | Q47: 20 | R47: 9 | S47: 29 | T47: 272 | U47: 1 | V47: 1 | W47: 0 | X47: 0 | Y47: 0 | Z47: 926 | AA47: 758 | AB47: 1684
A48: Total Non-Teaching Staff P/T | B48: 210 | C48: 463 | D48: 673 | E48: 1 | F48: 4 | G48: 5 | I48: 3 | J48: 3 | K48: 8 | L48: 7 | M48: 15 | N48: 2 | O48: 2 | P48: 4 | Q48: 11 | R48: 16 | S48: 27 | T48: 172 | U48: 1 | V48: 1 | W48: 0 | X48: 0 | Y48: 0 | Z48: 287 | AA48: 585 | AB48: 872
A49: Total Non-Teaching Staff | B49: 973 | C49: 1083 | D49: 2056 | E49: 5 | F49: 5 | G49: 10 | H49: 1 | I49: 5 | J49: 6 | K49: 20 | L49: 13 | M49: 33 | N49: 5 | O49: 2 | P49: 7 | Q49: 31 | R49: 25 | S49: 56 | T49: 444 | U49: 1 | V49: 1 | W49: 0 | X49: 0 | Y49: 0 | Z49: 1213 | AA49: 1343 | AB49: 2556
A50: Total - All WPBR Grades F/T | B50: 749 | C50: 602 | D50: 1351 | E50: 4 | F50: 1 | G50: 5 | H50: 1 | I50: 2 | J50: 3 | K50: 11 | L50: 6 | M50: 17 | N50: 3 | P50: 3 | Q50: 19 | R50: 9 | S50: 28 | T50: 234 | U50: 1 | V50: 1 | W50: 0 | X50: 0 | Y50: 0 | Z50: 903 | AA50: 710 | AB50: 1613
A51: Total - All WPBR Grades P/T | B51: 210 | C51: 460 | D51: 670 | E51: 1 | F51: 4 | G51: 5 | I51: 3 | J51: 3 | K51: 8 | L51: 7 | M51: 15 | N51: 2 | O51: 2 | P51: 4 | Q51: 11 | R51: 16 | S51: 27 | T51: 164 | U51: 1 | V51: 1 | W51: 0 | X51: 0 | Y51: 0 | Z51: 287 | AA51: 574 | AB51: 861
A52: Total Workforce - All WPBR Grades | B52: 959 | C52: 1062 | D52: 2021 | E52: 5 | F52: 5 | G52: 10 | H52: 1 | I52: 5 | J52: 6 | K52: 19 | L52: 13 | M52: 32 | N52: 5 | O52: 2 | P52: 7 | Q52: 30 | R52: 25 | S52: 55 | T52: 398 | U52: 1 | V52: 1 | W52: 0 | X52: 0 | Y52: 0 | Z52: 1190 | AA52: 1284 | AB52: 2474
A53: Total Workforce (All) F/T | B53: 763 | C53: 620 | D53: 1383 | E53: 4 | F53: 1 | G53: 5 | H53: 1 | I53: 2 | J53: 3 | K53: 12 | L53: 6 | M53: 18 | N53: 3 | P53: 3 | Q53: 20 | R53: 9 | S53: 29 | T53: 272 | U53: 1 | V53: 1 | W53: 0 | X53: 0 | Y53: 0 | Z53: 926 | AA53: 758 | AB53: 1684
A54: Total Workforce (All) P/T | B54: 210 | C54: 463 | D54: 673 | E54: 1 | F54: 4 | G54: 5 | I54: 3 | J54: 3 | K54: 8 | L54: 7 | M54: 15 | N54: 2 | O54: 2 | P54: 4 | Q54: 11 | R54: 16 | S54: 27 | T54: 172 | U54: 1 | V54: 1 | W54: 0 | X54: 0 | Y54: 0 | Z54: 287 | AA54: 585 | AB54: 872
A55: Total Workforce (All) | B55: 973 | C55: 1083 | D55: 2056 | E55: 5 | F55: 5 | G55: 10 | H55: 1 | I55: 5 | J55: 6 | K55: 20 | L55: 13 | M55: 33 | N55: 5 | O55: 2 | P55: 7 | Q55: 31 | R55: 25 | S55: 56 | T55: 444 | U55: 1 | V55: 1 | W55: 0 | X55: 0 | Y55: 0 | Z55: 1213 | AA55: 1343 | AB55: 2556

Sheet FTE Query (hidden)
A1: Workforce Profile By Gender, Grade & FTE
A3: Payroll Area
A4: ZPersonal Area
A5: Organizational Unit | B5: Culture & Sport Glasgow
A6: Personnel Subarea | B6: ]GL Bank[
A7: Checkbox for Part-Ti
A8: ZPrimary Employee ID
A9: Contract Type
A10: WPBR Gender/Ethnicity Bandings FTE | B10: ,Total Male Employees,Total Female Employees,Total Workforce
A11: WP Bandings
A13: Contract Type | B13: ]Casual Work[, ]External[, ]Sessional Work[, ]Agency Staff[, ]Casual Contract[, ]Agency[, ]Ext Chief Position[
A14: Employee Subgroup | B14: ]Teachers 35.00 M1[, ]Teachers 35.00 M2[, ]Teachers 32.50/None[, ]Skillseekers[, ]External Non Payroll[, ]Traineeship Program[
A15: Employment Status | B15: Active
A16: Organizational Unit | B16: ]DR00000029[, ]DR00000035[, ]EP10000000[, ]LS00000500[, ]GL00000001[, ]DR00000145[, ]L000000A00[, ]DR00000029[, ]DR00000035[...
A17: Personnel Subarea | B17: ]ZZZZ[
A18: Employment End | B18: >= 30/09/2017
A19: Employment Start | B19: <= 30/09/2017
A20: ZPersonal Area | B20: ]9980..9991[, ]0021[, 0161
B22: Total Male Employees | C22: Total Female Employees | D22: Total Workforce
A23: Grade 1 - 4 F/T | B23: 561.32 | C23: 322.13 | D23: 883.44
A24: Grade 1 - 4 P/T | B24: 125.28 | C24: 224.53 | D24: 349.81
A25: Grade 1 - 4 Total | B25: 686.59 | C25: 546.66 | D25: 1233.25
A26: Grade 5 - 7 F/T | B26: 302 | C26: 346 | D26: 648
A27: Grade 5 - 7 P/T | B27: 11.59 | C27: 65.37 | D27: 76.96
A28: Grade 5 - 7 Total | B28: 313.59 | C28: 411.37 | D28: 724.96
A29: Grade 8 F/T | B29: 23 | C29: 26 | D29: 49
A30: Grade 8 P/T | C30: 4.23 | D30: 4.23
A31: Grade 8 Total | B31: 23 | C31: 30.23 | D31: 53.23
A32: ACZ Grade 8 F/T
A33: ACZ Grade 8 P/T
A34: ACZ Grade 8 Total
A35: Grade 9 - 15 F/T | B35: 15 | C35: 15 | D35: 30
A36: Grade 9 - 15 P/T
A37: Grade 9 - 15 Total | B37: 15 | C37: 15 | D37: 30
A38: ACZ Grade 9 - 15 F/T | B38: 1 | D38: 1
A39: ACZ Grade 9 - 15 P/T
A40: ACZ Grade 9 - 15 Total | B40: 1 | D40: 1
A41: Other (Not Migrated) F/T | B41: 23 | C41: 48 | D41: 71
A42: Other (Not Migrated) P/T | B42: 0 | C42: 8 | D42: 8
A43: Other (Not Migrated) Total | B43: 23 | C43: 56 | D43: 79
A44: Total Teaching Staff F/T
A45: Total Teaching Staff P/T
A46: Total Teaching Staff
A47: Total Non-Teaching Staff F/T | B47: 925.32 | C47: 757.13 | D47: 1682.44
A48: Total Non-Teaching Staff P/T | B48: 136.86 | C48: 301.8 | D48: 438.66
A49: Total Non-Teaching Staff | B49: 1062.18 | C49: 1058.93 | D49: 2121.11
A50: Total - All WPBR Grades F/T | B50: 902 | C50: 709 | D50: 1611
A51: Total - All WPBR Grades P/T | B51: 137 | C51: 294 | D51: 431
A52: Total Workforce - All WPBR Grades | B52: 1039 | C52: 1003 | D52: 2042
A53: Total Workforce (All) F/T | B53: 925.32 | C53: 757.13 | D53: 1682.44
A54: Total Workforce (All) P/T | B54: 136.86 | C54: 301.8 | D54: 438.66
A55: Total Workforce (All) | B55: 1062.18 | C55: 1058.93 | D55: 2121.11

Sheet JobFamily Template (hidden)
C1: JOB FAMILY - EMPLOYEE HEAD COUNT
B2: GROUP OF EMPLOYEES | C2: BS | D2: CV | E2: CA | F2: CF | G2: CU | H2: CR | I2: IP | J2: LS | K2: PC | L2: PH | M2: SE | N2: SR | O2: TS | P2: VE | Q2: NON P&GS | R2: TOTAL
A3: Glasgow Life | B3: Male Temp F/T | C3: ='JF Query'!B21 -> 8 | D3: ='JF Query'!C21 -> 0 | E3: ='JF Query'!D21 -> 1 | F3: ='JF Query'!E21 -> 6 | G3: ='JF Query'!F21 -> 0 | H3: ='JF Query'!G21 -> 0 | I3: ='JF Query'!H21 -> 0 | J3: ='JF Query'!I21 -> 2 | K3: ='JF Query'!J21 -> 0 | L3: ='JF Query'!K21 -> 0 | M3: ='JF Query'!L21 -> 0 | N3: ='JF Query'!M21 -> 7 | O3: ='JF Query'!N21 -> 1 | P3: ='JF Query'!O21 -> 0 | Q3: ='JF Query'!R21 -> 8 | R3: =SUM(C3:Q3) -> 33
B4: Male Temp P/T | C4: ='JF Query'!B22 -> 0 | D4: ='JF Query'!C22 -> 0 | E4: ='JF Query'!D22 -> 0 | F4: ='JF Query'!E22 -> 0 | G4: ='JF Query'!F22 -> 0 | H4: ='JF Query'!G22 -> 0 | I4: ='JF Query'!H22 -> 0 | J4: ='JF Query'!I22 -> 0 | K4: ='JF Query'!J22 -> 0 | L4: ='JF Query'!K22 -> 0 | M4: ='JF Query'!L22 -> 0 | N4: ='JF Query'!M22 -> 4 | O4: ='JF Query'!N22 -> 0 | P4: ='JF Query'!O22 -> 0 | Q4: ='JF Query'!R22 -> 0 | R4: =SUM(C4:Q4) -> 4
B5: Male Perm F/T | C5: ='JF Query'!B23 -> 69 | D5: ='JF Query'!C23 -> 0 | E5: ='JF Query'!D23 -> 31 | F5: ='JF Query'!E23 -> 584 | G5: ='JF Query'!F23 -> 0 | H5: ='JF Query'!G23 -> 0 | I5: ='JF Query'!H23 -> 0 | J5: ='JF Query'!I23 -> 14 | K5: ='JF Query'!J23 -> 0 | L5: ='JF Query'!K23 -> 0 | M5: ='JF Query'!L23 -> 0 | N5: ='JF Query'!M23 -> 115 | O5: ='JF Query'!N23 -> 65 | P5: ='JF Query'!O23 -> 0 | Q5: ='JF Query'!R23 -> 15 | R5: 893
B6: Male Perm P/T | C6: ='JF Query'!B24 -> 2 | D6: ='JF Query'!C24 -> 0 | E6: ='JF Query'!D24 -> 5 | F6: ='JF Query'!E24 -> 179 | G6: ='JF Query'!F24 -> 0 | H6: ='JF Query'!G24 -> 0 | I6: ='JF Query'!H24 -> 0 | J6: ='JF Query'!I24 -> 0 | K6: ='JF Query'!J24 -> 0 | L6: ='JF Query'!K24 -> 0 | M6: ='JF Query'!L24 -> 0 | N6: ='JF Query'!M24 -> 91 | O6: ='JF Query'!N24 -> 6 | P6: ='JF Query'!O24 -> 0 | Q6: ='JF Query'!R24 -> 0 | R6: 283
B7: Female Temp F/T | C7: ='JF Query'!B25 -> 23 | D7: ='JF Query'!C25 -> 0 | E7: ='JF Query'!D25 -> 2 | F7: ='JF Query'!E25 -> 2 | G7: ='JF Query'!F25 -> 0 | H7: ='JF Query'!G25 -> 0 | I7: ='JF Query'!H25 -> 0 | J7: ='JF Query'!I25 -> 1 | K7: ='JF Query'!J25 -> 0 | L7: ='JF Query'!K25 -> 0 | M7: ='JF Query'!L25 -> 0 | N7: ='JF Query'!M25 -> 16 | O7: ='JF Query'!N25 -> 4 | P7: ='JF Query'!O25 -> 0 | Q7: ='JF Query'!R25 -> 17 | R7: =SUM(C7:Q7) -> 65
B8: Female Temp P/T | C8: ='JF Query'!B26 -> 3 | D8: ='JF Query'!C26 -> 0 | E8: ='JF Query'!D26 -> 0 | F8: ='JF Query'!E26 -> 5 | G8: ='JF Query'!F26 -> 0 | H8: ='JF Query'!G26 -> 0 | I8: ='JF Query'!H26 -> 0 | J8: ='JF Query'!I26 -> 0 | K8: ='JF Query'!J26 -> 0 | L8: ='JF Query'!K26 -> 0 | M8: ='JF Query'!L26 -> 0 | N8: ='JF Query'!M26 -> 6 | P8: ='JF Query'!O26 -> 0 | Q8: ='JF Query'!R26 -> 0 | R8: 14
B9: Female Perm F/T | C9: ='JF Query'!B27 -> 118 | D9: ='JF Query'!C27 -> 0 | E9: ='JF Query'!D27 -> 65 | F9: ='JF Query'!E27 -> 301 | G9: ='JF Query'!F27 -> 0 | H9: ='JF Query'!G27 -> 0 | I9: ='JF Query'!H27 -> 0 | J9: ='JF Query'!I27 -> 14 | K9: ='JF Query'!J27 -> 0 | L9: ='JF Query'!K27 -> 1 | M9: ='JF Query'!L27 -> 0 | N9: ='JF Query'!M27 -> 138 | O9: ='JF Query'!N27 -> 25 | P9: ='JF Query'!O27 -> 0 | Q9: ='JF Query'!R27 -> 31 | R9: 693
B10: Female Perm P/T | C10: ='JF Query'!B28 -> 25 | D10: ='JF Query'!C28 -> 0 | E10: ='JF Query'!D28 -> 41 | F10: ='JF Query'!E28 -> 327 | G10: ='JF Query'!F28 -> 0 | H10: ='JF Query'!G28 -> 0 | I10: ='JF Query'!H28 -> 0 | J10: ='JF Query'!I28 -> 0 | K10: ='JF Query'!J28 -> 0 | L10: ='JF Query'!K28 -> 1 | M10: ='JF Query'!L28 -> 0 | N10: ='JF Query'!M28 -> 161 | O10: ='JF Query'!N28 -> 4 | P10: ='JF Query'!O28 -> 0 | Q10: ='JF Query'!R28 -> 11 | R10: 570
B11: Total | C11: =SUM(C3:C10) -> 248 | D11: 0 | E11: 145 | F11: 1404 | G11: 0 | H11: 0 | I11: 0 | J11: 31 | K11: 0 | L11: 2 | M11: 0 | N11: 538 | O11: 105 | P11: 0 | Q11: 82 | R11: 2555
A14: ABBREVIATIONS
A15: BS | B15: Business Support
A16: CV | B16: Catering
A17: CA | B17: Clerical Admin
A18: CF | B18: Community Facility User Support
A19: CU | B19: Community Standards & Enforcement
A20: CR | B20: Construction Repairs Maintenance
A21: IP | B21: Infrastructure Planning
A22: LS | B22: Leadership
A23: PC | B23: People Care & Support
A24: PH | B24: Physical & Environmental Services
A25: SE | B25: Security
A26: SR | B26: Social Renewal, Learning & People Development
A27: TS | B27: Technical Services
A28: VE | B28: Road Vehicle Operations
A29: TEACH | B29: Teachers
A30: NON P&GS | B30: Non Pay & Grading Structure

Sheet JF Query (hidden)
A1: QSW Breakdown By Job Family excl cas sess
A3: NI Number
A4: ZPersonal Area
A5: ZPrimary Employee ID
A6: Employee Group
A7: Personnel Subarea | B7: ]GL Bank[
A8: Organizational Unit | B8: Culture & Sport Glasgow
A9: Job Families Incl Teach
A10: Breakdown Gender Contract FTPT
A12: Contract Type | B12: ]Casual Work[, ]External[, ]Sessional Work[, ]Agency Staff[, ]Election Worker[, ]Casual Contract[, ]Agency[, ]Contract/Consultant[..
A13: Employee Subgroup | B13: ]Teachers 35.00 M2[, ]Skillseekers[, ]External Non Payroll[, ]Traineeship Program[
A14: Employment Status | B14: Active
A15: Organizational Unit | B15: ]DR00000029[, ]DR00000035[, ]GL00000001[, ]DR00000145[, ]DR00000029[, ]DR00000035[, ]GL00000001[, ]DR00000145[
A16: Personnel Subarea | B16: ]ZZZZ[
A17: Employment End | B17: >= 30/09/2017
A18: Employment Start | B18: <= 30/09/2017
B20: BS | C20: CV | D20: CA | E20: CF | F20: CU | G20: CR | H20: IP | I20: LS | J20: PC | K20: PH | L20: SE | M20: SR | N20: TS | O20: VE | P20: Teachers | Q20: Total Employees | R20: Non WPBR
A21: Male Temp FT | B21: 8 | D21: 1 | E21: 6 | I21: 2 | M21: 7 | N21: 1 | Q21: 25 | R21: 8 | S21: =SUM(Q21+Q23+R21+R23) -> 926
A22: Male Temp PT | M22: 4 | Q22: 4 | R22: 0
A23: Male Perm FT | B23: 69 | D23: 31 | E23: 584 | I23: 14 | M23: 115 | N23: 65 | Q23: 878 | R23: 15 | S23: =SUM(Q22+Q24+R22+R24) -> 287
A24: Male Perm PT | B24: 2 | D24: 5 | E24: 179 | M24: 91 | N24: 6 | Q24: 283 | R24: 0
A25: Female Temp FT | B25: 23 | D25: 2 | E25: 2 | I25: 1 | M25: 16 | N25: 4 | Q25: 48 | R25: 17 | S25: =SUM(Q25+Q27+R25+R27) -> 758
A26: Female Temp PT | B26: 3 | E26: 5 | M26: 6 | N26: 1 | Q26: 15 | R26: 0
A27: Female Perm FT | B27: 118 | D27: 65 | E27: 301 | I27: 14 | K27: 1 | M27: 138 | N27: 25 | Q27: 662 | R27: 31 | S27: =SUM(Q26+Q28+R26+R28) -> 585
A28: Female Perm PT | B28: 25 | D28: 41 | E28: 327 | K28: 1 | M28: 161 | N28: 4 | Q28: 559 | R28: 11
S29: =SUM(S21:S28) -> 2556
